Workbook

Sheet Notes
A1: RecursiveMedianFilters.xlsm; Traders Tip spreadsheet created for the March 2018 Issue
A2: Coded beginning 2018-January-04 by Ronald McAllister (rpmac_xltt@sprynet.com)
A4: This Workbook demonstrates an EXCEL version of the ideas presented
A5: by John Ehlers in an article titled "Recursive Median Filters"
A6: which originally appeared in the March 2018 issue of
A7: "Technical Analysis of Stocks and Commodities" magazine.
A9: CalculationsAndCharts construction Notes:
B10: The derivation of the MyRSI indicator (Figure 1, Sub chart 3) was not included with the Easylanguage sidebars that accompanied this article.
B12: Searching the web garnered several formulations for something called MyRSI.
B13: However, none of the MyRSI versions I could find yielded a chart in any way similar to what we see in sub chart 3 of the article.
B14: So, for the time being, I can only present an unfiltered, unsmoothed RSI for that subchart.
B16: Figure 1 from the article can be approximated using symbol SPY and charting dates 12/08/2016 through 10/26/2017.
A18: Development Notes:
C19: This workbook contains and uses VBA macros and may use VBA Class structures.
C20: Input Data
C21: The data in this workbook is sorted date descending (most recent date at the top). All formulas and
C22: VBA routines are built accordingly.
A24: This spreadsheet incorporates my first cut at retrieving historical data from the "New", and not necessarily "Improved", Yahoo Finance History Download interface.
B26: My sincere apologies to our Macintosh based readers: MSXML is not supported in your environment. So as it stands this version of the spreadsheet will not work for you.
B27: See "Why this approach does not work for Macintosh" below.
B28: I am investigating cURL as a non-Querytable based approach for the Macintosh environment.
A30: The new Yahoo Finance history download interface has changed rather radically. The biggest hurdle being a pseudo-security requirement of adding a
B31: crumb character string to any URL requesting any type of history download. That crumb must match up (by way of some sort of hash algorithm) with
B32: the Yahoo Finance cookie that must also be sent with any request to the new Yahoo History down load interface.
B34: A crumb value is returned, buried in the HTML for any of what I call the "entry level" Yahoo Finance web pages (no crumb security requirement for entry level pages).
B35: A crumb may come with other Yahoo Finance pages. A crumb may even accompany some of the secured pages as well. I have not checked.
B37: Entry level pages are the top level pages of the various Yahoo Finance dialogs and include: Quote Lookup, Stock Summary Quote, and any of the pages
B38: with links in the horizontal row with the "Summary" link on the quote summary page such as Options, Historical Data, and the rest.
B40: To date I have found no way to get at this crumb value using any native EXCEL capabilities.
B42: So this crumb requirement effectively shuts out any solution that attempts to exclusively use built-in facilities of EXCEL, which is to say a purely Querytables solution.
B44: The approach built for this Traders Tip spreadsheet uses a combination of MSXML and EXCEL QueryTable calls to Load the InputPriceData worksheet.
B46: First I call MSXML to get the HTML text for the Yahoo Summary Quote page using the requested symbol. From this HTML text I extract the full company name,
B47: the market it trades, the market status and time stamp, and finally the associated crumb string. There is a bunch of other useful bits buried in this HTML
B48: text that do not necessarily appear on the web page your browser presents. Perhaps some day I will go after and build a worksheet with these other bits.
B50: Next I add the freshly extracted crumb string to the URLs I use in three separate Querytable calls to retrieve Price history, Split history, and Dividend history respectively.
B52: From there VBA code proceeds as in the past to fill in the cell formulas and formatting that make the "prettied up" InputPriceData sheet.
A54: Why this approach works for Windows:
B55: First, MSXML shares the permanent Internet Explorer web cache where cookies are maintained. Both IE and MSXML automatically
B56: update this cache when a "set cookie" header accompanies a web response. And they both automatically search this shared cache for
B57: cookies and add any "appropriate" cookies to the headers of any web requests they send out.
B58: This cookie handling automation means that even if the response to our MSXML call for the Summary web page includes a new version of
B59: the Yahoo Finance cookie, the imbedded Crumb value will always match the cookie newly installed in the cache!
B61: Second, in the Windows environment the EXCEL Querytable mechanism leans heavily on bits from Internet Explorer. This means that cookie
B62: handling is also automated from the shared cache for Querytable calls. We can count on any appropriate cookies being added to any Querytable call.
B63: We only need to do our part by adding the corresponding Crumb value to complete the security for the Querytable to access Yahoo History downloads.
A65: Why this approach does not work for Macintosh:
B66: For what it is worth, the Macintosh version of the MS Office suite of products do in fact maintain a special, shared amongst themselves only, cookie cache.
B67: They automate cookie handling into and from this cache JUST for the Office products and any Querytable activity they might originate.
B69: This cache is not tied to, nor shared with, any browser that might be installed on the MAC. And I have not found anything with HTTP capabilities similar to
B70: MSXML that can work with that Office product cookie cache.
B72: When working in the MAC EXCEL environment, without that MSXML like capability against the office shared cache, l have no mechanism
B73: to obtain a crumb value that would be a valid match to the Yahoo Finance cookie that will be automatically attached to a Querytable call.
B74: This missing facility pretty much eliminates the use of Mac environment Querytables to access the new Yahoo Finance history download interface.
A76: One very low probability potential "Gottcha" for any Querytables approach.
B77: Yahoo Finance cookies typically have an assigned expiration that is a year out (to the second) from the time they are issued.
B78: Further, these cookies are unique. Yours will not match mine.
B80: If for testing purposes, instead of MSXML, you use a fresh instance of Winhttp (Fresh instance = empty cache = no cookie to automatically send)
B81: every time you call an entry level page, the Yahoo server says "What? Entry level page? With no inbound cookie? Get them a cookie!!"
B82: and will send you a new, unique cookie and will imbed the matching crumb value in the response text for each of these "no cookie attached" calls.
B84: The Gottcha: Lets say that the Yahoo Finance cookie presently in the IE cache has an expiration date and time that just happens
B85: to fall between our MSXML call to the summary page to fetch our crumb and our first (or second, or third) Querytable call.
B86: The Querytable call after the cookie expiration may fail with a cookie and crumb validation error.
B88: Querytable error reporting is atrocious. So we will not get any sort of helpful message here. Just a very generalized message like "failed to connect".
B90: The workaround is to simply go to the InputPriceData tab and click the download button.
B91: This second time through the retrieval process should not fail on a mismatch.
B92: After all, you now have a year before the new cookie that just got put into the cache expires!
A94: Calculation and Chart Worksheet Usage Comments:
C95: In General, Items in Bolded BLUE are items you may freely change to play what-if games.
C96: Be sure to have a backup copy of the spreadsheet before you alter anything else.
A98: Features carried forward from the June 2016 version of my T-Tips Template
A99: Added a pair of buttons near cell F12 that will allow the user to step the charting window forward or backward one bar for each click.
A100: I find this to be a good way to test my understanding of the author's ideas as I step through the evolution of the price behavior and the indicators.
B102: First: In the "Help! I would like to plot data" area.
B103: Added button to resolve #NA problems by locating the bar in the input data with a slightly more recent date than what the user actually requested.
B104: I find this particularly useful when I have a general idea of where I want to be date wise. Now I can pick a set of dates "out of the air".
B105: If either (or both) of my date specifications fall between dates that are available in the price history,
B106: this button will resolve them to the dates of the nearest, slightly more recent input bars.
B107: I can then refine my data interval search as necessary from there.
B108: Really great when working with Weekly or Monthly studies!
C109: 2016Jun11 - added logic to the "I would like to chart.." button to detect #N/A values and terminate
C110: gracefully with a message instead of blowing up in the charting logic.
B112: Second: In the "Price Chart Windowing Controls" area. (A11 and A12)
B113: When retrieving data for a new symbol or when changing from daily to weekly or monthly data, there was the possibility that the
B114: residual settings in A11 and A12 would fall outside of the number bars available on the input data tab after the new data retrieval.
B115: In certain combinations, this could create a serious error in the chart sizing logic and crash the spreadsheet.
B116: I have taken this opportunity to update the validity checking logic used in the chart sizing macros
B117: to adjust these values as necessary so that they fall within the boundaries of the newly retrieved input data.
A118: Features carried forward from the October 2015 Traders Tips Template
B119: Improved automation: changes to any of the following will automatically initiate calculations appropriate to reflect a change.
C120: Changing either of cells A11 (pan) or A12 (zoom) will automatically initiate the same chart sizing macros that the manual
C121: "Set Chart" button uses.

Sheet InputPriceData
A1: SPDR S&P 500 ETF (SPY) -NYSEArca (Daily)
F2: Market State == > | G2: At close: | H2: 16:00:00 | I2: EST | IJ2: 241.79
A3: Request Online Yahoo History for:
A4: Symbol | B4: SPY | D4: Valid | I4: =OFFSET(I4,-2,0,1,1) -> EST
A5: From | B5: 1950-01-01 | D5: Data | AF5: Trailing 12 Div return (Cur Close)
A6: To | B6: =NOW() -> 2018-01-12T18:30:33.040 | D6: Types | E6: =VLOOKUP(B7,D7:E10,2,FALSE) -> d
A7: Data Type | B7: Daily | D7: Daily | E7: d
B8: dbtX2VDkalH | D8: Weekly | E8: w
A9: Available Data | D9: Monthly | E9: m
A10: Bar Count: | B10: 6281 | AF10: =OFFSET(AC15,1,0,1,1)/OFFSET(N15,1,0,1,1) -> 0.01748226172
A11: From: | B11: =IF(B10<=0,"",OFFSET(B15,B10,IF(HistReqDataType="v",1,0),1,1)) -> 1993-01-29 | W11: Trailing 12 Month Dividend Returns
A12: To: | B12: =IF(B10<=0,"",IF(HistReqDataType="v",OFFSET(B15,2,1,1,1),OFFSET(B15,1,0,1,1))) -> 2018-01-05 | W12: Raw Close price on Dividend date | X12: Div Year and Month | Y12: Looking for year ago Div Year and Month | Z12: Year ago Div Date we found | AA12: row offset to year ago div Date | AB12: Same month flag | AC12: Trailing 12 Div Total | AD12: Trailing 12 Div return
Q13: Split History | S13: 0 | T13: Running | U13: Dividend History
B14: Raw Data Values | H14: Adjusted | I14: Price Adjust | J14: Vol Adjust | K14: Adjusted Values | P14: Last | Q14: Effective | R14: Shares | T14: Vol Adjust | V14: 103
A15: RelRow | B15: Date | C15: Open | D15: High | E15: Low | F15: Close | G15: Volume | H15: Close | I15: Factor | J15: Factor | K15: Open | L15: High | M15: Low | N15: Close | O15: Volume | P15: Trade | Q15: 43107 | R15: New | S15: Old | T15: 1 | U15: Date | V15: $ / Share
A16: 1 | B16: 2018-01-05 | C16: 272.51001 | D16: 273.559998 | E16: 271.950012 | F16: 273.420013 | G16: 72820100 | H16: 273.420013 | I16: =IF(F16=0,1,H16/F16) -> 1 | J16: =INDEX(OFFSET($T$15,0,0,$S$13+1,1),MATCH(B16,OFFSET($Q$15,0,0,$S$13+1,1),-1)) -> 1 | K16: =ROUND($I16*C16,2) -> 272.51 | L16: =ROUND($I16*D16,2) -> 273.56 | M16: 271.95 | N16: 273.42 | O16: =G16*J16 -> 72820100 | U16: 2017-09-15 | V16: 1.235 | W16: =(INDEX(OFFSET($F$15,1,0,$B$10,1),MATCH(U16,OFFSET($B$15,1,0,$B$10,1),-1))) -> 249.190002 | X16: =YEAR(U16)&RIGHT("0"&MONTH(U16),2) -> 201709 | Y16: =YEAR(U16)-1&RIGHT("0"&MONTH(U16),2) -> 201609 | Z16: =OFFSET(U15,AA16,0,1,1) -> 2016-09-16 | AA16: =MATCH(Y16,OFFSET($X$15,A16,0,$V$14+1-A16,1),-1) -> 5 | AB16: =IF(OR(AND(YEAR(U16)=YEAR(Z16),MONTH(U16)=MONTH(Z16)),MONTH(U16)=MONTH(Z16)),1,0) -> 1 | AC16: =(V16+IF(AA16-AB16=0,0,IFERROR(SUM(OFFSET(V16,1,0,AA16-AB16-1,1)),0))) -> 4.78 | AD16: =AC16/(INDEX(OFFSET($F$15,1,0,$B$10,1),MATCH(U16,OFFSET($B$15,1,0,$B$10,1),-1))) -> 0.01918215001
A17: 2 | B17: 2018-01-04 | C17: 271.200012 | D17: 272.160004 | E17: 270.540009 | F17: 271.609985 | G17: 80636400 | H17: 271.609985 | I17: =IF(F17=0,1,H17/F17) -> 1 | J17: =INDEX(OFFSET($T$15,0,0,$S$13+1,1),MATCH(B17,OFFSET($Q$15,0,0,$S$13+1,1),-1)) -> 1 | K17: =ROUND($I17*C17,2) -> 271.2 | L17: =ROUND($I17*D17,2) -> 272.16 | M17: =ROUND($I17*E17,2) -> 270.54 | N17: =ROUND($I17*F17,2) -> 271.61 | O17: =G17*J17 -> 80636400 | U17: 2017-06-16 | V17: 1.183 | W17: =(INDEX(OFFSET($F$15,1,0,$B$10,1),MATCH(U17,OFFSET($B$15,1,0,$B$10,1),-1))) -> 242.639999 | X17: =YEAR(U17)&RIGHT("0"&MONTH(U17),2) -> 201706 | Y17: =YEAR(U17)-1&RIGHT("0"&MONTH(U17),2) -> 201606 | Z17: =OFFSET(U16,AA17,0,1,1) -> 2016-06-17 | AA17: =MATCH(Y17,OFFSET($X$15,A17,0,$V$14+1-A17,1),-1) -> 5 | AB17: =IF(OR(AND(YEAR(U17)=YEAR(Z17),MONTH(U17)=MONTH(Z17)),MONTH(U17)=MONTH(Z17)),1,0) -> 1 | AC17: =(V17+IF(AA17-AB17=0,0,IFERROR(SUM(OFFSET(V17,1,0,AA17-AB17-1,1)),0))) -> 4.62707 | AD17: =AC17/(INDEX(OFFSET($F$15,1,0,$B$10,1),MATCH(U17,OFFSET($B$15,1,0,$B$10,1),-1))) -> 0.0190696918
A18: 3 | B18: 2018-01-03 | C18: 268.959991 | D18: 270.640015 | E18: 268.959991 | F18: 270.470001 | G18: 90070400 | H18: 270.470001 | I18: 1 | J18: 1 | K18: 268.96 | L18: 270.64 | M18: 268.96 | N18: 270.47 | O18: 90070400 | U18: 2017-03-17 | V18: 1.033 | W18: 237.029999 | X18: 201703 | Y18: 201603 | Z18: 2016-03-18 | AA18: 5 | AB18: 1 | AC18: 4.52207 | AD18: 0.01907804927
A19: 4 | B19: 2018-01-02 | C19: 267.839996 | D19: 268.809998 | E19: 267.399994 | F19: 268.769989 | G19: 86655700 | H19: 268.769989 | I19: 1 | J19: 1 | K19: 267.84 | L19: 268.81 | M19: 267.4 | N19: 268.77 | O19: 86655700 | U19: 2016-12-16 | V19: 1.329 | W19: 225.039993 | X19: 201612 | Y19: 201512 | Z19: 2015-12-18 | AA19: 5 | AB19: 1 | AC19: 4.53907 | AD19: 0.02017005928
A20: 5 | B20: 2017-12-29 | C20: 268.529999 | D20: 268.549988 | E20: 266.640015 | F20: 266.859985 | G20: 96007400 | H20: 266.859985 | I20: 1 | J20: 1 | K20: 268.53 | L20: 268.55 | M20: 266.64 | N20: 266.86 | O20: 96007400 | U20: 2016-09-16 | V20: 1.08207 | W20: 213.369995 | X20: 201609 | Y20: 201509 | Z20: 2015-09-18 | AA20: 5 | AB20: 1 | AC20: 4.42162 | AD20: 0.02072278251
A21: 6 | B21: 2017-12-28 | C21: 267.890015 | D21: 267.920013 | E21: 267.450012 | F21: 267.869995 | G21: 45116100 | H21: 267.869995 | I21: 1 | J21: 1 | K21: 267.89 | L21: 267.92 | M21: 267.45 | N21: 267.87 | O21: 45116100 | U21: 2016-06-17 | V21: 1.078 | W21: 206.520004 | X21: 201606 | Y21: 201506 | Z21: 2015-06-19 | AA21: 5 | AB21: 1 | AC21: 4.37255 | AD21: 0.02117252525
A22: 7 | B22: 2017-12-27 | C22: 267.380005 | D22: 267.730011 | E22: 267.01001 | F22: 267.320007 | G22: 57751000 | H22: 267.320007 | I22: 1 | J22: 1 | K22: 267.38 | L22: 267.73 | M22: 267.01 | N22: 267.32 | O22: 57751000 | U22: 2016-03-18 | V22: 1.05 | W22: 204.380005 | X22: 201603 | Y22: 201503 | Z22: 2015-03-20 | AA22: 5 | AB22: 1 | AC22: 4.32455 | AD22: 0.0211593595
A23: 8 | B23: 2017-12-26 | C23: 267.049988 | D23: 267.440002 | E23: 266.890015 | F23: 267.190002 | G23: 45244400 | H23: 267.190002 | I23: 1 | J23: 1 | K23: 267.05 | L23: 267.44 | M23: 266.89 | N23: 267.19 | O23: 45244400 | U23: 2015-12-18 | V23: 1.21155 | W23: 200.020004 | X23: 201512 | Y23: 201412 | Z23: 2014-12-19 | AA23: 5 | AB23: 1 | AC23: 4.20555 | AD23: 0.02102564701
A24: 9 | B24: 2017-12-22 | C24: 267.600006 | D24: 267.640015 | E24: 266.899994 | F24: 267.51001 | G24: 78720900 | H24: 267.51001 | I24: 1 | J24: 1 | K24: 267.6 | L24: 267.64 | M24: 266.9 | N24: 267.51 | O24: 78720900 | U24: 2015-09-18 | V24: 1.033 | W24: 195.360001 | X24: 201509 | Y24: 201409 | Z24: 2014-09-19 | AA24: 5 | AB24: 1 | AC24: 4.12892 | AD24: 0.02113493028
A25: 10 | B25: 2017-12-21 | C25: 267.73999 | D25: 268.390015 | E25: 267.299988 | F25: 267.579987 | G25: 67032300 | H25: 267.579987 | I25: 1 | J25: 1 | K25: 267.74 | L25: 268.39 | M25: 267.3 | N25: 267.58 | O25: 67032300 | U25: 2015-06-19 | V25: 1.03 | W25: 210.809998 | X25: 201506 | Y25: 201406 | Z25: 2014-06-20 | AA25: 5 | AB25: 1 | AC25: 4.03511 | AD25: 0.01914098021
A26: 11 | B26: 2017-12-20 | C26: 268.269989 | D26: 268.329987 | E26: 266.690002 | F26: 267.029999 | G26: 76751500 | H26: 267.029999 | I26: 1 | J26: 1 | K26: 268.27 | L26: 268.33 | M26: 266.69 | N26: 267.03 | O26: 76751500 | U26: 2015-03-20 | V26: 0.931 | W26: 210.410004 | X26: 201503 | Y26: 201403 | Z26: 2014-03-21 | AA26: 5 | AB26: 1 | AC26: 3.9418 | AD26: 0.01873390012
A27: 12 | B27: 2017-12-19 | C27: 268.480011 | D27: 268.529999 | E27: 267.089996 | F27: 267.170013 | G27: 82382900 | H27: 267.170013 | I27: 1 | J27: 1 | K27: 268.48 | L27: 268.53 | M27: 267.09 | N27: 267.17 | O27: 82382900 | U27: 2014-12-19 | V27: 1.13492 | W27: 206.520004 | X27: 201412 | Y27: 201312 | Z27: 2013-12-20 | AA27: 5 | AB27: 1 | AC27: 3.83541 | AD27: 0.01857161498
A28: 13 | B28: 2017-12-18 | C28: 268.100006 | D28: 268.600006 | E28: 267.980011 | F28: 268.200012 | G28: 83653600 | H28: 268.200012 | I28: 1 | J28: 1 | K28: 268.1 | L28: 268.6 | M28: 267.98 | N28: 268.2 | O28: 83653600 | U28: 2014-09-19 | V28: 0.93919 | W28: 200.699997 | X28: 201409 | Y28: 201309 | Z28: 2013-09-20 | AA28: 5 | AB28: 1 | AC28: 3.68074 | AD28: 0.01833951198
A29: 14 | B29: 2017-12-15 | C29: 265.450012 | D29: 267.040009 | E29: 265.390015 | F29: 266.51001 | G29: 144610300 | H29: 266.51001 | I29: 1 | J29: 1 | K29: 265.45 | L29: 267.04 | M29: 265.39 | N29: 266.51 | O29: 144610300 | U29: 2014-06-20 | V29: 0.93669 | W29: 195.940002 | X29: 201406 | Y29: 201306 | Z29: 2013-06-21 | AA29: 5 | AB29: 1 | AC29: 3.5795 | AD29: 0.01826834727
A30: 15 | B30: 2017-12-14 | C30: 267.089996 | D30: 267.220001 | E30: 265.600006 | F30: 265.660004 | G30: 100666700 | H30: 265.660004 | I30: 1 | J30: 1 | K30: 267.09 | L30: 267.22 | M30: 265.6 | N30: 265.66 | O30: 100666700 | U30: 2014-03-21 | V30: 0.82461 | W30: 186.199997 | X30: 201403 | Y30: 201303 | Z30: 2013-03-15 | AA30: 5 | AB30: 1 | AC30: 3.48181 | AD30: 0.01869930213
A31: 16 | B31: 2017-12-13 | C31: 267.059998 | D31: 267.559998 | E31: 266.649994 | F31: 266.75 | G31: 102905400 | H31: 266.75 | I31: 1 | J31: 1 | K31: 267.06 | L31: 267.56 | M31: 266.65 | N31: 266.75 | O31: 102905400 | U31: 2013-12-20 | V31: 0.98025 | W31: 181.559998 | X31: 201312 | Y31: 201212 | Z31: 2012-12-21 | AA31: 5 | AB31: 1 | AC31: 3.3512 | AD31: 0.01845781029
A32: 17 | B32: 2017-12-12 | C32: 267.209991 | D32: 267.320007 | E32: 266.350006 | F32: 266.779999 | G32: 85195800 | H32: 266.779999 | I32: 1 | J32: 1 | K32: 267.21 | L32: 267.32 | M32: 266.35 | N32: 266.78 | O32: 85195800 | U32: 2013-09-20 | V32: 0.83795 | W32: 170.720001 | X32: 201309 | Y32: 201209 | Z32: 2012-09-21 | AA32: 5 | AB32: 1 | AC32: 3.39295 | AD32: 0.01987435555
A33: 18 | B33: 2017-12-11 | C33: 266.309998 | D33: 266.380005 | E33: 265.480011 | F33: 266.309998 | G33: 83077500 | H33: 266.309998 | I33: 1 | J33: 1 | K33: 266.31 | L33: 266.38 | M33: 265.48 | N33: 266.31 | O33: 83077500 | U33: 2013-06-21 | V33: 0.839 | W33: 159.070007 | X33: 201306 | Y33: 201206 | Z33: 2012-06-15 | AA33: 5 | AB33: 1 | AC33: 3.334 | AD33: 0.02095932516
A34: 19 | B34: 2017-12-08 | C34: 265.160004 | D34: 265.519989 | E34: 264.029999 | F34: 265.51001 | G34: 76563900 | H34: 265.51001 | I34: 1 | J34: 1 | K34: 265.16 | L34: 265.52 | M34: 264.03 | N34: 265.51 | O34: 76563900 | U34: 2013-03-15 | V34: 0.694 | W34: 155.830002 | X34: 201303 | Y34: 201203 | Z34: 2012-03-16 | AA34: 5 | AB34: 1 | AC34: 3.183 | AD34: 0.02042610511
A35: 20 | B35: 2017-12-07 | C35: 264.070007 | D35: 264.429993 | E35: 262.940002 | F35: 264.070007 | G35: 77218600 | H35: 264.070007 | I35: 1 | J35: 1 | K35: 264.07 | L35: 264.43 | M35: 262.94 | N35: 264.07 | O35: 77218600 | U35: 2012-12-21 | V35: 1.022 | W35: 142.789993 | X35: 201212 | Y35: 201112 | Z35: 2011-12-16 | AA35: 5 | AB35: 1 | AC35: 3.103 | AD35: 0.02173121474
A36: 21 | B36: 2017-12-06 | C36: 263.299988 | D36: 263.730011 | E36: 262.709991 | F36: 263.23999 | G36: 75898600 | H36: 263.23999 | I36: 1 | J36: 1 | K36: 263.3 | L36: 263.73 | M36: 262.71 | N36: 263.24 | O36: 75898600 | U36: 2012-09-21 | V36: 0.779 | W36: 145.869995 | X36: 201209 | Y36: 201109 | Z36: 2011-09-16 | AA36: 5 | AB36: 1 | AC36: 2.851 | AD36: 0.01954480083
A37: 22 | B37: 2017-12-05 | C37: 263.190002 | D37: 265.149994 | E37: 263.040009 | F37: 263.190002 | G37: 77994500 | H37: 263.190002 | I37: 1 | J37: 1 | K37: 263.19 | L37: 265.15 | M37: 263.04 | N37: 263.19 | O37: 77994500 | U37: 2012-06-15 | V37: 0.688 | W37: 134.139999 | X37: 201206 | Y37: 201106 | Z37: 2011-06-17 | AA37: 5 | AB37: 1 | AC37: 2.697 | AD37: 0.0201058597
A38: 23 | B38: 2017-12-04 | C38: 266.309998 | D38: 266.799988 | E38: 264.079987 | F38: 264.140015 | G38: 94040600 | H38: 264.140015 | I38: 1 | J38: 1 | K38: 266.31 | L38: 266.8 | M38: 264.08 | N38: 264.14 | O38: 94040600 | U38: 2012-03-16 | V38: 0.614 | W38: 140.300003 | X38: 201203 | Y38: 201103 | Z38: 2011-03-18 | AA38: 5 | AB38: 1 | AC38: 2.637 | AD38: 0.01879543794
A39: 24 | B39: 2017-12-01 | C39: 264.76001 | D39: 265.309998 | E39: 260.76001 | F39: 264.459991 | G39: 164390900 | H39: 264.459991 | I39: 1 | J39: 1 | K39: 264.76 | L39: 265.31 | M39: 260.76 | N39: 264.46 | O39: 164390900 | U39: 2011-12-16 | V39: 0.77 | W39: 121.589996 | X39: 201112 | Y39: 201012 | Z39: 2010-12-17 | AA39: 5 | AB39: 1 | AC39: 2.576 | AD39: 0.02118595349
A40: 25 | B40: 2017-11-30 | C40: 263.76001 | D40: 266.049988 | E40: 263.670013 | F40: 265.01001 | G40: 127894400 | H40: 265.01001 | I40: 1 | J40: 1 | K40: 263.76 | L40: 266.05 | M40: 263.67 | N40: 265.01 | O40: 127894400 | U40: 2011-09-16 | V40: 0.625 | W40: 121.519997 | X40: 201109 | Y40: 201009 | Z40: 2010-09-17 | AA40: 5 | AB40: 1 | AC40: 2.459 | AD40: 0.0202353527
A41: 26 | B41: 2017-11-29 | C41: 263.019989 | D41: 263.630005 | E41: 262.200012 | F41: 262.709991 | G41: 77512100 | H41: 262.709991 | I41: 1 | J41: 1 | K41: 263.02 | L41: 263.63 | M41: 262.2 | N41: 262.71 | O41: 77512100 | U41: 2011-06-17 | V41: 0.628 | W41: 127.050003 | X41: 201106 | Y41: 201006 | Z41: 2010-06-18 | AA41: 5 | AB41: 1 | AC41: 2.436 | AD41: 0.01917355327
A42: 27 | B42: 2017-11-28 | C42: 260.76001 | D42: 262.899994 | E42: 260.649994 | F42: 262.869995 | G42: 98971700 | H42: 262.869995 | I42: 1 | J42: 1 | K42: 260.76 | L42: 262.9 | M42: 260.65 | N42: 262.87 | O42: 98971700 | U42: 2011-03-18 | V42: 0.553 | W42: 127.760002 | X42: 201103 | Y42: 201003 | Z42: 2010-03-19 | AA42: 5 | AB42: 1 | AC42: 2.339 | AD42: 0.01830776427
A43: 28 | B43: 2017-11-27 | C43: 260.410004 | D43: 260.75 | E43: 260 | F43: 260.230011 | G43: 52274900 | H43: 260.230011 | I43: 1 | J43: 1 | K43: 260.41 | L43: 260.75 | M43: 260 | N43: 260.23 | O43: 52274900 | U43: 2010-12-17 | V43: 0.653 | W43: 124.300003 | X43: 201012 | Y43: 200912 | Z43: 2009-12-18 | AA43: 5 | AB43: 1 | AC43: 2.266 | AD43: 0.01823008806
A44: 29 | B44: 2017-11-24 | C44: 260.320007 | D44: 260.480011 | E44: 260.160004 | F44: 260.359985 | G44: 27856500 | H44: 260.359985 | I44: 1 | J44: 1 | K44: 260.32 | L44: 260.48 | M44: 260.16 | N44: 260.36 | O44: 27856500 | U44: 2010-09-17 | V44: 0.602 | W44: 112.489998 | X44: 201009 | Y44: 200909 | Z44: 2009-09-18 | AA44: 5 | AB44: 1 | AC44: 2.203 | AD44: 0.01958396337
A45: 30 | B45: 2017-11-22 | C45: 260 | D45: 260.149994 | E45: 259.570007 | F45: 259.76001 | G45: 45033400 | H45: 259.76001 | I45: 1 | J45: 1 | K45: 260 | L45: 260.15 | M45: 259.57 | N45: 259.76 | O45: 45033400 | U45: 2010-06-18 | V45: 0.531 | W45: 111.730003 | X45: 201006 | Y45: 200906 | Z45: 2009-06-19 | AA45: 5 | AB45: 1 | AC45: 2.109 | AD45: 0.01887586094
A46: 31 | B46: 2017-11-21 | C46: 259.179993 | D46: 260.200012 | E46: 258.26001 | F46: 259.98999 | G46: 69176800 | H46: 259.98999 | I46: 1 | J46: 1 | K46: 259.18 | L46: 260.2 | M46: 258.26 | N46: 259.99 | O46: 69176800 | U46: 2010-03-19 | V46: 0.48 | W46: 115.970001 | X46: 201003 | Y46: 200903 | Z46: 2009-03-20 | AA46: 5 | AB46: 1 | AC46: 2.096 | AD46: 0.01807363958
A47: 32 | B47: 2017-11-20 | C47: 258.140015 | D47: 258.519989 | E47: 257.859985 | F47: 258.299988 | G47: 48075500 | H47: 258.299988 | I47: 1 | J47: 1 | K47: 258.14 | L47: 258.52 | M47: 257.86 | N47: 258.3 | O47: 48075500 | U47: 2009-12-18 | V47: 0.59 | W47: 110.209999 | X47: 200912 | Y47: 200812 | Z47: 2008-12-19 | AA47: 5 | AB47: 1 | AC47: 2.177 | AD47: 0.01975319862
A48: 33 | B48: 2017-11-17 | C48: 258.220001 | D48: 258.589996 | E48: 257.769989 | F48: 257.859985 | G48: 75756800 | H48: 257.859985 | I48: 1 | J48: 1 | K48: 258.22 | L48: 258.59 | M48: 257.77 | N48: 257.86 | O48: 75756800 | U48: 2009-09-18 | V48: 0.508 | W48: 106.720001 | X48: 200909 | Y48: 200809 | Z48: 2008-09-19 | AA48: 5 | AB48: 1 | AC48: 2.306 | AD48: 0.02160794582
A49: 34 | B49: 2017-11-16 | C49: 257.519989 | D49: 259.040009 | E49: 257.470001 | F49: 258.619995 | G49: 67777000 | H49: 258.619995 | I49: 1 | J49: 1 | K49: 257.52 | L49: 259.04 | M49: 257.47 | N49: 258.62 | O49: 67777000 | U49: 2009-06-19 | V49: 0.518 | W49: 92.040001 | X49: 200906 | Y49: 200806 | Z49: 2008-06-20 | AA49: 5 | AB49: 1 | AC49: 2.489 | AD49: 0.02704258988
A50: 35 | B50: 2017-11-15 | C50: 256.619995 | D50: 257.220001 | E50: 255.630005 | F50: 256.440002 | G50: 80811500 | H50: 256.440002 | I50: 1 | J50: 1 | K50: 256.62 | L50: 257.22 | M50: 255.63 | N50: 256.44 | O50: 80811500 | U50: 2009-03-20 | V50: 0.561 | W50: 76.709999 | X50: 200903 | Y50: 200803 | Z50: 2008-03-20 | AA50: 5 | AB50: 1 | AC50: 2.64 | AD50: 0.03441533091
A51: 36 | B51: 2017-11-14 | C51: 257.410004 | D51: 257.850006 | E51: 256.519989 | F51: 257.730011 | G51: 61315200 | H51: 257.730011 | I51: 1 | J51: 1 | K51: 257.41 | L51: 257.85 | M51: 256.52 | N51: 257.73 | O51: 61315200 | U51: 2008-12-19 | V51: 0.719 | W51: 88.190002 | X51: 200812 | Y51: 200712 | Z51: 2007-12-21 | AA51: 5 | AB51: 1 | AC51: 2.721 | AD51: 0.0308538376
A52: 37 | B52: 2017-11-13 | C52: 257.309998 | D52: 258.589996 | E52: 257.269989 | F52: 258.329987 | G52: 50228600 | H52: 258.329987 | I52: 1 | J52: 1 | K52: 257.31 | L52: 258.59 | M52: 257.27 | N52: 258.33 | O52: 50228600 | U52: 2008-09-19 | V52: 0.691 | W52: 124.120003 | X52: 200809 | Y52: 200709 | Z52: 2007-09-21 | AA52: 5 | AB52: 1 | AC52: 2.777 | AD52: 0.02237350897
A53: 38 | B53: 2017-11-10 | C53: 257.730011 | D53: 258.290009 | E53: 257.369995 | F53: 258.089996 | G53: 59984700 | H53: 258.089996 | I53: 1 | J53: 1 | K53: 257.73 | L53: 258.29 | M53: 257.37 | N53: 258.09 | O53: 59984700 | U53: 2008-06-20 | V53: 0.669 | W53: 131.580002 | X53: 200806 | Y53: 200706 | Z53: 2007-06-15 | AA53: 5 | AB53: 1 | AC53: 2.805 | AD53: 0.02131782913
A54: 39 | B54: 2017-11-09 | C54: 257.730011 | D54: 258.390015 | E54: 256.359985 | F54: 258.170013 | G54: 95085500 | H54: 258.170013 | I54: 1 | J54: 1 | K54: 257.73 | L54: 258.39 | M54: 256.36 | N54: 258.17 | O54: 95085500 | U54: 2008-03-20 | V54: 0.642 | W54: 132.080002 | X54: 200803 | Y54: 200703 | Z54: 2007-03-16 | AA54: 5 | AB54: 1 | AC54: 2.792 | AD54: 0.0211387035
A55: 40 | B55: 2017-11-08 | C55: 258.470001 | D55: 259.220001 | E55: 258.149994 | F55: 259.109985 | G55: 50469600 | H55: 259.109985 | I55: 1 | J55: 1 | K55: 258.47 | L55: 259.22 | M55: 258.15 | N55: 259.11 | O55: 50469600 | U55: 2007-12-21 | V55: 0.775 | W55: 148.130005 | X55: 200712 | Y55: 200612 | Z55: 2006-12-15 | AA55: 5 | AB55: 1 | AC55: 2.701 | AD55: 0.01823398305
A56: 41 | B56: 2017-11-07 | C56: 258.970001 | D56: 259.350006 | E56: 258.089996 | F56: 258.670013 | G56: 57502200 | H56: 258.670013 | I56: 1 | J56: 1 | K56: 258.97 | L56: 259.35 | M56: 258.09 | N56: 258.67 | O56: 57502200 | U56: 2007-09-21 | V56: 0.719 | W56: 151.970001 | X56: 200709 | Y56: 200609 | Z56: 2006-09-15 | AA56: 5 | AB56: 1 | AC56: 2.719 | AD56: 0.01789168903
A57: 42 | B57: 2017-11-06 | C57: 258.299988 | D57: 259 | E57: 258.220001 | F57: 258.850006 | G57: 49652600 | H57: 258.850006 | I57: 1 | J57: 1 | K57: 258.3 | L57: 259 | M57: 258.22 | N57: 258.85 | O57: 49652600 | U57: 2007-06-15 | V57: 0.656 | W57: 153.070007 | X57: 200706 | Y57: 200606 | Z57: 2006-06-16 | AA57: 5 | AB57: 1 | AC57: 2.579 | AD57: 0.01684849992
A58: 43 | B58: 2017-11-03 | C58: 257.769989 | D58: 258.5 | E58: 257.299988 | F58: 258.450012 | G58: 59589700 | H58: 258.450012 | I58: 1 | J58: 1 | K58: 257.77 | L58: 258.5 | M58: 257.3 | N58: 258.45 | O58: 59589700 | U58: 2007-03-16 | V58: 0.551 | W58: 138.529999 | X58: 200703 | Y58: 200603 | Z58: 2006-03-17 | AA58: 5 | AB58: 1 | AC58: 2.478 | AD58: 0.01788782226
A59: 44 | B59: 2017-11-02 | C59: 257.410004 | D59: 257.75 | E59: 256.190002 | F59: 257.589996 | G59: 56449500 | H59: 257.589996 | I59: 1 | J59: 1 | K59: 257.41 | L59: 257.75 | M59: 256.19 | N59: 257.59 | O59: 56449500 | U59: 2006-12-15 | V59: 0.793 | W59: 142.339996 | X59: 200612 | Y59: 200512 | Z59: 2005-12-16 | AA59: 5 | AB59: 1 | AC59: 2.446 | AD59: 0.01718420731
A60: 45 | B60: 2017-11-01 | C60: 258.040009 | D60: 258.429993 | E60: 257.070007 | F60: 257.48999 | G60: 54202700 | H60: 257.48999 | I60: 1 | J60: 1 | K60: 258.04 | L60: 258.43 | M60: 257.07 | N60: 257.49 | O60: 54202700 | U60: 2006-09-15 | V60: 0.579 | W60: 131.960007 | X60: 200609 | Y60: 200509 | Z60: 2005-09-16 | AA60: 5 | AB60: 1 | AC60: 2.325 | AD60: 0.01761897451
A61: 46 | B61: 2017-10-31 | C61: 257.179993 | D61: 257.440002 | E61: 256.809998 | F61: 257.149994 | G61: 60304800 | H61: 257.149994 | I61: 1 | J61: 1 | K61: 257.18 | L61: 257.44 | M61: 256.81 | N61: 257.15 | O61: 60304800 | U61: 2006-06-16 | V61: 0.555 | W61: 124.650002 | X61: 200606 | Y61: 200506 | Z61: 2005-06-17 | AA61: 5 | AB61: 1 | AC61: 2.268 | AD61: 0.01819494556
A62: 47 | B62: 2017-10-30 | C62: 256.470001 | D62: 257.600006 | E62: 256.410004 | F62: 256.75 | G62: 54285700 | H62: 256.75 | I62: 1 | J62: 1 | K62: 256.47 | L62: 257.6 | M62: 256.41 | N62: 256.75 | O62: 54285700 | U62: 2006-03-17 | V62: 0.519 | W62: 130.619995 | X62: 200603 | Y62: 200503 | Z62: 2005-03-18 | AA62: 5 | AB62: 1 | AC62: 2.201 | AD62: 0.0168504064
A63: 48 | B63: 2017-10-27 | C63: 256.470001 | D63: 257.890015 | E63: 255.630005 | F63: 257.709991 | G63: 85562500 | H63: 257.709991 | I63: 1 | J63: 1 | K63: 256.47 | L63: 257.89 | M63: 255.63 | N63: 257.71 | O63: 85562500 | U63: 2005-12-16 | V63: 0.672 | W63: 126.360001 | X63: 200512 | Y63: 200412 | Z63: 2004-12-17 | AA63: 5 | AB63: 1 | AC63: 2.149 | AD63: 0.01700696409
A64: 49 | B64: 2017-10-26 | C64: 255.990005 | D64: 256.299988 | E64: 255.479996 | F64: 255.619995 | G64: 69798000 | H64: 255.619995 | I64: 1 | J64: 1 | K64: 255.99 | L64: 256.3 | M64: 255.48 | N64: 255.62 | O64: 69798000 | U64: 2005-09-16 | V64: 0.522 | W64: 123.5 | X64: 200509 | Y64: 200409 | Z64: 2004-09-17 | AA64: 6 | AB64: 1 | AC64: 2.396 | AD64: 0.01940080972
A65: 50 | B65: 2017-10-25 | C65: 256.179993 | D65: 256.309998 | E65: 254 | F65: 255.289993 | G65: 103715300 | H65: 255.289993 | I65: 1 | J65: 1 | K65: 256.18 | L65: 256.31 | M65: 254 | N65: 255.29 | O65: 103715300 | U65: 2005-06-17 | V65: 0.488 | W65: 121.360001 | X65: 200506 | Y65: 200406 | Z65: 2004-06-18 | AA65: 6 | AB65: 1 | AC65: 2.343 | AD65: 0.01930619628
A66: 51 | B66: 2017-10-24 | C66: 256.600006 | D66: 256.829987 | E66: 256.149994 | F66: 256.559998 | G66: 66935900 | H66: 256.559998 | I66: 1 | J66: 1 | K66: 256.6 | L66: 256.83 | M66: 256.15 | N66: 256.56 | O66: 66935900 | U66: 2005-03-18 | V66: 0.467 | W66: 118.540001 | X66: 200503 | Y66: 200403 | Z66: 2004-03-19 | AA66: 6 | AB66: 1 | AC66: 2.269 | AD66: 0.01914121799
A67: 52 | B67: 2017-10-23 | C67: 257.480011 | D67: 257.51001 | E67: 256.019989 | F67: 256.109985 | G67: 63915300 | H67: 256.109985 | I67: 1 | J67: 1 | K67: 257.48 | L67: 257.51 | M67: 256.02 | N67: 256.11 | O67: 63915300 | U67: 2004-12-17 | V67: 0.568 | W67: 119.440002 | X67: 200412 | Y67: 200312 | Z67: 2003-12-19 | AA67: 6 | AB67: 1 | AC67: 2.197 | AD67: 0.0183941725
A68: 53 | B68: 2017-10-20 | C68: 256.700012 | D68: 257.140015 | E68: 255.770004 | F68: 257.109985 | G68: 89176400 | H68: 257.109985 | I68: 1 | J68: 1 | K68: 256.7 | L68: 257.14 | M68: 255.77 | N68: 257.11 | O68: 89176400 | U68: 2004-11-15 | V68: 0.351 | W68: 118.730003 | X68: 200411 | Y68: 200311 | Z68: 2003-12-19 | AA68: 5 | AB68: 0 | AC68: 2.145 | AD68: 0.01806620017
A69: 54 | B69: 2017-10-19 | C69: 254.830002 | D69: 255.830002 | E69: 254.350006 | F69: 255.789993 | G69: 61903800 | H69: 255.789993 | I69: 1 | J69: 1 | K69: 254.83 | L69: 255.83 | M69: 254.35 | N69: 255.79 | O69: 61903800 | U69: 2004-09-17 | V69: 0.469 | W69: 113.150002 | X69: 200409 | Y69: 200309 | Z69: 2003-09-19 | AA69: 5 | AB69: 1 | AC69: 1.794 | AD69: 0.01585505938
A70: 55 | B70: 2017-10-18 | C70: 255.899994 | D70: 255.949997 | E70: 255.5 | F70: 255.720001 | G70: 40888300 | H70: 255.720001 | I70: 1 | J70: 1 | K70: 255.9 | L70: 255.95 | M70: 255.5 | N70: 255.72 | O70: 40888300 | U70: 2004-06-18 | V70: 0.414 | W70: 113.629997 | X70: 200406 | Y70: 200306 | Z70: 2003-06-20 | AA70: 5 | AB70: 1 | AC70: 1.725 | AD70: 0.01518085053
A71: 56 | B71: 2017-10-17 | C71: 255.229996 | D71: 255.520004 | E71: 254.979996 | F71: 255.470001 | G71: 31561000 | H71: 255.470001 | I71: 1 | J71: 1 | K71: 255.23 | L71: 255.52 | M71: 254.98 | N71: 255.47 | O71: 31561000 | U71: 2004-03-19 | V71: 0.395 | W71: 111.059998 | X71: 200403 | Y71: 200303 | Z71: 2003-03-21 | AA71: 5 | AB71: 1 | AC71: 1.671 | AD71: 0.01504592139
A72: 57 | B72: 2017-10-16 | C72: 255.210007 | D72: 255.509995 | E72: 254.820007 | F72: 255.289993 | G72: 38221700 | H72: 255.289993 | I72: 1 | J72: 1 | K72: 255.21 | L72: 255.51 | M72: 254.82 | N72: 255.29 | O72: 38221700 | U72: 2003-12-19 | V72: 0.516 | W72: 108.900002 | X72: 200312 | Y72: 200212 | Z72: 2002-12-20 | AA72: 5 | AB72: 1 | AC72: 1.63 | AD72: 0.01496786015
A73: 58 | B73: 2017-10-13 | C73: 255.139999 | D73: 255.270004 | E73: 254.639999 | F73: 254.949997 | G73: 54800400 | H73: 254.949997 | I73: 1 | J73: 1 | K73: 255.14 | L73: 255.27 | M73: 254.64 | N73: 254.95 | O73: 54800400 | U73: 2003-09-19 | V73: 0.4 | W73: 103.669998 | X73: 200309 | Y73: 200209 | Z73: 2002-09-20 | AA73: 5 | AB73: 1 | AC73: 1.55 | AD73: 0.01495128803
A74: 59 | B74: 2017-10-12 | C74: 254.660004 | D74: 255.059998 | E74: 254.369995 | F74: 254.639999 | G74: 47065100 | H74: 254.639999 | I74: 1 | J74: 1 | K74: 254.66 | L74: 255.06 | M74: 254.37 | N74: 254.64 | O74: 47065100 | U74: 2003-06-20 | V74: 0.36 | W74: 99.440002 | X74: 200306 | Y74: 200206 | Z74: 2002-06-21 | AA74: 5 | AB74: 1 | AC74: 1.528 | AD74: 0.01536604957
A75: 60 | B75: 2017-10-11 | C75: 254.509995 | D75: 255.020004 | E75: 254.320007 | F75: 255.020004 | G75: 47674300 | H75: 255.020004 | I75: 1 | J75: 1 | K75: 254.51 | L75: 255.02 | M75: 254.32 | N75: 255.02 | O75: 47674300 | U75: 2003-03-21 | V75: 0.354 | W75: 89.669998 | X75: 200303 | Y75: 200203 | Z75: 2002-03-15 | AA75: 5 | AB75: 1 | AC75: 1.521 | AD75: 0.01696219509
A76: 61 | B76: 2017-10-10 | C76: 254.600006 | D76: 255.050003 | E76: 253.979996 | F76: 254.619995 | G76: 43057400 | H76: 254.619995 | I76: 1 | J76: 1 | K76: 254.6 | L76: 255.05 | M76: 253.98 | N76: 254.62 | O76: 43057400 | U76: 2002-12-20 | V76: 0.436 | W76: 89.989998 | X76: 200212 | Y76: 200112 | Z76: 2001-12-21 | AA76: 5 | AB76: 1 | AC76: 1.498 | AD76: 0.0166462944
A77: 62 | B77: 2017-10-09 | C77: 254.630005 | D77: 254.699997 | E77: 253.649994 | F77: 253.949997 | G77: 35803100 | H77: 253.949997 | I77: 1 | J77: 1 | K77: 254.63 | L77: 254.7 | M77: 253.65 | N77: 253.95 | O77: 35803100 | U77: 2002-09-20 | V77: 0.378 | W77: 84.349998 | X77: 200209 | Y77: 200109 | Z77: 2001-09-21 | AA77: 5 | AB77: 1 | AC77: 1.455 | AD77: 0.01724955583
A78: 63 | B78: 2017-10-06 | C78: 254.149994 | D78: 254.699997 | E78: 253.850006 | F78: 254.369995 | G78: 80646000 | H78: 254.369995 | I78: 1 | J78: 1 | K78: 254.15 | L78: 254.7 | M78: 253.85 | N78: 254.37 | O78: 80646000 | U78: 2002-06-21 | V78: 0.353 | W78: 99.279999 | X78: 200206 | Y78: 200106 | Z78: 2001-06-15 | AA78: 5 | AB78: 1 | AC78: 1.446 | AD78: 0.01456486719
A79: 64 | B79: 2017-10-05 | C79: 253.539993 | D79: 254.679993 | E79: 253.199997 | F79: 254.660004 | G79: 63522800 | H79: 254.660004 | I79: 1 | J79: 1 | K79: 253.54 | L79: 254.68 | M79: 253.2 | N79: 254.66 | O79: 63522800 | U79: 2002-03-15 | V79: 0.331 | W79: 116.650002 | X79: 200203 | Y79: 200103 | Z79: 2001-03-16 | AA79: 5 | AB79: 1 | AC79: 1.439 | AD79: 0.0123360478
A80: 65 | B80: 2017-10-04 | C80: 252.690002 | D80: 253.440002 | E80: 252.559998 | F80: 253.160004 | G80: 55953600 | H80: 253.160004 | I80: 1 | J80: 1 | K80: 252.69 | L80: 253.44 | M80: 252.56 | N80: 253.16 | O80: 55953600 | U80: 2001-12-21 | V80: 0.393 | W80: 114.949997 | X80: 200112 | Y80: 200012 | Z80: 2000-12-27 | AA80: 5 | AB80: 1 | AC80: 1.424 | AD80: 0.0123879951
A81: 66 | B81: 2017-10-03 | C81: 252.320007 | D81: 252.889999 | E81: 252.229996 | F81: 252.860001 | G81: 66810200 | H81: 252.860001 | I81: =IF(F81=0,1,H81/F81) -> 1 | J81: =INDEX(OFFSET($T$15,0,0,$S$13+1,1),MATCH(B81,OFFSET($Q$15,0,0,$S$13+1,1),-1)) -> 1 | K81: =ROUND($I81*C81,2) -> 252.32 | L81: =ROUND($I81*D81,2) -> 252.89 | M81: =ROUND($I81*E81,2) -> 252.23 | N81: =ROUND($I81*F81,2) -> 252.86 | O81: =G81*J81 -> 66810200 | U81: 2001-09-21 | V81: 0.369 | W81: =(INDEX(OFFSET($F$15,1,0,$B$10,1),MATCH(U81,OFFSET($B$15,1,0,$B$10,1),-1))) -> 97.279999 | X81: =YEAR(U81)&RIGHT("0"&MONTH(U81),2) -> 200109 | Y81: =YEAR(U81)-1&RIGHT("0"&MONTH(U81),2) -> 200009 | Z81: =OFFSET(U80,AA81,0,1,1) -> 2000-09-15 | AA81: =MATCH(Y81,OFFSET($X$15,A81,0,$V$14+1-A81,1),-1) -> 6 | AB81: =IF(OR(AND(YEAR(U81)=YEAR(Z81),MONTH(U81)=MONTH(Z81)),MONTH(U81)=MONTH(Z81)),1,0) -> 1 | AC81: =(V81+IF(AA81-AB81=0,0,IFERROR(SUM(OFFSET(V81,1,0,AA81-AB81-1,1)),0))) -> 1.442 | AD81: =AC81/(INDEX(OFFSET($F$15,1,0,$B$10,1),MATCH(U81,OFFSET($B$15,1,0,$B$10,1),-1))) -> 0.01482319094
A82: 67 | B82: 2017-10-02 | C82: 251.490005 | D82: 252.320007 | E82: 251.289993 | F82: 252.320007 | G82: 59023000 | H82: 252.320007 | I82: 1 | J82: 1 | K82: 251.49 | L82: 252.32 | M82: 251.29 | N82: 252.32 | O82: 59023000 | U82: 2001-06-15 | V82: 0.346 | W82: 121.849998 | X82: 200106 | Y82: 200006 | Z82: 2000-06-16 | AA82: 7 | AB82: 1 | AC82: 1.448 | AD82: 0.01188346347
A83: 68 | B83: 2017-09-29 | C83: 250.339996 | D83: 251.320007 | E83: 250.130005 | F83: 251.229996 | G83: 85578000 | H83: 251.229996 | I83: 1 | J83: 1 | K83: 250.34 | L83: 251.32 | M83: 250.13 | N83: 251.23 | O83: 85578000 | U83: 2001-03-16 | V83: 0.316 | W83: 115.010002 | X83: 200103 | Y83: 200003 | Z83: 2000-03-17 | AA83: 7 | AB83: 1 | AC83: 1.45 | AD83: 0.01260759912
A84: 69 | B84: 2017-09-28 | C84: 249.729996 | D84: 250.440002 | E84: 249.630005 | F84: 250.350006 | G84: 44778800 | H84: 250.350006 | I84: 1 | J84: 1 | K84: 249.73 | L84: 250.44 | M84: 249.63 | N84: 250.35 | O84: 44778800 | U84: 2000-12-27 | V84: 0 | W84: 133.3125 | X84: 200012 | Y84: 199912 | Z84: 1999-12-17 | AA84: 7 | AB84: 1 | AC84: 1.505 | AD84: 0.01128926395
A85: 70 | B85: 2017-09-27 | C85: 249.880005 | D85: 250.490005 | E85: 248.869995 | F85: 250.050003 | G85: 81001400 | H85: 250.050003 | I85: 1 | J85: 1 | K85: 249.88 | L85: 250.49 | M85: 248.87 | N85: 250.05 | O85: 81001400 | U85: 2000-12-15 | V85: 0.411 | W85: 130.968704 | X85: 200012 | Y85: 199912 | Z85: 1999-12-17 | AA85: 6 | AB85: 1 | AC85: 1.505 | AD85: 0.0114912949
A86: 71 | B86: 2017-09-26 | C86: 249.419998 | D86: 249.699997 | E86: 248.809998 | F86: 249.080002 | G86: 54082000 | H86: 249.080002 | I86: 1 | J86: 1 | K86: 249.42 | L86: 249.7 | M86: 248.81 | N86: 249.08 | O86: 54082000 | U86: 2000-09-15 | V86: 0.375 | W86: 146 | X86: 200009 | Y86: 199909 | Z86: 1999-09-17 | AA86: 6 | AB86: 1 | AC86: 1.442 | AD86: 0.009876712329
A87: 72 | B87: 2017-09-25 | C87: 249.149994 | D87: 249.550003 | E87: 248.080002 | F87: 248.929993 | G87: 57064400 | H87: 248.929993 | I87: 1 | J87: 1 | K87: 249.15 | L87: 249.55 | M87: 248.08 | N87: 248.93 | O87: 57064400 | U87: 2000-09-14 | V87: 0 | W87: 149.640594 | X87: 200009 | Y87: 199909 | Z87: 1999-09-17 | AA87: 5 | AB87: 1 | AC87: 1.067 | AD87: 0.0071304181
A88: 73 | B88: 2017-09-22 | C88: 249.050003 | D88: 249.630005 | E88: 249.020004 | F88: 249.440002 | G88: 51214000 | H88: 249.440002 | I88: 1 | J88: 1 | K88: 249.05 | L88: 249.63 | M88: 249.02 | N88: 249.44 | O88: 51214000 | U88: 2000-06-16 | V88: 0.348 | W88: 146.593704 | X88: 200006 | Y88: 199906 | Z88: 1999-06-18 | AA88: 5 | AB88: 1 | AC88: 1.439 | AD88: 0.009816246952
A89: 74 | B89: 2017-09-21 | C89: 249.880005 | D89: 249.979996 | E89: 249.190002 | F89: 249.389999 | G89: 48211400 | H89: 249.389999 | I89: 1 | J89: 1 | K89: 249.88 | L89: 249.98 | M89: 249.19 | N89: 249.39 | O89: 48211400 | U89: 2000-03-17 | V89: 0.371 | W89: 146.9375 | X89: 200003 | Y89: 199903 | Z89: 1999-03-19 | AA89: 5 | AB89: 1 | AC89: 1.496 | AD89: 0.01018119949
A90: 75 | B90: 2017-09-20 | C90: 250.070007 | D90: 250.190002 | E90: 248.919998 | F90: 250.059998 | G90: 59574100 | H90: 250.059998 | I90: 1 | J90: 1 | K90: 250.07 | L90: 250.19 | M90: 248.92 | N90: 250.06 | O90: 59574100 | U90: 1999-12-17 | V90: 0.348 | W90: 142.6875 | X90: 199912 | Y90: 199812 | Z90: 1998-12-18 | AA90: 5 | AB90: 1 | AC90: 1.445 | AD90: 0.01012702584
A91: 76 | B91: 2017-09-19 | C91: 250 | D91: 250.070007 | E91: 249.600006 | F91: 249.970001 | G91: 47108100 | H91: 249.970001 | I91: 1 | J91: 1 | K91: 250 | L91: 250.07 | M91: 249.6 | N91: 249.97 | O91: 47108100 | U91: 1999-09-17 | V91: 0.372 | W91: 133.75 | X91: 199909 | Y91: 199809 | Z91: 1998-09-18 | AA91: 5 | AB91: 1 | AC91: 1.489 | AD91: 0.01113271028
A92: 77 | B92: 2017-09-18 | C92: 249.610001 | D92: 250.119995 | E92: 249.279999 | F92: 249.720001 | G92: 46235200 | H92: 249.720001 | I92: 1 | J92: 1 | K92: 249.61 | L92: 250.12 | M92: 249.28 | N92: 249.72 | O92: 46235200 | U92: 1999-06-18 | V92: 0.405 | W92: 134.3125 | X92: 199906 | Y92: 199806 | Z92: 1998-06-19 | AA92: 5 | AB92: 1 | AC92: 1.476 | AD92: 0.01098929735
A93: 78 | B93: 2017-09-15 | C93: 248.690002 | D93: 249.289993 | E93: 248.570007 | F93: 249.190002 | G93: 95432400 | H93: 249.190002 | I93: 1 | J93: 1 | K93: 248.69 | L93: 249.29 | M93: 248.57 | N93: 249.19 | O93: 95432400 | U93: 1999-03-19 | V93: 0.32 | W93: 129.6875 | X93: 199903 | Y93: 199803 | Z93: 1998-03-20 | AA93: 5 | AB93: 1 | AC93: 1.423 | AD93: 0.01097253012
A94: 79 | B94: 2017-09-14 | C94: 249.800003 | D94: 250.320007 | E94: 249.600006 | F94: 250.089996 | G94: 95446300 | H94: 248.854996 | I94: 0.9950617777 | J94: 1 | K94: 248.57 | L94: 249.08 | M94: 248.37 | N94: 248.85 | O94: 95446300 | U94: 1998-12-18 | V94: 0.392 | W94: 118.5 | X94: 199812 | Y94: 199712 | Z94: 1997-12-19 | AA94: 5 | AB94: 1 | AC94: 1.416 | AD94: 0.01194936709
A95: 80 | B95: 2017-09-13 | C95: 249.720001 | D95: 250.210007 | E95: 249.589996 | F95: 250.169998 | G95: 59228000 | H95: 248.934601 | I95: 0.99506177 | J95: 1 | K95: 248.49 | L95: 248.97 | M95: 248.36 | N95: 248.93 | O95: 59228000 | U95: 1998-09-18 | V95: 0.359 | W95: 102.093697 | X95: 199809 | Y95: 199709 | Z95: 1997-09-19 | AA95: 5 | AB95: 1 | AC95: 1.404 | AD95: 0.01375207325
A96: 81 | B96: 2017-09-12 | C96: 249.630005 | D96: 250.089996 | E96: 249.419998 | F96: 250.050003 | G96: 56896000 | H96: 248.815201 | I96: 0.9950617797 | J96: 1 | K96: 248.4 | L96: 248.85 | M96: 248.19 | N96: 248.82 | O96: 56896000 | U96: 1998-06-19 | V96: 0.352 | W96: 110.0625 | X96: 199806 | Y96: 199706 | Z96: 1997-06-20 | AA96: 5 | AB96: 1 | AC96: 1.393 | AD96: 0.0126564452
A97: 82 | B97: 2017-09-11 | C97: 248.039993 | D97: 249.300003 | E97: 248.020004 | F97: 249.210007 | G97: 71364800 | H97: 247.97934 | I97: 0.9950617272 | J97: 1 | K97: 246.82 | L97: 248.07 | M97: 246.8 | N97: 247.98 | O97: 71364800 | U97: 1998-03-20 | V97: 0.313 | W97: 109.875 | X97: 199803 | Y97: 199703 | Z97: 1997-03-21 | AA97: 5 | AB97: 1 | AC97: 1.391 | AD97: 0.01265984073
A98: 83 | B98: 2017-09-08 | C98: 246.539993 | D98: 247.110001 | E98: 246.300003 | F98: 246.580002 | G98: 63832800 | H98: 245.362335 | I98: 0.9950617772 | J98: 1 | K98: 245.32 | L98: 245.89 | M98: 245.08 | N98: 245.36 | O98: 63832800 | U98: 1997-12-19 | V98: 0.38 | W98: 94.781197 | X98: 199712 | Y98: 199612 | Z98: 1996-12-20 | AA98: 5 | AB98: 1 | AC98: 1.377 | AD98: 0.01452819803
A99: 84 | B99: 2017-09-07 | C99: 247.25 | D99: 247.270004 | E99: 246.399994 | F99: 246.869995 | G99: 58034700 | H99: 245.650894 | I99: 0.9950617693 | J99: 1 | K99: 246.03 | L99: 246.05 | M99: 245.18 | N99: 245.65 | O99: 58034700 | U99: 1997-09-19 | V99: 0.348 | W99: 95.031197 | X99: 199709 | Y99: 199609 | Z99: 1996-09-20 | AA99: 5 | AB99: 1 | AC99: 1.364 | AD99: 0.0143531813
A100: 85 | B100: 2017-09-06 | C100: 246.839996 | D100: 247.279999 | E100: 246.229996 | F100: 246.899994 | G100: 57916900 | H100: 245.68074 | I100: 0.9950617496 | J100: 1 | K100: 245.62 | L100: 246.06 | M100: 245.01 | N100: 245.68 | O100: 57916900 | U100: 1997-06-20 | V100: 0.35 | W100: 89.578102 | X100: 199706 | Y100: 199606 | Z100: 1996-06-21 | AA100: 5 | AB100: 1 | AC100: 1.368 | AD100: 0.01527158948
A101: 86 | B101: 2017-09-05 | C101: 247.259995 | D101: 247.520004 | E101: 244.949997 | F101: 246.059998 | G101: 91398800 | H101: 244.844894 | I101: 0.9950617573 | J101: 1 | K101: 246.04 | L101: 246.3 | M101: 243.74 | N101: 244.84 | O101: 91398800 | U101: 1997-03-21 | V101: 0.299 | W101: 78.4375 | X101: 199703 | Y101: 199603 | Z101: 1996-03-15 | AA101: 5 | AB101: 1 | AC101: 1.369 | AD101: 0.01745338645
A102: 87 | B102: 2017-09-01 | C102: 247.919998 | D102: 248.330002 | E102: 247.669998 | F102: 247.839996 | G102: 62007000 | H102: 246.616104 | I102: 0.9950617656 | J102: 1 | K102: 246.7 | L102: 247.1 | M102: 246.45 | N102: 246.62 | O102: 62007000 | U102: 1996-12-20 | V102: 0.367 | W102: 74.843697 | X102: 199612 | Y102: 199512 | Z102: 1995-12-15 | AA102: 5 | AB102: 1 | AC102: 1.355 | AD102: 0.01810439695
A103: 88 | B103: 2017-08-31 | C103: 246.720001 | D103: 247.770004 | E103: 246.050003 | F103: 247.490005 | G103: 103803900 | H103: 246.267838 | I103: 0.9950617521 | J103: 1 | K103: 245.5 | L103: 246.55 | M103: 244.83 | N103: 246.27 | O103: 103803900 | U103: 1996-09-20 | V103: 0.352 | W103: 68.640602 | X103: 199609 | Y103: 199509 | Z103: 1995-09-15 | AA103: 5 | AB103: 1 | AC103: 1.37 | AD103: 0.01995903241
A104: 89 | B104: 2017-08-30 | C104: 244.830002 | D104: 246.320007 | E104: 244.619995 | F104: 246.009995 | G104: 62030800 | H104: 244.795135 | I104: 0.9950617454 | J104: 1 | K104: 243.62 | L104: 245.1 | M104: 243.41 | N104: 244.8 | O104: 62030800 | U104: 1996-06-21 | V104: 0.351 | W104: 66.8125 | X104: 199606 | Y104: 199506 | Z104: 1995-06-16 | AA104: 5 | AB104: 1 | AC104: 1.33 | AD104: 0.01990645463
A105: 90 | B105: 2017-08-29 | C105: 243.059998 | D105: 245.149994 | E105: 242.929993 | F105: 244.850006 | G105: 51135700 | H105: 243.640884 | I105: 0.9950617849 | J105: 1 | K105: 241.86 | L105: 243.94 | M105: 241.73 | N105: 243.64 | O105: 51135700 | U105: 1996-03-15 | V105: 0.285 | W105: 64.125 | X105: 199603 | Y105: 199503 | Z105: 1995-03-17 | AA105: 5 | AB105: 1 | AC105: 1.295 | AD105: 0.02019493177
A106: 91 | B106: 2017-08-28 | C106: 245.169998 | D106: 245.199997 | E106: 244.089996 | F106: 244.570007 | G106: 40565600 | H106: 243.362259 | I106: 0.9950617493 | J106: 1 | K106: 243.96 | L106: 243.99 | M106: 242.88 | N106: 243.36 | O106: 40565600 | U106: 1995-12-15 | V106: 0.382 | W106: 61.8125 | X106: 199512 | Y106: 199412 | Z106: 1994-12-16 | AA106: 5 | AB106: 1 | AC106: 1.278 | AD106: 0.02067542973
A107: 92 | B107: 2017-08-25 | C107: 244.899994 | D107: 245.610001 | E107: 244.389999 | F107: 244.559998 | G107: 64445900 | H107: 243.352295 | I107: 0.9950617312 | J107: 1 | K107: 243.69 | L107: 244.4 | M107: 243.18 | N107: 243.35 | O107: 64445900 | U107: 1995-09-15 | V107: 0.312 | W107: 58.4375 | X107: 199509 | Y107: 199409 | Z107: 1994-09-19 | AA107: 5 | AB107: 1 | AC107: 1.259 | AD107: 0.02154438503
A108: 93 | B108: 2017-08-24 | C108: 245 | D108: 245.179993 | E108: 243.75 | F108: 243.990005 | G108: 49730500 | H108: 242.785126 | I108: 0.995061769 | J108: 1 | K108: 243.79 | L108: 243.97 | M108: 242.55 | N108: 242.79 | O108: 49730500 | U108: 1995-06-16 | V108: 0.316 | W108: 53.9687 | X108: 199506 | Y108: 199406 | Z108: 1994-06-17 | AA108: 6 | AB108: 1 | AC108: 1.235 | AD108: 0.0228836344
A109: 94 | B109: 2017-08-23 | C109: 244.330002 | D109: 245.050003 | E109: 244.160004 | F109: 244.559998 | G109: 50203800 | H109: 243.352295 | I109: 0.9950617312 | J109: 1 | K109: 243.12 | L109: 243.84 | M109: 242.95 | N109: 243.35 | O109: 50203800 | U109: 1995-03-17 | V109: 0.268 | W109: 49.5625 | X109: 199503 | Y109: 199403 | Z109: 1994-03-18 | AA109: 6 | AB109: 1 | AC109: 1.224 | AD109: 0.02469609079
A110: 95 | B110: 2017-08-22 | C110: 243.570007 | D110: 245.619995 | E110: 243.550003 | F110: 245.440002 | G110: 63140100 | H110: 244.227966 | I110: 0.995061783 | J110: 1 | K110: 242.37 | L110: 244.41 | M110: 242.35 | N110: 244.23 | O110: 63140100 | U110: 1994-12-16 | V110: 0.363 | W110: 45.75 | X110: 199412 | Y110: 199312 | Z110: 1993-12-17 | AA110: 6 | AB110: 1 | AC110: 1.227 | AD110: 0.02681967213
A111: 96 | B111: 2017-08-21 | C111: 242.639999 | D111: 243.199997 | E111: 241.830002 | F111: 242.899994 | G111: 65469700 | H111: 241.7005 | I111: 0.9950617784 | J111: 1 | K111: 241.44 | L111: 242 | M111: 240.64 | N111: 241.7 | O111: 65469700 | U111: 1994-09-19 | V111: 0 | W111: 47.0625 | X111: 199409 | Y111: 199309 | Z111: 1993-09-17 | AA111: 6 | AB111: 1 | AC111: 1.181 | AD111: 0.02509428951
A112: 97 | B112: 2017-08-18 | C112: 242.899994 | D112: 244.190002 | E112: 242.199997 | F112: 242.710007 | G112: 136748000 | H112: 241.511444 | I112: 0.9950617487 | J112: 1 | K112: 241.7 | L112: 242.98 | M112: 241 | N112: 241.51 | O112: 136748000 | U112: 1994-09-16 | V112: 0.288 | W112: 47.015598 | X112: 199409 | Y112: 199309 | Z112: 1993-09-17 | AA112: 5 | AB112: 1 | AC112: 1.181 | AD112: 0.02511932317
A113: 98 | B113: 2017-08-17 | C113: 246.240005 | D113: 246.600006 | E113: 243.089996 | F113: 243.089996 | G113: 128490400 | H113: 241.889557 | I113: 0.9950617507 | J113: 1 | K113: 245.02 | L113: 245.38 | M113: 241.89 | N113: 241.89 | O113: 128490400 | U113: 1994-06-17 | V113: 0.305 | W113: 45.875 | X113: 199406 | Y113: 199306 | Z113: 1993-06-18 | AA113: 5 | AB113: 1 | AC113: 1.179 | AD113: 0.02570027248
A114: 99 | B114: 2017-08-16 | C114: 247.110001 | D114: 247.570007 | E114: 246.449997 | F114: 246.940002 | G114: 56715500 | H114: 245.720551 | I114: 0.9950617519 | J114: 1 | K114: 245.89 | L114: 246.35 | M114: 245.23 | N114: 245.72 | O114: 56715500 | U114: 1994-03-18 | V114: 0.271 | W114: 46.9687 | X114: 199403 | Y114: 199303 | Z114: 1993-03-19 | AA114: 5 | AB114: 1 | AC114: 1.192 | AD114: 0.0253786032
A115: 100 | B115: 2017-08-15 | C115: 246.979996 | D115: 247 | E115: 246.160004 | F115: 246.509995 | G115: 55242700 | H115: 245.292664 | I115: 0.9950617378 | J115: 1 | K115: 245.76 | L115: 245.78 | M115: 244.94 | N115: 245.29 | O115: 55242700 | U115: 1993-12-17 | V115: 0.317 | W115: 46.5625 | X115: 199312 | Y115: 199212 | Z115: 1993-03-19 | AA115: 4 | AB115: 0 | AC115: 1.134 | AD115: 0.02435436242
A116: 101 | B116: 2017-08-14 | C116: 245.589996 | D116: 246.789993 | E116: 245.550003 | F116: 246.539993 | G116: 72139000 | H116: 245.322525 | I116: 0.9950617829 | J116: 1 | K116: 244.38 | L116: 245.57 | M116: 244.34 | N116: 245.32 | O116: 72139000 | U116: 1993-09-17 | V116: 0.286 | W116: 45.8125 | X116: 199309 | Y116: 199209 | Z116: 1993-03-19 | AA116: 3 | AB116: 0 | AC116: 0.817 | AD116: 0.01783356071
A117: 102 | B117: 2017-08-11 | C117: 244.020004 | D117: 244.800003 | E117: 243.75 | F117: 244.119995 | G117: 74869900 | H117: 242.914474 | I117: 0.9950617687 | J117: 1 | K117: 242.81 | L117: 243.59 | M117: 242.55 | N117: 242.91 | O117: 74869900 | U117: 1993-06-18 | V117: 0.318 | W117: 44.5 | X117: 199306 | Y117: 199206 | Z117: 1993-03-19 | AA117: 2 | AB117: 0 | AC117: 0.531 | AD117: 0.01193258427
A118: 103 | B118: 2017-08-10 | C118: 246.289993 | D118: 246.440002 | E118: 243.699997 | F118: 243.759995 | G118: 120479500 | H118: 242.556244 | I118: 0.9950617369 | J118: 1 | K118: 245.07 | L118: 245.22 | M118: 242.5 | N118: 242.56 | O118: 120479500 | U118: 1993-03-19 | V118: 0.213 | W118: 45.0312 | X118: 199303 | Y118: 199203 | Z118: 1993-03-19 | AA118: 1 | AB118: 1 | AC118: 0.213 | AD118: 0.004730053829
A119: 104 | B119: 2017-08-09 | C119: 246.470001 | D119: 247.309998 | E119: 246.059998 | F119: 247.25 | G119: 62632600 | H119: 246.029022 | I119: 0.9950617674 | J119: 1 | K119: 245.25 | L119: 246.09 | M119: 244.84 | N119: 246.03 | O119: 62632600
A120: 105 | B120: 2017-08-08 | C120: 247.509995 | D120: 248.910004 | E120: 246.830002 | F120: 247.259995 | G120: 61719400 | H120: 246.038971 | I120: 0.995061781 | J120: 1 | K120: 246.29 | L120: 247.68 | M120: 245.61 | N120: 246.04 | O120: 61719400
A121: 106 | B121: 2017-08-07 | C121: 247.490005 | D121: 247.869995 | E121: 247.369995 | F121: 247.869995 | G121: 31995000 | H121: 246.64595 | I121: 0.995061746 | J121: 1 | K121: 246.27 | L121: 246.65 | M121: 246.15 | N121: 246.65 | O121: 31995000
A122: 107 | B122: 2017-08-04 | C122: 247.520004 | D122: 247.789993 | E122: 246.970001 | F122: 247.410004 | G122: 60191800 | H122: 246.188232 | I122: 0.9950617518 | J122: 1 | K122: 246.3 | L122: 246.57 | M122: 245.75 | N122: 246.19 | O122: 60191800
A123: 108 | B123: 2017-08-03 | C123: 247.309998 | D123: 247.339996 | E123: 246.639999 | F123: 246.960007 | G123: 40856000 | H123: 245.740463 | I123: 0.9950617753 | J123: 1 | K123: 246.09 | L123: 246.12 | M123: 245.42 | N123: 245.74 | O123: 40856000
A124: 109 | B124: 2017-08-02 | C124: 247.470001 | D124: 247.600006 | E124: 246.369995 | F124: 247.440002 | G124: 47211200 | H124: 246.218079 | I124: 0.9950617403 | J124: 1 | K124: 246.25 | L124: 246.38 | M124: 245.15 | N124: 246.22 | O124: 47211200
A125: 110 | B125: 2017-08-01 | C125: 247.460007 | D125: 247.5 | E125: 246.720001 | F125: 247.320007 | G125: 55050400 | H125: 246.098679 | I125: 0.9950617501 | J125: 1 | K125: 246.24 | L125: 246.28 | M125: 245.5 | N125: 246.1 | O125: 55050400
A126: 111 | B126: 2017-07-31 | C126: 247.369995 | D126: 247.479996 | E126: 246.529999 | F126: 246.770004 | G126: 65838700 | H126: 245.551392 | I126: 0.9950617499 | J126: 1 | K126: 246.15 | L126: 246.26 | M126: 245.31 | N126: 245.55 | O126: 65838700
A127: 112 | B127: 2017-07-28 | C127: 246.649994 | D127: 247.059998 | E127: 246.130005 | F127: 246.910004 | G127: 50088400 | H127: 245.690704 | I127: 0.9950617635 | J127: 1 | K127: 245.43 | L127: 245.84 | M127: 244.91 | N127: 245.69 | O127: 50088400
A128: 113 | B128: 2017-07-27 | C128: 247.960007 | D128: 248 | E128: 245.679993 | F128: 247.199997 | G128: 70766600 | H128: 245.979263 | I128: 0.9950617556 | J128: 1 | K128: 246.74 | L128: 246.78 | M128: 244.47 | N128: 245.98 | O128: 70766600
A129: 114 | B129: 2017-07-26 | C129: 247.75 | D129: 247.789993 | E129: 247.130005 | F129: 247.429993 | G129: 47575400 | H129: 246.20813 | I129: 0.995061783 | J129: 1 | K129: 246.53 | L129: 246.57 | M129: 245.91 | N129: 246.21 | O129: 47575400
A130: 115 | B130: 2017-07-25 | C130: 247.679993 | D130: 247.800003 | E130: 247.160004 | F130: 247.419998 | G130: 54915600 | H130: 246.198181 | I130: 0.9950617694 | J130: 1 | K130: 246.46 | L130: 246.58 | M130: 245.94 | N130: 246.2 | O130: 54915600
A131: 116 | B131: 2017-07-24 | C131: 246.789993 | D131: 246.979996 | E131: 246.279999 | F131: 246.820007 | G131: 46622300 | H131: 245.601151 | I131: 0.9950617617 | J131: 1 | K131: 245.57 | L131: 245.76 | M131: 245.06 | N131: 245.6 | O131: 46622300
A132: 117 | B132: 2017-07-21 | C132: 246.440002 | D132: 246.910004 | E132: 246.179993 | F132: 246.880005 | G132: 82340800 | H132: 245.660858 | I132: 0.9950617832 | J132: 1 | K132: 245.22 | L132: 245.69 | M132: 244.96 | N132: 245.66 | O132: 82340800
A133: 118 | B133: 2017-07-20 | C133: 247.279999 | D133: 247.419998 | E133: 246.470001 | F133: 247.100006 | G133: 47135200 | H133: 245.879761 | I133: 0.9950617363 | J133: 1 | K133: 246.06 | L133: 246.2 | M133: 245.25 | N133: 245.88 | O133: 47135200
A134: 119 | B134: 2017-07-19 | C134: 246.020004 | D134: 247 | E134: 246.009995 | F134: 246.990005 | G134: 51034300 | H134: 245.770309 | I134: 0.9950617597 | J134: 1 | K134: 244.81 | L134: 245.78 | M134: 244.8 | N134: 245.77 | O134: 51034300
A135: 120 | B135: 2017-07-18 | C135: 245.059998 | D135: 245.720001 | E135: 244.669998 | F135: 245.660004 | G135: 42742500 | H135: 244.446869 | I135: 0.9950617317 | J135: 1 | K135: 243.85 | L135: 244.51 | M135: 243.46 | N135: 244.45 | O135: 42742500
A136: 121 | B136: 2017-07-17 | C136: 245.470001 | D136: 245.910004 | E136: 245.330002 | F136: 245.529999 | G136: 33531900 | H136: 244.317505 | I136: 0.9950617277 | J136: 1 | K136: 244.26 | L136: 244.7 | M136: 244.12 | N136: 244.32 | O136: 33531900
A137: 122 | B137: 2017-07-14 | C137: 244.419998 | D137: 245.970001 | E137: 244.309998 | F137: 245.559998 | G137: 60262700 | H137: 244.347366 | I137: 0.995061769 | J137: 1 | K137: 243.21 | L137: 244.76 | M137: 243.1 | N137: 244.35 | O137: 60262700
A138: 123 | B138: 2017-07-13 | C138: 244.020004 | D138: 244.550003 | E138: 243.759995 | F138: 244.419998 | G138: 39471600 | H138: 243.212997 | I138: 0.9950617748 | J138: 1 | K138: 242.81 | L138: 243.34 | M138: 242.56 | N138: 243.21 | O138: 39471600
A139: 124 | B139: 2017-07-12 | C139: 243.300003 | D139: 244.199997 | E139: 243.300003 | F139: 244.009995 | G139: 59610400 | H139: 242.805008 | I139: 0.995061731 | J139: 1 | K139: 242.1 | L139: 242.99 | M139: 242.1 | N139: 242.81 | O139: 59610400
A140: 125 | B140: 2017-07-11 | C140: 242.369995 | D140: 242.550003 | E140: 240.850006 | F140: 242.190002 | G140: 50354600 | H140: 240.994003 | I140: 0.9950617326 | J140: 1 | K140: 241.17 | L140: 241.35 | M140: 239.66 | N140: 240.99 | O140: 50354600
A141: 126 | B141: 2017-07-10 | C141: 242.110001 | D141: 242.800003 | E141: 241.759995 | F141: 242.369995 | G141: 36663300 | H141: 241.173111 | I141: 0.9950617485 | J141: 1 | K141: 240.91 | L141: 241.6 | M141: 240.57 | N141: 241.17 | O141: 36663300
A142: 127 | B142: 2017-07-07 | C142: 241.210007 | D142: 242.279999 | E142: 240.559998 | F142: 242.110001 | G142: 57972300 | H142: 240.914398 | I142: 0.9950617364 | J142: 1 | K142: 240.02 | L142: 241.08 | M142: 239.37 | N142: 240.91 | O142: 57972300
A143: 128 | B143: 2017-07-06 | C143: 241.889999 | D143: 242.029999 | E143: 240.339996 | F143: 240.550003 | G143: 65400800 | H143: 239.362106 | I143: 0.9950617461 | J143: 1 | K143: 240.7 | L143: 240.83 | M143: 239.15 | N143: 239.36 | O143: 65400800
A144: 129 | B144: 2017-07-05 | C144: 242.630005 | D144: 243.009995 | E144: 241.699997 | F144: 242.770004 | G144: 54427600 | H144: 241.571152 | I144: 0.9950617787 | J144: 1 | K144: 241.43 | L144: 241.81 | M144: 240.51 | N144: 241.57 | O144: 54427600
A145: 130 | B145: 2017-07-03 | C145: 242.880005 | D145: 243.380005 | E145: 242.210007 | F145: 242.210007 | G145: 39153800 | H145: 241.013916 | I145: =IF(F145=0,1,H145/F145) -> 0.9950617606 | J145: =INDEX(OFFSET($T$15,0,0,$S$13+1,1),MATCH(B145,OFFSET($Q$15,0,0,$S$13+1,1),-1)) -> 1 | K145: =ROUND($I145*C145,2) -> 241.68 | L145: =ROUND($I145*D145,2) -> 242.18 | M145: =ROUND($I145*E145,2) -> 241.01 | N145: =ROUND($I145*F145,2) -> 241.01 | O145: =G145*J145 -> 39153800
A146: 131 | B146: 2017-06-30 | C146: 242.279999 | D146: 242.710007 | E146: 241.580002 | F146: 241.800003 | G146: 86820700 | H146: 240.605942 | I146: 0.9950617825 | J146: 1 | K146: 241.08 | L146: 241.51 | M146: 240.39 | N146: 240.61 | O146: 86820700
A147: 132 | B147: 2017-06-29 | C147: 243.660004 | D147: 243.720001 | E147: 239.960007 | F147: 241.350006 | G147: 106949700 | H147: 240.158157 | I147: 0.9950617403 | J147: 1 | K147: 242.46 | L147: 242.52 | M147: 238.78 | N147: 240.16 | O147: 106949700
A148: 133 | B148: 2017-06-28 | C148: 242.5 | D148: 243.720001 | E148: 242.229996 | F148: 243.490005 | G148: 70042600 | H148: 242.287598 | I148: 0.9950617809 | J148: 1 | K148: 241.3 | L148: 242.52 | M148: 241.03 | N148: 242.29 | O148: 70042600
A149: 134 | B149: 2017-06-27 | C149: 243.039993 | D149: 243.380005 | E149: 241.309998 | F149: 241.330002 | G149: 82247700 | H149: 240.13826 | I149: 0.9950617744 | J149: 1 | K149: 241.84 | L149: 242.18 | M149: 240.12 | N149: 240.14 | O149: 82247700
A150: 135 | B150: 2017-06-26 | C150: 243.899994 | D150: 244.380005 | E150: 243.050003 | F150: 243.289993 | G150: 56700500 | H150: 242.088562 | I150: 0.9950617328 | J150: 1 | K150: 242.7 | L150: 243.17 | M150: 241.85 | N150: 242.09 | O150: 56700500
A151: 136 | B151: 2017-06-23 | C151: 242.910004 | D151: 243.509995 | E151: 242.470001 | F151: 243.130005 | G151: 66986800 | H151: 241.929367 | I151: 0.9950617448 | J151: 1 | K151: 241.71 | L151: 242.31 | M151: 241.27 | N151: 241.93 | O151: 66986800
A152: 137 | B152: 2017-06-22 | C152: 242.960007 | D152: 243.529999 | E152: 242.639999 | F152: 242.839996 | G152: 44148100 | H152: 241.640793 | I152: 0.9950617566 | J152: 1 | K152: 241.76 | L152: 242.33 | M152: 241.44 | N152: 241.64 | O152: 44148100
A153: 138 | B153: 2017-06-21 | C153: 243.460007 | D153: 243.589996 | E153: 242.410004 | F153: 242.949997 | G153: 55977600 | H153: 241.750244 | I153: 0.9950617287 | J153: 1 | K153: 242.26 | L153: 242.39 | M153: 241.21 | N153: 241.75 | O153: 55977600
A154: 139 | B154: 2017-06-20 | C154: 244.25 | D154: 244.259995 | E154: 242.990005 | F154: 243.009995 | G154: 56906400 | H154: 241.809952 | I154: 0.9950617546 | J154: 1 | K154: 243.04 | L154: 243.05 | M154: 241.79 | N154: 241.81 | O154: 56906400
A155: 140 | B155: 2017-06-19 | C155: 243.589996 | D155: 244.729996 | E155: 243.479996 | F155: 244.660004 | G155: 65123800 | H155: 243.451813 | I155: 0.9950617552 | J155: 1 | K155: 242.39 | L155: 243.52 | M155: 242.28 | N155: 243.45 | O155: 65123800
A156: 141 | B156: 2017-06-16 | C156: 242.770004 | D156: 242.830002 | E156: 241.630005 | F156: 242.639999 | G156: 84553100 | H156: 241.441788 | I156: 0.9950617746 | J156: 1 | K156: 241.57 | L156: 241.63 | M156: 240.44 | N156: 241.44 | O156: 84553100
A157: 142 | B157: 2017-06-15 | C157: 242.679993 | D157: 243.910004 | E157: 242.360001 | F157: 243.770004 | G157: 66464900 | H157: 241.389053 | I157: 0.9902327975 | J157: 1 | K157: 240.31 | L157: 241.53 | M157: 239.99 | N157: 241.39 | O157: 66464900
A158: 143 | B158: 2017-06-14 | C158: 244.860001 | D158: 244.869995 | E158: 243.289993 | F158: 244.240005 | G158: 78602300 | H158: 241.854462 | I158: 0.9902327917 | J158: 1 | K158: 242.47 | L158: 242.48 | M158: 240.91 | N158: 241.85 | O158: 78602300
A159: 144 | B159: 2017-06-13 | C159: 243.979996 | D159: 244.610001 | E159: 243.580002 | F159: 244.550003 | G159: 60067000 | H159: 242.161438 | I159: 0.9902328155 | J159: 1 | K159: 241.6 | L159: 242.22 | M159: 241.2 | N159: 242.16 | O159: 60067000
A160: 145 | B160: 2017-06-12 | C160: 243.130005 | D160: 243.419998 | E160: 242.380005 | F160: 243.360001 | G160: 86108100 | H160: 240.983047 | I160: 0.9902327663 | J160: 1 | K160: 240.76 | L160: 241.04 | M160: 240.01 | N160: 240.98 | O160: 86108100
A161: 146 | B161: 2017-06-09 | C161: 244.089996 | D161: 245.009995 | E161: 241.949997 | F161: 243.410004 | G161: 132256400 | H161: 241.032562 | I161: 0.9902327679 | J161: 1 | K161: 241.71 | L161: 242.62 | M161: 239.59 | N161: 241.03 | O161: 132256400
A162: 147 | B162: 2017-06-08 | C162: 243.770004 | D162: 244.330002 | E162: 243.169998 | F162: 243.779999 | G162: 63989800 | H162: 241.398941 | I162: 0.990232759 | J162: 1 | K162: 241.39 | L162: 241.94 | M162: 240.79 | N162: 241.4 | O162: 63989800
A163: 148 | B163: 2017-06-07 | C163: 243.600006 | D163: 243.919998 | E163: 242.830002 | F163: 243.660004 | G163: 54144300 | H163: 241.280121 | I163: 0.9902327712 | J163: 1 | K163: 241.22 | L163: 241.54 | M163: 240.46 | N163: 241.28 | O163: 54144300
A164: 149 | B164: 2017-06-06 | C164: 243.339996 | D164: 243.979996 | E164: 243.119995 | F164: 243.210007 | G164: 50375400 | H164: 240.834518 | I164: 0.9902327662 | J164: 1 | K164: 240.96 | L164: 241.6 | M164: 240.75 | N164: 240.83 | O164: 50375400
A165: 150 | B165: 2017-06-05 | C165: 243.970001 | D165: 244.300003 | E165: 243.759995 | F165: 243.990005 | G165: 44698800 | H165: 241.606903 | I165: 0.9902327884 | J165: 1 | K165: 241.59 | L165: 241.91 | M165: 241.38 | N165: 241.61 | O165: 44698800
A166: 151 | B166: 2017-06-02 | C166: 243.419998 | D166: 244.350006 | E166: 243.080002 | F166: 244.169998 | G166: 88666100 | H166: 241.785126 | I166: 0.9902327394 | J166: 1 | K166: 241.04 | L166: 241.96 | M166: 240.71 | N166: 241.79 | O166: 88666100
A167: 152 | B167: 2017-06-01 | C167: 241.970001 | D167: 243.380005 | E167: 241.639999 | F167: 243.360001 | G167: 68962000 | H167: 240.983047 | I167: 0.9902327663 | J167: 1 | K167: 239.61 | L167: 241 | M167: 239.28 | N167: 240.98 | O167: 68962000
A168: 153 | B168: 2017-05-31 | C168: 241.839996 | D168: 241.880005 | E168: 240.639999 | F168: 241.440002 | G168: 91796000 | H168: 239.081802 | I168: 0.9902327701 | J168: 1 | K168: 239.48 | L168: 239.52 | M168: 238.29 | N168: 239.08 | O168: 91796000
A169: 154 | B169: 2017-05-30 | C169: 241.339996 | D169: 241.789993 | E169: 241.160004 | F169: 241.5 | G169: 35201900 | H169: 239.14122 | I169: 0.990232795 | J169: 1 | K169: 238.98 | L169: 239.43 | M169: 238.8 | N169: 239.14 | O169: 35201900
A170: 155 | B170: 2017-05-26 | C170: 241.539993 | D170: 241.899994 | E170: 241.449997 | F170: 241.710007 | G170: 46629900 | H170: 239.349167 | I170: 0.9902327585 | J170: 1 | K170: 239.18 | L170: 239.54 | M170: 239.09 | N170: 239.35 | O170: 46629900
A171: 156 | B171: 2017-05-25 | C171: 241.199997 | D171: 242.080002 | E171: 240.960007 | F171: 241.759995 | G171: 64071700 | H171: 239.398666 | I171: 0.9902327554 | J171: 1 | K171: 238.84 | L171: 239.72 | M171: 238.61 | N171: 239.4 | O171: 64071700
A172: 157 | B172: 2017-05-24 | C172: 240.320007 | D172: 240.729996 | E172: 239.929993 | F172: 240.610001 | G172: 46927700 | H172: 238.259918 | I172: 0.9902328125 | J172: 1 | K172: 237.97 | L172: 238.38 | M172: 237.59 | N172: 238.26 | O172: 46927700
A173: 158 | B173: 2017-05-23 | C173: 239.949997 | D173: 240.240005 | E173: 239.509995 | F173: 240.050003 | G173: 48341700 | H173: 237.705383 | I173: 0.990232785 | J173: 1 | K173: 237.61 | L173: 237.89 | M173: 237.17 | N173: 237.71 | O173: 48341700
A174: 159 | B174: 2017-05-22 | C174: 238.899994 | D174: 239.710007 | E174: 238.820007 | F174: 239.520004 | G174: 61010600 | H174: 237.180557 | I174: 0.9902327699 | J174: 1 | K174: 236.57 | L174: 237.37 | M174: 236.49 | N174: 237.18 | O174: 61010600
A175: 160 | B175: 2017-05-19 | C175: 237.330002 | D175: 239.080002 | E175: 237.270004 | F175: 238.309998 | G175: 115011400 | H175: 235.982361 | I175: 0.9902327346 | J175: 1 | K175: 235.01 | L175: 236.74 | M175: 234.95 | N175: 235.98 | O175: 115011400
A176: 161 | B176: 2017-05-18 | C176: 235.729996 | D176: 237.75 | E176: 235.429993 | F176: 236.770004 | G176: 107047700 | H176: 234.457413 | I176: 0.9902327535 | J176: 1 | K176: 233.43 | L176: 235.43 | M176: 233.13 | N176: 234.46 | O176: 107047700
A177: 162 | B177: 2017-05-17 | C177: 240.080002 | D177: 240.080002 | E177: 235.75 | F177: 235.820007 | G177: 172174100 | H177: 233.516693 | I177: 0.9902327456 | J177: 1 | K177: 237.74 | L177: 237.74 | M177: 233.45 | N177: 233.52 | O177: 172174100
A178: 163 | B178: 2017-05-16 | C178: 240.639999 | D178: 240.669998 | E178: 239.630005 | F178: 240.080002 | G178: 51241800 | H178: 237.735077 | I178: 0.990232735 | J178: 1 | K178: 238.29 | L178: 238.32 | M178: 237.29 | N178: 237.74 | O178: 51241800
A179: 164 | B179: 2017-05-15 | C179: 239.470001 | D179: 240.440002 | E179: 239.449997 | F179: 240.300003 | G179: 61918900 | H179: 237.952927 | I179: 0.9902327259 | J179: 1 | K179: 237.13 | L179: 238.09 | M179: 237.11 | N179: 237.95 | O179: 61918900
A180: 165 | B180: 2017-05-12 | C180: 239.089996 | D180: 239.429993 | E180: 238.669998 | F180: 238.979996 | G180: 53912700 | H180: 236.645828 | I180: 0.9902327892 | J180: 1 | K180: 236.75 | L180: 237.09 | M180: 236.34 | N180: 236.65 | O180: 53912700
A181: 166 | B181: 2017-05-11 | C181: 239.350006 | D181: 239.570007 | E181: 238.130005 | F181: 239.380005 | G181: 62358300 | H181: 237.041931 | I181: 0.9902327933 | J181: 1 | K181: 237.01 | L181: 237.23 | M181: 235.8 | N181: 237.04 | O181: 62358300
A182: 167 | B182: 2017-05-10 | C182: 239.389999 | D182: 239.869995 | E182: 239.149994 | F182: 239.869995 | G182: 54293800 | H182: 237.52713 | I182: 0.9902327717 | J182: 1 | K182: 237.05 | L182: 237.53 | M182: 236.81 | N182: 237.53 | O182: 54293800
A183: 168 | B183: 2017-05-09 | C183: 239.960007 | D183: 240.190002 | E183: 239.039993 | F183: 239.440002 | G183: 51363200 | H183: 237.101334 | I183: 0.9902327599 | J183: 1 | K183: 237.62 | L183: 237.84 | M183: 236.71 | N183: 237.1 | O183: 51363200
A184: 169 | B184: 2017-05-08 | C184: 239.75 | D184: 239.919998 | E184: 239.169998 | F184: 239.660004 | G184: 48385700 | H184: 237.319199 | I184: 0.9902328091 | J184: 1 | K184: 237.41 | L184: 237.58 | M184: 236.83 | N184: 237.32 | O184: 48385700
A185: 170 | B185: 2017-05-05 | C185: 239.190002 | D185: 239.720001 | E185: 238.679993 | F185: 239.699997 | G185: 62001300 | H185: 237.358795 | I185: 0.9902327825 | J185: 1 | K185: 236.85 | L185: 237.38 | M185: 236.35 | N185: 237.36 | O185: 62001300
A186: 171 | B186: 2017-05-04 | C186: 238.830002 | D186: 238.919998 | E186: 237.779999 | F186: 238.759995 | G186: 61462700 | H186: 236.427963 | I186: 0.9902327356 | J186: 1 | K186: 236.5 | L186: 236.59 | M186: 235.46 | N186: 236.43 | O186: 61462700
A187: 172 | B187: 2017-05-03 | C187: 238.770004 | D187: 238.880005 | E187: 237.699997 | F187: 238.479996 | G187: 73137700 | H187: 236.150711 | I187: 0.9902327867 | J187: 1 | K187: 236.44 | L187: 236.55 | M187: 235.38 | N187: 236.15 | O187: 73137700
A188: 173 | B188: 2017-05-02 | C188: 238.839996 | D188: 238.979996 | E188: 238.300003 | F188: 238.770004 | G188: 57375700 | H188: 236.437881 | I188: 0.9902327639 | J188: 1 | K188: 236.51 | L188: 236.65 | M188: 235.97 | N188: 236.44 | O188: 57375700
A189: 174 | B189: 2017-05-01 | C189: 238.679993 | D189: 239.169998 | E189: 238.199997 | F189: 238.679993 | G189: 66882500 | H189: 236.348755 | I189: 0.9902327884 | J189: 1 | K189: 236.35 | L189: 236.83 | M189: 235.87 | N189: 236.35 | O189: 66882500
A190: 175 | B190: 2017-04-28 | C190: 238.899994 | D190: 238.929993 | E190: 237.929993 | F190: 238.080002 | G190: 53247400 | H190: 235.754608 | I190: 0.9902327202 | J190: 1 | K190: 236.57 | L190: 236.6 | M190: 235.61 | N190: 235.75 | O190: 53247400
A191: 176 | B191: 2017-04-27 | C191: 238.770004 | D191: 238.949997 | E191: 237.979996 | F191: 238.600006 | G191: 57410300 | H191: 236.269547 | I191: 0.990232779 | J191: 1 | K191: 236.44 | L191: 236.62 | M191: 235.66 | N191: 236.27 | O191: 57410300
A192: 177 | B192: 2017-04-26 | C192: 238.509995 | D192: 239.529999 | E192: 238.350006 | F192: 238.399994 | G192: 84702500 | H192: 236.071487 | I192: 0.9902327724 | J192: 1 | K192: 236.18 | L192: 237.19 | M192: 236.02 | N192: 236.07 | O192: 84702500
A193: 178 | B193: 2017-04-25 | C193: 237.910004 | D193: 238.949997 | E193: 237.809998 | F193: 238.550003 | G193: 76698300 | H193: 236.220032 | I193: 0.9902327773 | J193: 1 | K193: 235.59 | L193: 236.62 | M193: 235.49 | N193: 236.22 | O193: 76698300
A194: 179 | B194: 2017-04-24 | C194: 237.179993 | D194: 237.410004 | E194: 234.559998 | F194: 237.169998 | G194: 119209900 | H194: 234.8535 | I194: 0.9902327528 | J194: 1 | K194: 234.86 | L194: 235.09 | M194: 232.27 | N194: 234.85 | O194: 119209900
A195: 180 | B195: 2017-04-21 | C195: 235.25 | D195: 235.309998 | E195: 234.130005 | F195: 234.589996 | G195: 110389800 | H195: 232.298691 | I195: 0.990232725 | J195: 1 | K195: 232.95 | L195: 233.01 | M195: 231.84 | N195: 232.3 | O195: 110389800
A196: 181 | B196: 2017-04-20 | C196: 234.149994 | D196: 235.850006 | E196: 233.779999 | F196: 235.339996 | G196: 92572200 | H196: 233.041382 | I196: 0.9902327949 | J196: 1 | K196: 231.86 | L196: 233.55 | M196: 231.5 | N196: 233.04 | O196: 92572200
A197: 182 | B197: 2017-04-19 | C197: 234.520004 | D197: 234.949997 | E197: 233.179993 | F197: 233.440002 | G197: 68699900 | H197: 231.159943 | I197: 0.9902327837 | J197: 1 | K197: 232.23 | L197: 232.66 | M197: 230.9 | N197: 231.16 | O197: 68699900
A198: 183 | B198: 2017-04-18 | C198: 233.720001 | D198: 234.490005 | E198: 233.080002 | F198: 233.869995 | G198: 83225800 | H198: 231.585724 | I198: 0.9902327317 | J198: 1 | K198: 231.44 | L198: 232.2 | M198: 230.8 | N198: 231.59 | O198: 83225800
A199: 184 | B199: 2017-04-17 | C199: 233.110001 | D199: 234.570007 | E199: 232.880005 | F199: 234.570007 | G199: 68405400 | H199: 232.278915 | I199: 0.9902328007 | J199: 1 | K199: 230.83 | L199: 232.28 | M199: 230.61 | N199: 232.28 | O199: 68405400
A200: 185 | B200: 2017-04-13 | C200: 233.639999 | D200: 234.490005 | E200: 232.509995 | F200: 232.509995 | G200: 92880400 | H200: 230.239014 | I200: 0.9902327597 | J200: 1 | K200: 231.36 | L200: 232.2 | M200: 230.24 | N200: 230.24 | O200: 92880400
... 6096 more rows

Sheet CalculationsAndCharts
A1: Recursive Median Filters
A2: =InputPriceData!A1 -> SPDR S&P 500 ETF (SPY) -NYSEArca (Daily) | R2: Chart Clutter Controls
R3: Price Chart
A4: User Charting Controls | E4: Click to Shift Chart One Bar: | R4: TRUE
A5: Data Control
A6: =InputPriceData!$B$10 -> 6281 | B6: Available Input Data Rows | E6: Earliest: | F6: =OFFSET(InputPriceData!B15,CalculationsAndCharts!A6,0,1,1) -> 1993-01-29
B7: Use Close Adjusted: | C7: TRUE | E7: Latest: | F7: =OFFSET(InputPriceData!B15,1,0,1,1) -> 2018-01-05
A8: =MIN(A6-A11,LOOKUP(2,1/(C:C<>0),ROW(A:A))-32) -> 2800 | B8: Logically Available for Calc / Plot | E8: $ Change: | F8: =G33-G34 -> 0.33
A10: Price Chart Windowing Controls | F10: Y-axis Range
A11: 48 | B11: Input Data Offset (Pan) | E11: Max High+ | F11: =CEILING(MAX(MAX(OFFSET($E$33,0,0,$A$12,1)))+2*F14,0.1) -> 261.5
A12: 222 | B12: Data Points to Plot (Zoom) | E12: Min Low- | F12: =FLOOR(MIN(MIN(OFFSET($F$33,0,0,$A$12,1)))-2*F14,0.1) -> 215.7
B13: First: | C13: =OFFSET(B32,A12,0,1,1) -> 2016-12-09 | E13: White space %: | F13: 0.05
B14: ="Last: " & IF(OFFSET(InputPriceData!P15,1+A11,0,1,1)="","",TEXT(OFFSET(InputPriceData!P15,1+A11,0,1,1),"H:MM AM/PM")) -> Last: | C14: =B33 -> 2017-10-26 | E14: Allowance: | F14: =FLOOR((CEILING(MAX(MAX(OFFSET($E$33,0,0,$A$12,1))),1)-FLOOR(MIN(MIN(OFFSET($F$33,0,0,$A$12,1))),1))*F13,0.01) -> 1.95
A15: User Controls
A16: Recursive Median controls
A17: Median Len | C17: 5 | E17: Alpha | F17: 1 - Alpha
A18: Lo Pass Period | C18: 16 | E18: =(COS(RADIANS(360/C18))+SIN(RADIANS(360/C18))-1)/COS(RADIANS(360/C18)) -> 0.3318213621 | F18: =1-E18 -> 0.6681786379
A19: High Pass Period | C19: 40 | E19: =(COS(RADIANS(0.707*360/C19))+SIN(RADIANS(0.707*360/C19))-1)/COS(RADIANS(0.707*360/C19)) -> 0.1053156335 | F19: =1-E19 -> 0.8946843665
A20: My RSI
A21: Basic | C21: 14 | E21: =2/(C21+1) -> 0.1333333333 | F21: =1-E21 -> 0.8666666667
C22: 16
A23: Help! I would like to plot data
A24: From | B24: 2016-12-08 | C24: =OFFSET(InputPriceData!$A$15,MATCH(B24,OFFSET(InputPriceData!B15,1,0,InputPriceData!$B$10,1),0),0,1,1)-C25 -> 223 | E24: 73 | X24: Clutter Controll Work Area for the Charts
A25: To | B25: 2017-10-26 | C25: =OFFSET(InputPriceData!$A$15,MATCH(B25,OFFSET(InputPriceData!$B$15,1,0,InputPriceData!$B$10,1),0),0,1,1)-1 -> 48 | E25: =$A$12-$E$24+1 -> 150
H28: @ Cursor => | I28: =OFFSET(A32,$E$25,0,1,1)&"(RR)" -> 150(RR) | J28: =OFFSET($B$32,E25,0,1,1) -> 2017-03-27 | K28: =TEXT(OFFSET(D32,$E$25,0,1,1),"#,##0.00")&"(o)" -> 229.66(o) | L28: =TEXT(OFFSET(E32,$E$25,0,1,1),"#,##0.00")&"(h)" -> 231.64(h) | M28: =TEXT(OFFSET(F32,$E$25,0,1,1),"#,##0.00")&"(l)" -> 229.35(l) | N28: =TEXT(OFFSET(G32,$E$25,0,1,1),"#,##0.00")&"(c)" -> 231.34(c)
E29: Cursor ==> | X29: Price Chart | AT29: Chart Cursor work area
X30: ="Recursive Mean Filter(" & $C$17 & ", " & $C$18 & ")" -> Recursive Mean Filter(5, 16) | BA30: Recursive Median Oscillator Chart Cursor
A31: Rel Row | H31: ="Median(" & $C$17 & ")" -> Median(5) | I31: ="RM"&CHAR(10)&"Filter(" & $C$17 & ", " & $C$18 & ")" -> RM Filter(5, 16) | J31: ="RM Oscillator("&C18&", " &C19&")" -> RM Oscillator(16, 40) | K31: Gain Loss | L31: =C21 & " Period Ave Gain" -> 14 Period Ave Gain | M31: =C21 & " Period Ave Loss" -> 14 Period Ave Loss | N31: =$C$21 & " Period RS" -> 14 Period RS | O31: =$C$21 & " Period Unfiltered RSI" -> 14 Period Unfiltered RSI | AO31: Used To Color Vol Bars
B32: Date | C32: Volume | D32: Open | E32: High | F32: Low | G32: Close | AO32: Up Vol | AP32: Dn Vol | AT32: Volume Cursor | AV32: =MAX(OFFSET(C33,0,0,A12,1)) -> 172174100 | AW32: MyRSI Chart Cursor | AY32: Price Chart Cursor
A33: 1 | B33: =OFFSET(InputPriceData!B$15,CalculationsAndCharts!$A33+$A$11,0,1,1) -> 2017-10-26 | C33: =OFFSET(InputPriceData!G$15,CalculationsAndCharts!$A33+$A$11,IF($C$7,8,0),1,1) -> 69798000 | D33: =OFFSET(InputPriceData!C$15,CalculationsAndCharts!$A33+$A$11,IF($C$7,8,0),1,1) -> 255.99 | E33: =OFFSET(InputPriceData!D$15,CalculationsAndCharts!$A33+$A$11,IF($C$7,8,0),1,1) -> 256.3 | F33: =OFFSET(InputPriceData!E$15,CalculationsAndCharts!$A33+$A$11,IF($C$7,8,0),1,1) -> 255.48 | G33: =OFFSET(InputPriceData!F$15,CalculationsAndCharts!$A33+$A$11,IF($C$7,8,0),1,1) -> 255.62 | H33: =MEDIAN(OFFSET(G33,0,0,$C$17,1)) -> 256.11 | I33: =$E$18*H33+$F$18*I34 -> 255.9131771 | J33: =(1 -$E$19/2)^2*(I33-2*I34+I35)+2*$F$19*J34-$F$19^2*J35 -> -0.4226900537 | K33: =IF(A33<$A$8,G33-G34,0) -> 0.33 | L33: =IF($A33<($A$8-$C$21),((MIN($C$21,$A$8-$A33+1)-1)*L34+IF($K33>0,$K33,0))/MIN($C$21,$A$8-$A33+1),IF($A33=($A$8-$C$21),SUMIF(OFFSET($K33,0,0,$C$21,1),">0")/$C$21,0)) -> 0.380067121 | M33: =IF($A33<($A$8-$C$21),((MIN($C$21,$A$8-$A33+1)-1)*M34+IF($K33<0,-$K33,0))/MIN($C$21,$A$8-$A33+1),IF($A33=($A$8-$C$21),-SUMIF(OFFSET($K33,0,0,$C$21,1),"<0")/$C$21,0)) -> 0.2174925789 | N33: =IF($A33<=($A$8-$C$21),L33/M33,0) -> 1.747494664 | O33: =IF($A33<=($A$8-$C$21),(100-100/(1+N33)-50),0) -> 13.60320502 | X33: =IF($R$4,I33,NA()) -> 255.9131771 | AO33: =IF(G33>=D33,C33,NA()) ->  | AP33: =IF(G33<D33,C33,NA()) -> 69798000 | AT33: =$E$25 -> 150 | AV33: 0 | AW33: =$E$25 -> 150 | AX33: -13 | AY33: =$E$25 -> 150 | AZ33: 212.3131447 | BA33: =$E$25 -> 150 | BB33: -2.38
A34: 2 | B34: =OFFSET(InputPriceData!B$15,CalculationsAndCharts!$A34+$A$11,0,1,1) -> 2017-10-25 | C34: =OFFSET(InputPriceData!G$15,CalculationsAndCharts!$A34+$A$11,IF($C$7,8,0),1,1) -> 103715300 | D34: =OFFSET(InputPriceData!C$15,CalculationsAndCharts!$A34+$A$11,IF($C$7,8,0),1,1) -> 256.18 | E34: =OFFSET(InputPriceData!D$15,CalculationsAndCharts!$A34+$A$11,IF($C$7,8,0),1,1) -> 256.31 | F34: =OFFSET(InputPriceData!E$15,CalculationsAndCharts!$A34+$A$11,IF($C$7,8,0),1,1) -> 254 | G34: =OFFSET(InputPriceData!F$15,CalculationsAndCharts!$A34+$A$11,IF($C$7,8,0),1,1) -> 255.29 | H34: =MEDIAN(OFFSET(G34,0,0,$C$17,1)) -> 256.11 | I34: =$E$18*H34+$F$18*I35 -> 255.8154338 | J34: =(1 -$E$19/2)^2*(I34-2*I35+I36)+2*$F$19*J35-$F$19^2*J36 -> -0.3066890042 | K34: =IF(A34<$A$8,G34-G35,0) -> -1.27 | L34: =IF($A34<($A$8-$C$21),((MIN($C$21,$A$8-$A34+1)-1)*L35+IF($K34>0,$K34,0))/MIN($C$21,$A$8-$A34+1),IF($A34=($A$8-$C$21),SUMIF(OFFSET($K34,0,0,$C$21,1),">0")/$C$21,0)) -> 0.383918438 | M34: =IF($A34<($A$8-$C$21),((MIN($C$21,$A$8-$A34+1)-1)*M35+IF($K34<0,-$K34,0))/MIN($C$21,$A$8-$A34+1),IF($A34=($A$8-$C$21),-SUMIF(OFFSET($K34,0,0,$C$21,1),"<0")/$C$21,0)) -> 0.2342227772 | N34: 1.639116582 | O34: =IF($A34<=($A$8-$C$21),(100-100/(1+N34)-50),0) -> 12.10853257 | X34: =IF($R$4,I34,NA()) -> 255.8154338 | AP34: 103715300 | AT34: =$E$25 -> 150 | AV34: =1.2*AV32 -> 206608920 | AW34: =$E$25 -> 150 | AX34: 33 | AY34: =$E$25 -> 150 | AZ34: 263.94775 | BA34: =$E$25 -> 150 | BB34: 1.98
A35: 3 | B35: =OFFSET(InputPriceData!B$15,CalculationsAndCharts!$A35+$A$11,0,1,1) -> 2017-10-24 | C35: =OFFSET(InputPriceData!G$15,CalculationsAndCharts!$A35+$A$11,IF($C$7,8,0),1,1) -> 66935900 | D35: =OFFSET(InputPriceData!C$15,CalculationsAndCharts!$A35+$A$11,IF($C$7,8,0),1,1) -> 256.6 | E35: =OFFSET(InputPriceData!D$15,CalculationsAndCharts!$A35+$A$11,IF($C$7,8,0),1,1) -> 256.83 | F35: =OFFSET(InputPriceData!E$15,CalculationsAndCharts!$A35+$A$11,IF($C$7,8,0),1,1) -> 256.15 | G35: =OFFSET(InputPriceData!F$15,CalculationsAndCharts!$A35+$A$11,IF($C$7,8,0),1,1) -> 256.56 | H35: 256.11 | I35: 255.6691505 | J35: -0.2119433072 | K35: 0.45 | L35: 0.4134506255 | M35: 0.1545476063 | N35: 2.675231507 | O35: 22.79082969 | X35: =IF($R$4,I35,NA()) -> 255.6691505 | AP35: 66935900
A36: 4 | B36: =OFFSET(InputPriceData!B$15,CalculationsAndCharts!$A36+$A$11,0,1,1) -> 2017-10-23 | C36: =OFFSET(InputPriceData!G$15,CalculationsAndCharts!$A36+$A$11,IF($C$7,8,0),1,1) -> 63915300 | D36: =OFFSET(InputPriceData!C$15,CalculationsAndCharts!$A36+$A$11,IF($C$7,8,0),1,1) -> 257.48 | E36: =OFFSET(InputPriceData!D$15,CalculationsAndCharts!$A36+$A$11,IF($C$7,8,0),1,1) -> 257.51 | F36: =OFFSET(InputPriceData!E$15,CalculationsAndCharts!$A36+$A$11,IF($C$7,8,0),1,1) -> 256.02 | G36: =OFFSET(InputPriceData!F$15,CalculationsAndCharts!$A36+$A$11,IF($C$7,8,0),1,1) -> 256.11 | H36: 255.79 | I36: 255.450222 | J36: -0.1720905434 | K36: -1 | L36: 0.4106391352 | M36: 0.1664358837 | N36: 2.467251209 | O36: 21.15870931 | X36: =IF($R$4,I36,NA()) -> 255.450222 | AP36: 63915300
A37: 5 | B37: =OFFSET(InputPriceData!B$15,CalculationsAndCharts!$A37+$A$11,0,1,1) -> 2017-10-20 | C37: =OFFSET(InputPriceData!G$15,CalculationsAndCharts!$A37+$A$11,IF($C$7,8,0),1,1) -> 89176400 | D37: =OFFSET(InputPriceData!C$15,CalculationsAndCharts!$A37+$A$11,IF($C$7,8,0),1,1) -> 256.7 | E37: =OFFSET(InputPriceData!D$15,CalculationsAndCharts!$A37+$A$11,IF($C$7,8,0),1,1) -> 257.14 | F37: =OFFSET(InputPriceData!E$15,CalculationsAndCharts!$A37+$A$11,IF($C$7,8,0),1,1) -> 255.77 | G37: =OFFSET(InputPriceData!F$15,CalculationsAndCharts!$A37+$A$11,IF($C$7,8,0),1,1) -> 257.11 | H37: 255.72 | I37: 255.2814863 | J37: -0.06364377618 | K37: 1.32 | L37: 0.442226761 | M37: 0.102315567 | N37: 4.32218453 | O37: 31.21072288 | X37: =IF($R$4,I37,NA()) -> 255.2814863 | AO37: 89176400
A38: 6 | B38: =OFFSET(InputPriceData!B$15,CalculationsAndCharts!$A38+$A$11,0,1,1) -> 2017-10-19 | C38: =OFFSET(InputPriceData!G$15,CalculationsAndCharts!$A38+$A$11,IF($C$7,8,0),1,1) -> 61903800 | D38: =OFFSET(InputPriceData!C$15,CalculationsAndCharts!$A38+$A$11,IF($C$7,8,0),1,1) -> 254.83 | E38: =OFFSET(InputPriceData!D$15,CalculationsAndCharts!$A38+$A$11,IF($C$7,8,0),1,1) -> 255.83 | F38: =OFFSET(InputPriceData!E$15,CalculationsAndCharts!$A38+$A$11,IF($C$7,8,0),1,1) -> 254.35 | G38: =OFFSET(InputPriceData!F$15,CalculationsAndCharts!$A38+$A$11,IF($C$7,8,0),1,1) -> 255.79 | H38: 255.47 | I38: 255.0637179 | J38: 0.01774429074 | K38: 0.07 | L38: 0.3747057426 | M38: 0.1101859953 | N38: 3.400665772 | O38: 27.27616566 | X38: =IF($R$4,I38,NA()) -> 255.0637179 | AO38: 61903800
A39: 7 | B39: =OFFSET(InputPriceData!B$15,CalculationsAndCharts!$A39+$A$11,0,1,1) -> 2017-10-18 | C39: =OFFSET(InputPriceData!G$15,CalculationsAndCharts!$A39+$A$11,IF($C$7,8,0),1,1) -> 40888300 | D39: =OFFSET(InputPriceData!C$15,CalculationsAndCharts!$A39+$A$11,IF($C$7,8,0),1,1) -> 255.9 | E39: =OFFSET(InputPriceData!D$15,CalculationsAndCharts!$A39+$A$11,IF($C$7,8,0),1,1) -> 255.95 | F39: =OFFSET(InputPriceData!E$15,CalculationsAndCharts!$A39+$A$11,IF($C$7,8,0),1,1) -> 255.5 | G39: =OFFSET(InputPriceData!F$15,CalculationsAndCharts!$A39+$A$11,IF($C$7,8,0),1,1) -> 255.72 | H39: 255.29 | I39: 254.8619559 | J39: 0.1371210221 | K39: 0.25 | L39: 0.3981446459 | M39: 0.118661841 | N39: 3.355287954 | O39: 27.03940565 | X39: =IF($R$4,I39,NA()) -> 254.8619559 | AP39: 40888300
A40: 8 | B40: =OFFSET(InputPriceData!B$15,CalculationsAndCharts!$A40+$A$11,0,1,1) -> 2017-10-17 | C40: =OFFSET(InputPriceData!G$15,CalculationsAndCharts!$A40+$A$11,IF($C$7,8,0),1,1) -> 31561000 | D40: =OFFSET(InputPriceData!C$15,CalculationsAndCharts!$A40+$A$11,IF($C$7,8,0),1,1) -> 255.23 | E40: =OFFSET(InputPriceData!D$15,CalculationsAndCharts!$A40+$A$11,IF($C$7,8,0),1,1) -> 255.52 | F40: =OFFSET(InputPriceData!E$15,CalculationsAndCharts!$A40+$A$11,IF($C$7,8,0),1,1) -> 254.98 | G40: =OFFSET(InputPriceData!F$15,CalculationsAndCharts!$A40+$A$11,IF($C$7,8,0),1,1) -> 255.47 | H40: 255.02 | I40: 254.6493868 | J40: 0.2722394626 | K40: 0.18 | L40: 0.4095403878 | M40: 0.127789675 | N40: 3.204800294 | O40: 26.21765767 | X40: =IF($R$4,I40,NA()) -> 254.6493868 | AO40: 31561000
A41: 9 | B41: =OFFSET(InputPriceData!B$15,CalculationsAndCharts!$A41+$A$11,0,1,1) -> 2017-10-16 | C41: =OFFSET(InputPriceData!G$15,CalculationsAndCharts!$A41+$A$11,IF($C$7,8,0),1,1) -> 38221700 | D41: =OFFSET(InputPriceData!C$15,CalculationsAndCharts!$A41+$A$11,IF($C$7,8,0),1,1) -> 255.21 | E41: =OFFSET(InputPriceData!D$15,CalculationsAndCharts!$A41+$A$11,IF($C$7,8,0),1,1) -> 255.51 | F41: =OFFSET(InputPriceData!E$15,CalculationsAndCharts!$A41+$A$11,IF($C$7,8,0),1,1) -> 254.82 | G41: =OFFSET(InputPriceData!F$15,CalculationsAndCharts!$A41+$A$11,IF($C$7,8,0),1,1) -> 255.29 | H41: 254.95 | I41: 254.4653381 | J41: 0.4692447142 | K41: 0.34 | L41: 0.4271973408 | M41: 0.13761965 | N41: 3.104188543 | O41: 25.63464764 | X41: =IF($R$4,I41,NA()) -> 254.4653381 | AO41: 38221700
A42: 10 | B42: =OFFSET(InputPriceData!B$15,CalculationsAndCharts!$A42+$A$11,0,1,1) -> 2017-10-13 | C42: =OFFSET(InputPriceData!G$15,CalculationsAndCharts!$A42+$A$11,IF($C$7,8,0),1,1) -> 54800400 | D42: =OFFSET(InputPriceData!C$15,CalculationsAndCharts!$A42+$A$11,IF($C$7,8,0),1,1) -> 255.14 | E42: =OFFSET(InputPriceData!D$15,CalculationsAndCharts!$A42+$A$11,IF($C$7,8,0),1,1) -> 255.27 | F42: =OFFSET(InputPriceData!E$15,CalculationsAndCharts!$A42+$A$11,IF($C$7,8,0),1,1) -> 254.64 | G42: =OFFSET(InputPriceData!F$15,CalculationsAndCharts!$A42+$A$11,IF($C$7,8,0),1,1) -> 254.95 | H42: 254.64 | I42: 254.2246522 | J42: 0.6453574148 | K42: 0.31 | L42: 0.4339048285 | M42: 0.1482057769 | N42: 2.927718727 | O42: 24.53992841 | X42: =IF($R$4,I42,NA()) -> 254.2246522 | AP42: 54800400
A43: 11 | B43: =OFFSET(InputPriceData!B$15,CalculationsAndCharts!$A43+$A$11,0,1,1) -> 2017-10-12 | C43: =OFFSET(InputPriceData!G$15,CalculationsAndCharts!$A43+$A$11,IF($C$7,8,0),1,1) -> 47065100 | D43: =OFFSET(InputPriceData!C$15,CalculationsAndCharts!$A43+$A$11,IF($C$7,8,0),1,1) -> 254.66 | E43: =OFFSET(InputPriceData!D$15,CalculationsAndCharts!$A43+$A$11,IF($C$7,8,0),1,1) -> 255.06 | F43: =OFFSET(InputPriceData!E$15,CalculationsAndCharts!$A43+$A$11,IF($C$7,8,0),1,1) -> 254.37 | G43: =OFFSET(InputPriceData!F$15,CalculationsAndCharts!$A43+$A$11,IF($C$7,8,0),1,1) -> 254.64 | H43: 254.62 | I43: 254.0183881 | J43: 0.895022414 | K43: -0.38 | L43: 0.4434359692 | M43: 0.1596062213 | N43: 2.77831256 | O43: 23.53315841 | X43: =IF($R$4,I43,NA()) -> 254.0183881 | AP43: 47065100
A44: 12 | B44: =OFFSET(InputPriceData!B$15,CalculationsAndCharts!$A44+$A$11,0,1,1) -> 2017-10-11 | C44: =OFFSET(InputPriceData!G$15,CalculationsAndCharts!$A44+$A$11,IF($C$7,8,0),1,1) -> 47674300 | D44: =OFFSET(InputPriceData!C$15,CalculationsAndCharts!$A44+$A$11,IF($C$7,8,0),1,1) -> 254.51 | E44: =OFFSET(InputPriceData!D$15,CalculationsAndCharts!$A44+$A$11,IF($C$7,8,0),1,1) -> 255.02 | F44: =OFFSET(InputPriceData!E$15,CalculationsAndCharts!$A44+$A$11,IF($C$7,8,0),1,1) -> 254.32 | G44: =OFFSET(InputPriceData!F$15,CalculationsAndCharts!$A44+$A$11,IF($C$7,8,0),1,1) -> 255.02 | H44: 254.62 | I44: 253.7196242 | J44: 1.090813961 | K44: 0.4 | L44: 0.4775464283 | M44: 0.1426528537 | N44: 3.347612165 | O44: 26.9988683 | X44: =IF($R$4,I44,NA()) -> 253.7196242 | AO44: 47674300
A45: 13 | B45: =OFFSET(InputPriceData!B$15,CalculationsAndCharts!$A45+$A$11,0,1,1) -> 2017-10-10 | C45: =OFFSET(InputPriceData!G$15,CalculationsAndCharts!$A45+$A$11,IF($C$7,8,0),1,1) -> 43057400 | D45: =OFFSET(InputPriceData!C$15,CalculationsAndCharts!$A45+$A$11,IF($C$7,8,0),1,1) -> 254.6 | E45: =OFFSET(InputPriceData!D$15,CalculationsAndCharts!$A45+$A$11,IF($C$7,8,0),1,1) -> 255.05 | F45: =OFFSET(InputPriceData!E$15,CalculationsAndCharts!$A45+$A$11,IF($C$7,8,0),1,1) -> 253.98 | G45: =OFFSET(InputPriceData!F$15,CalculationsAndCharts!$A45+$A$11,IF($C$7,8,0),1,1) -> 254.62 | H45: 254.37 | I45: 253.2724923 | J45: 1.153951495 | K45: 0.67 | L45: 0.4835115382 | M45: 0.1536261501 | N45: 3.147325751 | O45: 25.8880768 | X45: =IF($R$4,I45,NA()) -> 253.2724923 | AO45: 43057400
A46: 14 | B46: =OFFSET(InputPriceData!B$15,CalculationsAndCharts!$A46+$A$11,0,1,1) -> 2017-10-09 | C46: =OFFSET(InputPriceData!G$15,CalculationsAndCharts!$A46+$A$11,IF($C$7,8,0),1,1) -> 35803100 | D46: =OFFSET(InputPriceData!C$15,CalculationsAndCharts!$A46+$A$11,IF($C$7,8,0),1,1) -> 254.63 | E46: =OFFSET(InputPriceData!D$15,CalculationsAndCharts!$A46+$A$11,IF($C$7,8,0),1,1) -> 254.7 | F46: =OFFSET(InputPriceData!E$15,CalculationsAndCharts!$A46+$A$11,IF($C$7,8,0),1,1) -> 253.65 | G46: =OFFSET(InputPriceData!F$15,CalculationsAndCharts!$A46+$A$11,IF($C$7,8,0),1,1) -> 253.95 | H46: 253.95 | I46: 252.7274637 | J46: 1.107078985 | K46: -0.42 | L46: 0.4691662719 | M46: 0.1654435463 | N46: 2.835808845 | O46: 23.92987919 | X46: =IF($R$4,I46,NA()) -> 252.7274637 | AP46: 35803100
A47: 15 | B47: =OFFSET(InputPriceData!B$15,CalculationsAndCharts!$A47+$A$11,0,1,1) -> 2017-10-06 | C47: =OFFSET(InputPriceData!G$15,CalculationsAndCharts!$A47+$A$11,IF($C$7,8,0),1,1) -> 80646000 | D47: =OFFSET(InputPriceData!C$15,CalculationsAndCharts!$A47+$A$11,IF($C$7,8,0),1,1) -> 254.15 | E47: =OFFSET(InputPriceData!D$15,CalculationsAndCharts!$A47+$A$11,IF($C$7,8,0),1,1) -> 254.7 | F47: =OFFSET(InputPriceData!E$15,CalculationsAndCharts!$A47+$A$11,IF($C$7,8,0),1,1) -> 253.85 | G47: =OFFSET(InputPriceData!F$15,CalculationsAndCharts!$A47+$A$11,IF($C$7,8,0),1,1) -> 254.37 | H47: 253.16 | I47: 252.1203451 | J47: 0.963568263 | K47: -0.29 | L47: 0.5052559851 | M47: 0.1458622806 | N47: 3.463924896 | O47: 27.59818941 | X47: =IF($R$4,I47,NA()) -> 252.1203451 | AO47: 80646000
A48: 16 | B48: =OFFSET(InputPriceData!B$15,CalculationsAndCharts!$A48+$A$11,0,1,1) -> 2017-10-05 | C48: =OFFSET(InputPriceData!G$15,CalculationsAndCharts!$A48+$A$11,IF($C$7,8,0),1,1) -> 63522800 | D48: =OFFSET(InputPriceData!C$15,CalculationsAndCharts!$A48+$A$11,IF($C$7,8,0),1,1) -> 253.54 | E48: =OFFSET(InputPriceData!D$15,CalculationsAndCharts!$A48+$A$11,IF($C$7,8,0),1,1) -> 254.68 | F48: =OFFSET(InputPriceData!E$15,CalculationsAndCharts!$A48+$A$11,IF($C$7,8,0),1,1) -> 253.2 | G48: =OFFSET(InputPriceData!F$15,CalculationsAndCharts!$A48+$A$11,IF($C$7,8,0),1,1) -> 254.66 | H48: 252.86 | I48: 251.6040465 | J48: 0.8727567601 | K48: 1.5 | L48: 0.5441218301 | M48: 0.1347747637 | N48: 4.037267921 | O48: 30.14796879 | X48: =IF($R$4,I48,NA()) -> 251.6040465 | AO48: 63522800
A49: 17 | B49: =OFFSET(InputPriceData!B$15,CalculationsAndCharts!$A49+$A$11,0,1,1) -> 2017-10-04 | C49: =OFFSET(InputPriceData!G$15,CalculationsAndCharts!$A49+$A$11,IF($C$7,8,0),1,1) -> 55953600 | D49: =OFFSET(InputPriceData!C$15,CalculationsAndCharts!$A49+$A$11,IF($C$7,8,0),1,1) -> 252.69 | E49: =OFFSET(InputPriceData!D$15,CalculationsAndCharts!$A49+$A$11,IF($C$7,8,0),1,1) -> 253.44 | F49: =OFFSET(InputPriceData!E$15,CalculationsAndCharts!$A49+$A$11,IF($C$7,8,0),1,1) -> 252.56 | G49: =OFFSET(InputPriceData!F$15,CalculationsAndCharts!$A49+$A$11,IF($C$7,8,0),1,1) -> 253.16 | H49: 252.32 | I49: 250.9803328 | J49: 0.6267831512 | K49: 0.3 | L49: 0.4705927401 | M49: 0.1451420532 | N49: 3.242290774 | O49: 26.42782984 | X49: =IF($R$4,I49,NA()) -> 250.9803328 | AO49: 55953600
A50: 18 | B50: =OFFSET(InputPriceData!B$15,CalculationsAndCharts!$A50+$A$11,0,1,1) -> 2017-10-03 | C50: =OFFSET(InputPriceData!G$15,CalculationsAndCharts!$A50+$A$11,IF($C$7,8,0),1,1) -> 66810200 | D50: =OFFSET(InputPriceData!C$15,CalculationsAndCharts!$A50+$A$11,IF($C$7,8,0),1,1) -> 252.32 | E50: =OFFSET(InputPriceData!D$15,CalculationsAndCharts!$A50+$A$11,IF($C$7,8,0),1,1) -> 252.89 | F50: =OFFSET(InputPriceData!E$15,CalculationsAndCharts!$A50+$A$11,IF($C$7,8,0),1,1) -> 252.23 | G50: =OFFSET(InputPriceData!F$15,CalculationsAndCharts!$A50+$A$11,IF($C$7,8,0),1,1) -> 252.86 | H50: 251.23 | I50: 250.3150464 | J50: 0.2641976464 | K50: 0.54 | L50: 0.4837152586 | M50: 0.1563068266 | N50: 3.094652161 | O50: 25.57790111 | X50: =IF($R$4,I50,NA()) -> 250.3150464 | AO50: 66810200
A51: 19 | B51: =OFFSET(InputPriceData!B$15,CalculationsAndCharts!$A51+$A$11,0,1,1) -> 2017-10-02 | C51: =OFFSET(InputPriceData!G$15,CalculationsAndCharts!$A51+$A$11,IF($C$7,8,0),1,1) -> 59023000 | D51: =OFFSET(InputPriceData!C$15,CalculationsAndCharts!$A51+$A$11,IF($C$7,8,0),1,1) -> 251.49 | E51: =OFFSET(InputPriceData!D$15,CalculationsAndCharts!$A51+$A$11,IF($C$7,8,0),1,1) -> 252.32 | F51: =OFFSET(InputPriceData!E$15,CalculationsAndCharts!$A51+$A$11,IF($C$7,8,0),1,1) -> 251.29 | G51: =OFFSET(InputPriceData!F$15,CalculationsAndCharts!$A51+$A$11,IF($C$7,8,0),1,1) -> 252.32 | H51: 250.35 | I51: 249.8606752 | J51: 0.04403870379 | K51: 1.09 | L51: 0.4793856631 | M51: 0.1683304286 | N51: 2.847884765 | O51: 24.01169575 | X51: =IF($R$4,I51,NA()) -> 249.8606752 | AO51: 59023000
A52: 20 | B52: =OFFSET(InputPriceData!B$15,CalculationsAndCharts!$A52+$A$11,0,1,1) -> 2017-09-29 | C52: =OFFSET(InputPriceData!G$15,CalculationsAndCharts!$A52+$A$11,IF($C$7,8,0),1,1) -> 85578000 | D52: =OFFSET(InputPriceData!C$15,CalculationsAndCharts!$A52+$A$11,IF($C$7,8,0),1,1) -> 250.34 | E52: =OFFSET(InputPriceData!D$15,CalculationsAndCharts!$A52+$A$11,IF($C$7,8,0),1,1) -> 251.32 | F52: =OFFSET(InputPriceData!E$15,CalculationsAndCharts!$A52+$A$11,IF($C$7,8,0),1,1) -> 250.13 | G52: =OFFSET(InputPriceData!F$15,CalculationsAndCharts!$A52+$A$11,IF($C$7,8,0),1,1) -> 251.23 | H52: 250.05 | I52: 249.6176736 | J52: 0.005370776092 | K52: 0.88 | L52: 0.4324153295 | M52: 0.1812789231 | N52: 2.385359104 | O52: 20.4610362 | X52: =IF($R$4,I52,NA()) -> 249.6176736 | AO52: 85578000
A53: 21 | B53: =OFFSET(InputPriceData!B$15,CalculationsAndCharts!$A53+$A$11,0,1,1) -> 2017-09-28 | C53: =OFFSET(InputPriceData!G$15,CalculationsAndCharts!$A53+$A$11,IF($C$7,8,0),1,1) -> 44778800 | D53: =OFFSET(InputPriceData!C$15,CalculationsAndCharts!$A53+$A$11,IF($C$7,8,0),1,1) -> 249.73 | E53: =OFFSET(InputPriceData!D$15,CalculationsAndCharts!$A53+$A$11,IF($C$7,8,0),1,1) -> 250.44 | F53: =OFFSET(InputPriceData!E$15,CalculationsAndCharts!$A53+$A$11,IF($C$7,8,0),1,1) -> 249.63 | G53: =OFFSET(InputPriceData!F$15,CalculationsAndCharts!$A53+$A$11,IF($C$7,8,0),1,1) -> 250.35 | H53: 249.44 | I53: 249.4029778 | J53: -0.01127500645 | K53: 0.3 | L53: 0.3979857395 | M53: 0.1952234556 | N53: 2.038616406 | O53: 17.09028497 | X53: =IF($R$4,I53,NA()) -> 249.4029778 | AO53: 44778800
A54: 22 | B54: =OFFSET(InputPriceData!B$15,CalculationsAndCharts!$A54+$A$11,0,1,1) -> 2017-09-27 | C54: =OFFSET(InputPriceData!G$15,CalculationsAndCharts!$A54+$A$11,IF($C$7,8,0),1,1) -> 81001400 | D54: =OFFSET(InputPriceData!C$15,CalculationsAndCharts!$A54+$A$11,IF($C$7,8,0),1,1) -> 249.88 | E54: =OFFSET(InputPriceData!D$15,CalculationsAndCharts!$A54+$A$11,IF($C$7,8,0),1,1) -> 250.49 | F54: =OFFSET(InputPriceData!E$15,CalculationsAndCharts!$A54+$A$11,IF($C$7,8,0),1,1) -> 248.87 | G54: =OFFSET(InputPriceData!F$15,CalculationsAndCharts!$A54+$A$11,IF($C$7,8,0),1,1) -> 250.05 | H54: 249.39 | I54: 249.3845924 | J54: 0.1881845475 | K54: 0.97 | L54: 0.4055231041 | M54: 0.2102406445 | N54: 1.928852078 | O54: 15.85693052 | X54: =IF($R$4,I54,NA()) -> 249.3845924 | AO54: 81001400
A55: 23 | B55: =OFFSET(InputPriceData!B$15,CalculationsAndCharts!$A55+$A$11,0,1,1) -> 2017-09-26 | C55: =OFFSET(InputPriceData!G$15,CalculationsAndCharts!$A55+$A$11,IF($C$7,8,0),1,1) -> 54082000 | D55: =OFFSET(InputPriceData!C$15,CalculationsAndCharts!$A55+$A$11,IF($C$7,8,0),1,1) -> 249.42 | E55: =OFFSET(InputPriceData!D$15,CalculationsAndCharts!$A55+$A$11,IF($C$7,8,0),1,1) -> 249.7 | F55: =OFFSET(InputPriceData!E$15,CalculationsAndCharts!$A55+$A$11,IF($C$7,8,0),1,1) -> 248.81 | G55: =OFFSET(InputPriceData!F$15,CalculationsAndCharts!$A55+$A$11,IF($C$7,8,0),1,1) -> 249.08 | H55: 249.39 | I55: 249.381907 | J55: 0.4523605954 | K55: 0.15 | L55: 0.3621018044 | M55: 0.2264130018 | N55: 1.59929775 | O55: 11.52807042 | X55: =IF($R$4,I55,NA()) -> 249.381907 | AP55: 54082000
A56: 24 | B56: =OFFSET(InputPriceData!B$15,CalculationsAndCharts!$A56+$A$11,0,1,1) -> 2017-09-25 | C56: =OFFSET(InputPriceData!G$15,CalculationsAndCharts!$A56+$A$11,IF($C$7,8,0),1,1) -> 57064400 | D56: =OFFSET(InputPriceData!C$15,CalculationsAndCharts!$A56+$A$11,IF($C$7,8,0),1,1) -> 249.15 | E56: =OFFSET(InputPriceData!D$15,CalculationsAndCharts!$A56+$A$11,IF($C$7,8,0),1,1) -> 249.55 | F56: =OFFSET(InputPriceData!E$15,CalculationsAndCharts!$A56+$A$11,IF($C$7,8,0),1,1) -> 248.08 | G56: =OFFSET(InputPriceData!F$15,CalculationsAndCharts!$A56+$A$11,IF($C$7,8,0),1,1) -> 248.93 | H56: 249.44 | I56: 249.3778879 | J56: 0.7746276096 | K56: -0.51 | L56: 0.3784173278 | M56: 0.2438293866 | N56: 1.551975884 | O56: 10.81467673 | X56: =IF($R$4,I56,NA()) -> 249.3778879 | AP56: 57064400
A57: 25 | B57: =OFFSET(InputPriceData!B$15,CalculationsAndCharts!$A57+$A$11,0,1,1) -> 2017-09-22 | C57: =OFFSET(InputPriceData!G$15,CalculationsAndCharts!$A57+$A$11,IF($C$7,8,0),1,1) -> 51214000 | D57: =OFFSET(InputPriceData!C$15,CalculationsAndCharts!$A57+$A$11,IF($C$7,8,0),1,1) -> 249.05 | E57: =OFFSET(InputPriceData!D$15,CalculationsAndCharts!$A57+$A$11,IF($C$7,8,0),1,1) -> 249.63 | F57: =OFFSET(InputPriceData!E$15,CalculationsAndCharts!$A57+$A$11,IF($C$7,8,0),1,1) -> 249.02 | G57: =OFFSET(InputPriceData!F$15,CalculationsAndCharts!$A57+$A$11,IF($C$7,8,0),1,1) -> 249.44 | H57: 249.72 | I57: 249.3470427 | J57: 1.13641951 | K57: 0.05 | L57: 0.407526353 | M57: 0.223354724 | N57: 1.824570108 | O57: 14.5963824 | X57: =IF($R$4,I57,NA()) -> 249.3470427 | AO57: 51214000
A58: 26 | B58: =OFFSET(InputPriceData!B$15,CalculationsAndCharts!$A58+$A$11,0,1,1) -> 2017-09-21 | C58: =OFFSET(InputPriceData!G$15,CalculationsAndCharts!$A58+$A$11,IF($C$7,8,0),1,1) -> 48211400 | D58: =OFFSET(InputPriceData!C$15,CalculationsAndCharts!$A58+$A$11,IF($C$7,8,0),1,1) -> 249.88 | E58: =OFFSET(InputPriceData!D$15,CalculationsAndCharts!$A58+$A$11,IF($C$7,8,0),1,1) -> 249.98 | F58: =OFFSET(InputPriceData!E$15,CalculationsAndCharts!$A58+$A$11,IF($C$7,8,0),1,1) -> 249.19 | G58: =OFFSET(InputPriceData!F$15,CalculationsAndCharts!$A58+$A$11,IF($C$7,8,0),1,1) -> 249.39 | H58: 249.72 | I58: 249.16183 | J58: 1.399579644 | K58: -0.67 | L58: 0.4350283801 | M58: 0.2405358566 | N58: 1.808580169 | O58: 14.39482087 | X58: =IF($R$4,I58,NA()) -> 249.16183 | AP58: 48211400
A59: 27 | B59: =OFFSET(InputPriceData!B$15,CalculationsAndCharts!$A59+$A$11,0,1,1) -> 2017-09-20 | C59: =OFFSET(InputPriceData!G$15,CalculationsAndCharts!$A59+$A$11,IF($C$7,8,0),1,1) -> 59574100 | D59: =OFFSET(InputPriceData!C$15,CalculationsAndCharts!$A59+$A$11,IF($C$7,8,0),1,1) -> 250.07 | E59: =OFFSET(InputPriceData!D$15,CalculationsAndCharts!$A59+$A$11,IF($C$7,8,0),1,1) -> 250.19 | F59: =OFFSET(InputPriceData!E$15,CalculationsAndCharts!$A59+$A$11,IF($C$7,8,0),1,1) -> 248.92 | G59: =OFFSET(InputPriceData!F$15,CalculationsAndCharts!$A59+$A$11,IF($C$7,8,0),1,1) -> 250.06 | H59: 249.72 | I59: 248.8846396 | J59: 1.605824528 | K59: 0.09 | L59: 0.4684921017 | M59: 0.2075001533 | N59: 2.257791593 | O59: 19.30435937 | X59: =IF($R$4,I59,NA()) -> 248.8846396 | AP59: 59574100
A60: 28 | B60: =OFFSET(InputPriceData!B$15,CalculationsAndCharts!$A60+$A$11,0,1,1) -> 2017-09-19 | C60: =OFFSET(InputPriceData!G$15,CalculationsAndCharts!$A60+$A$11,IF($C$7,8,0),1,1) -> 47108100 | D60: =OFFSET(InputPriceData!C$15,CalculationsAndCharts!$A60+$A$11,IF($C$7,8,0),1,1) -> 250 | E60: =OFFSET(InputPriceData!D$15,CalculationsAndCharts!$A60+$A$11,IF($C$7,8,0),1,1) -> 250.07 | F60: =OFFSET(InputPriceData!E$15,CalculationsAndCharts!$A60+$A$11,IF($C$7,8,0),1,1) -> 249.6 | G60: =OFFSET(InputPriceData!F$15,CalculationsAndCharts!$A60+$A$11,IF($C$7,8,0),1,1) -> 249.97 | H60: 249.19 | I60: 248.4697948 | J60: 1.686896855 | K60: 0.25 | L60: 0.4976068788 | M60: 0.2234617035 | N60: 2.226810549 | O60: 19.00964637 | X60: =IF($R$4,I60,NA()) -> 248.4697948 | AP60: 47108100
A61: 29 | B61: =OFFSET(InputPriceData!B$15,CalculationsAndCharts!$A61+$A$11,0,1,1) -> 2017-09-18 | C61: =OFFSET(InputPriceData!G$15,CalculationsAndCharts!$A61+$A$11,IF($C$7,8,0),1,1) -> 46235200 | D61: =OFFSET(InputPriceData!C$15,CalculationsAndCharts!$A61+$A$11,IF($C$7,8,0),1,1) -> 249.61 | E61: =OFFSET(InputPriceData!D$15,CalculationsAndCharts!$A61+$A$11,IF($C$7,8,0),1,1) -> 250.12 | F61: =OFFSET(InputPriceData!E$15,CalculationsAndCharts!$A61+$A$11,IF($C$7,8,0),1,1) -> 249.28 | G61: =OFFSET(InputPriceData!F$15,CalculationsAndCharts!$A61+$A$11,IF($C$7,8,0),1,1) -> 249.72 | H61: 248.93 | I61: 248.1121367 | J61: 1.828921364 | K61: 0.53 | L61: 0.5166535617 | M61: 0.2406510653 | N61: 2.146899126 | O61: 18.22268652 | X61: =IF($R$4,I61,NA()) -> 248.1121367 | AO61: 46235200
A62: 30 | B62: =OFFSET(InputPriceData!B$15,CalculationsAndCharts!$A62+$A$11,0,1,1) -> 2017-09-15 | C62: =OFFSET(InputPriceData!G$15,CalculationsAndCharts!$A62+$A$11,IF($C$7,8,0),1,1) -> 95432400 | D62: =OFFSET(InputPriceData!C$15,CalculationsAndCharts!$A62+$A$11,IF($C$7,8,0),1,1) -> 248.69 | E62: =OFFSET(InputPriceData!D$15,CalculationsAndCharts!$A62+$A$11,IF($C$7,8,0),1,1) -> 249.29 | F62: =OFFSET(InputPriceData!E$15,CalculationsAndCharts!$A62+$A$11,IF($C$7,8,0),1,1) -> 248.57 | G62: =OFFSET(InputPriceData!F$15,CalculationsAndCharts!$A62+$A$11,IF($C$7,8,0),1,1) -> 249.19 | H62: 248.85 | I62: 247.7059811 | J62: 1.926633613 | K62: 0.34 | L62: 0.5156269126 | M62: 0.2591626857 | N62: 1.98958778 | O62: 16.5505724 | X62: =IF($R$4,I62,NA()) -> 247.7059811 | AO62: 95432400
A63: 31 | B63: =OFFSET(InputPriceData!B$15,CalculationsAndCharts!$A63+$A$11,0,1,1) -> 2017-09-14 | C63: =OFFSET(InputPriceData!G$15,CalculationsAndCharts!$A63+$A$11,IF($C$7,8,0),1,1) -> 95446300 | D63: =OFFSET(InputPriceData!C$15,CalculationsAndCharts!$A63+$A$11,IF($C$7,8,0),1,1) -> 248.57 | E63: =OFFSET(InputPriceData!D$15,CalculationsAndCharts!$A63+$A$11,IF($C$7,8,0),1,1) -> 249.08 | F63: =OFFSET(InputPriceData!E$15,CalculationsAndCharts!$A63+$A$11,IF($C$7,8,0),1,1) -> 248.37 | G63: =OFFSET(InputPriceData!F$15,CalculationsAndCharts!$A63+$A$11,IF($C$7,8,0),1,1) -> 248.85 | H63: 248.82 | I63: 247.1378547 | J63: 1.840409937 | K63: -0.08 | L63: 0.5291366751 | M63: 0.279098277 | N63: 1.895879405 | O63: 15.46817528 | X63: =IF($R$4,I63,NA()) -> 247.1378547 | AO63: 95446300
A64: 32 | B64: =OFFSET(InputPriceData!B$15,CalculationsAndCharts!$A64+$A$11,0,1,1) -> 2017-09-13 | C64: =OFFSET(InputPriceData!G$15,CalculationsAndCharts!$A64+$A$11,IF($C$7,8,0),1,1) -> 59228000 | D64: =OFFSET(InputPriceData!C$15,CalculationsAndCharts!$A64+$A$11,IF($C$7,8,0),1,1) -> 248.49 | E64: =OFFSET(InputPriceData!D$15,CalculationsAndCharts!$A64+$A$11,IF($C$7,8,0),1,1) -> 248.97 | F64: =OFFSET(InputPriceData!E$15,CalculationsAndCharts!$A64+$A$11,IF($C$7,8,0),1,1) -> 248.36 | G64: =OFFSET(InputPriceData!F$15,CalculationsAndCharts!$A64+$A$11,IF($C$7,8,0),1,1) -> 248.93 | H64: 247.98 | I64: 246.3024916 | J64: 1.407571579 | K64: 0.11 | L64: 0.5698394963 | M64: 0.294413529 | N64: 1.93550717 | O64: 15.93433631 | X64: =IF($R$4,I64,NA()) -> 246.3024916 | AO64: 59228000
A65: 33 | B65: =OFFSET(InputPriceData!B$15,CalculationsAndCharts!$A65+$A$11,0,1,1) -> 2017-09-12 | C65: =OFFSET(InputPriceData!G$15,CalculationsAndCharts!$A65+$A$11,IF($C$7,8,0),1,1) -> 56896000 | D65: =OFFSET(InputPriceData!C$15,CalculationsAndCharts!$A65+$A$11,IF($C$7,8,0),1,1) -> 248.4 | E65: =OFFSET(InputPriceData!D$15,CalculationsAndCharts!$A65+$A$11,IF($C$7,8,0),1,1) -> 248.85 | F65: =OFFSET(InputPriceData!E$15,CalculationsAndCharts!$A65+$A$11,IF($C$7,8,0),1,1) -> 248.19 | G65: =OFFSET(InputPriceData!F$15,CalculationsAndCharts!$A65+$A$11,IF($C$7,8,0),1,1) -> 248.82 | H65: 245.68 | I65: 245.4694313 | J65: 0.849912723 | K65: 0.84 | L65: 0.6052117653 | M65: 0.3170607236 | N65: 1.908819732 | O65: 15.62179536 | X65: =IF($R$4,I65,NA()) -> 245.4694313 | AO65: 56896000
A66: 34 | B66: =OFFSET(InputPriceData!B$15,CalculationsAndCharts!$A66+$A$11,0,1,1) -> 2017-09-11 | C66: =OFFSET(InputPriceData!G$15,CalculationsAndCharts!$A66+$A$11,IF($C$7,8,0),1,1) -> 71364800 | D66: =OFFSET(InputPriceData!C$15,CalculationsAndCharts!$A66+$A$11,IF($C$7,8,0),1,1) -> 246.82 | E66: =OFFSET(InputPriceData!D$15,CalculationsAndCharts!$A66+$A$11,IF($C$7,8,0),1,1) -> 248.07 | F66: =OFFSET(InputPriceData!E$15,CalculationsAndCharts!$A66+$A$11,IF($C$7,8,0),1,1) -> 246.8 | G66: =OFFSET(InputPriceData!F$15,CalculationsAndCharts!$A66+$A$11,IF($C$7,8,0),1,1) -> 247.98 | H66: 245.65 | I66: 245.3648616 | J66: 0.9582300025 | K66: 2.62 | L66: 0.5871511318 | M66: 0.34145001 | N66: 1.719581533 | O66: 13.22963707 | X66: =IF($R$4,I66,NA()) -> 245.3648616 | AO66: 71364800
A67: 35 | B67: =OFFSET(InputPriceData!B$15,CalculationsAndCharts!$A67+$A$11,0,1,1) -> 2017-09-08 | C67: =OFFSET(InputPriceData!G$15,CalculationsAndCharts!$A67+$A$11,IF($C$7,8,0),1,1) -> 63832800 | D67: =OFFSET(InputPriceData!C$15,CalculationsAndCharts!$A67+$A$11,IF($C$7,8,0),1,1) -> 245.32 | E67: =OFFSET(InputPriceData!D$15,CalculationsAndCharts!$A67+$A$11,IF($C$7,8,0),1,1) -> 245.89 | F67: =OFFSET(InputPriceData!E$15,CalculationsAndCharts!$A67+$A$11,IF($C$7,8,0),1,1) -> 245.08 | G67: =OFFSET(InputPriceData!F$15,CalculationsAndCharts!$A67+$A$11,IF($C$7,8,0),1,1) -> 245.36 | H67: 245.65 | I67: 245.2232603 | J67: 1.038752197 | K67: -0.29 | L67: 0.430778142 | M67: 0.3677153954 | N67: 1.171498793 | O67: 3.948857669 | X67: =IF($R$4,I67,NA()) -> 245.2232603 | AO67: 63832800
A68: 36 | B68: =OFFSET(InputPriceData!B$15,CalculationsAndCharts!$A68+$A$11,0,1,1) -> 2017-09-07 | C68: =OFFSET(InputPriceData!G$15,CalculationsAndCharts!$A68+$A$11,IF($C$7,8,0),1,1) -> 58034700 | D68: =OFFSET(InputPriceData!C$15,CalculationsAndCharts!$A68+$A$11,IF($C$7,8,0),1,1) -> 246.03 | E68: =OFFSET(InputPriceData!D$15,CalculationsAndCharts!$A68+$A$11,IF($C$7,8,0),1,1) -> 246.05 | F68: =OFFSET(InputPriceData!E$15,CalculationsAndCharts!$A68+$A$11,IF($C$7,8,0),1,1) -> 245.18 | G68: =OFFSET(InputPriceData!F$15,CalculationsAndCharts!$A68+$A$11,IF($C$7,8,0),1,1) -> 245.65 | H68: 245.68 | I68: 245.0113389 | J68: 1.046112663 | K68: -0.03 | L68: 0.4639149221 | M68: 0.3736935027 | N68: 1.241431598 | O68: 5.385656155 | X68: =IF($R$4,I68,NA()) -> 245.0113389 | AP68: 58034700
A69: 37 | B69: =OFFSET(InputPriceData!B$15,CalculationsAndCharts!$A69+$A$11,0,1,1) -> 2017-09-06 | C69: =OFFSET(InputPriceData!G$15,CalculationsAndCharts!$A69+$A$11,IF($C$7,8,0),1,1) -> 57916900 | D69: =OFFSET(InputPriceData!C$15,CalculationsAndCharts!$A69+$A$11,IF($C$7,8,0),1,1) -> 245.62 | E69: =OFFSET(InputPriceData!D$15,CalculationsAndCharts!$A69+$A$11,IF($C$7,8,0),1,1) -> 246.06 | F69: =OFFSET(InputPriceData!E$15,CalculationsAndCharts!$A69+$A$11,IF($C$7,8,0),1,1) -> 245.01 | G69: =OFFSET(InputPriceData!F$15,CalculationsAndCharts!$A69+$A$11,IF($C$7,8,0),1,1) -> 245.68 | H69: 245.68 | I69: 244.6792779 | J69: 0.9061150724 | K69: 0.84 | L69: 0.4996006853 | M69: 0.4001314645 | N69: 1.24859135 | O69: 5.527712936 | X69: =IF($R$4,I69,NA()) -> 244.6792779 | AO69: 57916900
A70: 38 | B70: =OFFSET(InputPriceData!B$15,CalculationsAndCharts!$A70+$A$11,0,1,1) -> 2017-09-05 | C70: =OFFSET(InputPriceData!G$15,CalculationsAndCharts!$A70+$A$11,IF($C$7,8,0),1,1) -> 91398800 | D70: =OFFSET(InputPriceData!C$15,CalculationsAndCharts!$A70+$A$11,IF($C$7,8,0),1,1) -> 246.04 | E70: =OFFSET(InputPriceData!D$15,CalculationsAndCharts!$A70+$A$11,IF($C$7,8,0),1,1) -> 246.3 | F70: =OFFSET(InputPriceData!E$15,CalculationsAndCharts!$A70+$A$11,IF($C$7,8,0),1,1) -> 243.74 | G70: =OFFSET(InputPriceData!F$15,CalculationsAndCharts!$A70+$A$11,IF($C$7,8,0),1,1) -> 244.84 | H70: 244.84 | I70: 244.1823135 | J70: 0.5337774721 | K70: -1.78 | L70: 0.4734161227 | M70: 0.4309108079 | N70: 1.098640633 | O70: 2.350107762 | X70: =IF($R$4,I70,NA()) -> 244.1823135 | AP70: 91398800
A71: 39 | B71: =OFFSET(InputPriceData!B$15,CalculationsAndCharts!$A71+$A$11,0,1,1) -> 2017-09-01 | C71: =OFFSET(InputPriceData!G$15,CalculationsAndCharts!$A71+$A$11,IF($C$7,8,0),1,1) -> 62007000 | D71: =OFFSET(InputPriceData!C$15,CalculationsAndCharts!$A71+$A$11,IF($C$7,8,0),1,1) -> 246.7 | E71: =OFFSET(InputPriceData!D$15,CalculationsAndCharts!$A71+$A$11,IF($C$7,8,0),1,1) -> 247.1 | F71: =OFFSET(InputPriceData!E$15,CalculationsAndCharts!$A71+$A$11,IF($C$7,8,0),1,1) -> 246.45 | G71: =OFFSET(InputPriceData!F$15,CalculationsAndCharts!$A71+$A$11,IF($C$7,8,0),1,1) -> 246.62 | H71: 244.8 | I71: 243.8557026 | J71: 0.2522231855 | K71: 0.35 | L71: 0.5098327475 | M71: 0.3271347162 | N71: 1.558479496 | O71: 10.91428516 | X71: =IF($R$4,I71,NA()) -> 243.8557026 | AP71: 62007000
A72: 40 | B72: =OFFSET(InputPriceData!B$15,CalculationsAndCharts!$A72+$A$11,0,1,1) -> 2017-08-31 | C72: =OFFSET(InputPriceData!G$15,CalculationsAndCharts!$A72+$A$11,IF($C$7,8,0),1,1) -> 103803900 | D72: =OFFSET(InputPriceData!C$15,CalculationsAndCharts!$A72+$A$11,IF($C$7,8,0),1,1) -> 245.5 | E72: =OFFSET(InputPriceData!D$15,CalculationsAndCharts!$A72+$A$11,IF($C$7,8,0),1,1) -> 246.55 | F72: =OFFSET(InputPriceData!E$15,CalculationsAndCharts!$A72+$A$11,IF($C$7,8,0),1,1) -> 244.83 | G72: =OFFSET(InputPriceData!F$15,CalculationsAndCharts!$A72+$A$11,IF($C$7,8,0),1,1) -> 246.27 | H72: 243.64 | I72: 243.3867591 | J72: -0.2625922541 | K72: 1.47 | L72: 0.5221275742 | M72: 0.3522989251 | N72: 1.48205838 | O72: 9.710859016 | X72: =IF($R$4,I72,NA()) -> 243.3867591 | AO72: 103803900
A73: 41 | B73: =OFFSET(InputPriceData!B$15,CalculationsAndCharts!$A73+$A$11,0,1,1) -> 2017-08-30 | C73: =OFFSET(InputPriceData!G$15,CalculationsAndCharts!$A73+$A$11,IF($C$7,8,0),1,1) -> 62030800 | D73: =OFFSET(InputPriceData!C$15,CalculationsAndCharts!$A73+$A$11,IF($C$7,8,0),1,1) -> 243.62 | E73: =OFFSET(InputPriceData!D$15,CalculationsAndCharts!$A73+$A$11,IF($C$7,8,0),1,1) -> 245.1 | F73: =OFFSET(InputPriceData!E$15,CalculationsAndCharts!$A73+$A$11,IF($C$7,8,0),1,1) -> 243.41 | G73: =OFFSET(InputPriceData!F$15,CalculationsAndCharts!$A73+$A$11,IF($C$7,8,0),1,1) -> 244.8 | H73: 243.36 | I73: 243.2609983 | J73: -0.5173347367 | K73: 1.16 | L73: 0.4492143107 | M73: 0.3793988425 | N73: 1.184016029 | O73: 4.21279025 | X73: =IF($R$4,I73,NA()) -> 243.2609983 | AO73: 62030800
A74: 42 | B74: =OFFSET(InputPriceData!B$15,CalculationsAndCharts!$A74+$A$11,0,1,1) -> 2017-08-29 | C74: =OFFSET(InputPriceData!G$15,CalculationsAndCharts!$A74+$A$11,IF($C$7,8,0),1,1) -> 51135700 | D74: =OFFSET(InputPriceData!C$15,CalculationsAndCharts!$A74+$A$11,IF($C$7,8,0),1,1) -> 241.86 | E74: =OFFSET(InputPriceData!D$15,CalculationsAndCharts!$A74+$A$11,IF($C$7,8,0),1,1) -> 243.94 | F74: =OFFSET(InputPriceData!E$15,CalculationsAndCharts!$A74+$A$11,IF($C$7,8,0),1,1) -> 241.73 | G74: =OFFSET(InputPriceData!F$15,CalculationsAndCharts!$A74+$A$11,IF($C$7,8,0),1,1) -> 243.64 | H74: 243.35 | I74: 243.2118334 | J74: -0.7425337865 | K74: 0.28 | L74: 0.3945384885 | M74: 0.4085833688 | N74: 0.9656254233 | O74: -0.874392859 | X74: =IF($R$4,I74,NA()) -> 243.2118334 | AO74: 51135700
A75: 43 | B75: =OFFSET(InputPriceData!B$15,CalculationsAndCharts!$A75+$A$11,0,1,1) -> 2017-08-28 | C75: =OFFSET(InputPriceData!G$15,CalculationsAndCharts!$A75+$A$11,IF($C$7,8,0),1,1) -> 40565600 | D75: =OFFSET(InputPriceData!C$15,CalculationsAndCharts!$A75+$A$11,IF($C$7,8,0),1,1) -> 243.96 | E75: =OFFSET(InputPriceData!D$15,CalculationsAndCharts!$A75+$A$11,IF($C$7,8,0),1,1) -> 243.99 | F75: =OFFSET(InputPriceData!E$15,CalculationsAndCharts!$A75+$A$11,IF($C$7,8,0),1,1) -> 242.88 | G75: =OFFSET(InputPriceData!F$15,CalculationsAndCharts!$A75+$A$11,IF($C$7,8,0),1,1) -> 243.36 | H75: 243.35 | I75: 243.1432191 | J75: -1.035388355 | K75: 0.01 | L75: 0.4033491414 | M75: 0.4400128587 | N75: 0.9166758049 | O75: -2.173664291 | X75: =IF($R$4,I75,NA()) -> 243.1432191 | AP75: 40565600
A76: 44 | B76: =OFFSET(InputPriceData!B$15,CalculationsAndCharts!$A76+$A$11,0,1,1) -> 2017-08-25 | C76: =OFFSET(InputPriceData!G$15,CalculationsAndCharts!$A76+$A$11,IF($C$7,8,0),1,1) -> 64445900 | D76: =OFFSET(InputPriceData!C$15,CalculationsAndCharts!$A76+$A$11,IF($C$7,8,0),1,1) -> 243.69 | E76: =OFFSET(InputPriceData!D$15,CalculationsAndCharts!$A76+$A$11,IF($C$7,8,0),1,1) -> 244.4 | F76: =OFFSET(InputPriceData!E$15,CalculationsAndCharts!$A76+$A$11,IF($C$7,8,0),1,1) -> 243.18 | G76: =OFFSET(InputPriceData!F$15,CalculationsAndCharts!$A76+$A$11,IF($C$7,8,0),1,1) -> 243.35 | H76: 243.35 | I76: 243.0405305 | J76: -1.425102808 | K76: 0.56 | L76: 0.4336067677 | M76: 0.4738600017 | N76: 0.9150524757 | O76: -2.21789025 | X76: =IF($R$4,I76,NA()) -> 243.0405305 | AP76: 64445900
A77: 45 | B77: =OFFSET(InputPriceData!B$15,CalculationsAndCharts!$A77+$A$11,0,1,1) -> 2017-08-24 | C77: =OFFSET(InputPriceData!G$15,CalculationsAndCharts!$A77+$A$11,IF($C$7,8,0),1,1) -> 49730500 | D77: =OFFSET(InputPriceData!C$15,CalculationsAndCharts!$A77+$A$11,IF($C$7,8,0),1,1) -> 243.79 | E77: =OFFSET(InputPriceData!D$15,CalculationsAndCharts!$A77+$A$11,IF($C$7,8,0),1,1) -> 243.97 | F77: =OFFSET(InputPriceData!E$15,CalculationsAndCharts!$A77+$A$11,IF($C$7,8,0),1,1) -> 242.55 | G77: =OFFSET(InputPriceData!F$15,CalculationsAndCharts!$A77+$A$11,IF($C$7,8,0),1,1) -> 242.79 | H77: 242.79 | I77: 242.8868462 | J77: -1.9493945 | K77: -0.56 | L77: 0.4238842113 | M77: 0.510310771 | N77: 0.8306393582 | O77: -4.625723822 | X77: =IF($R$4,I77,NA()) -> 242.8868462 | AP77: 49730500
A78: 46 | B78: =OFFSET(InputPriceData!B$15,CalculationsAndCharts!$A78+$A$11,0,1,1) -> 2017-08-23 | C78: =OFFSET(InputPriceData!G$15,CalculationsAndCharts!$A78+$A$11,IF($C$7,8,0),1,1) -> 50203800 | D78: =OFFSET(InputPriceData!C$15,CalculationsAndCharts!$A78+$A$11,IF($C$7,8,0),1,1) -> 243.12 | E78: =OFFSET(InputPriceData!D$15,CalculationsAndCharts!$A78+$A$11,IF($C$7,8,0),1,1) -> 243.84 | F78: =OFFSET(InputPriceData!E$15,CalculationsAndCharts!$A78+$A$11,IF($C$7,8,0),1,1) -> 242.95 | G78: =OFFSET(InputPriceData!F$15,CalculationsAndCharts!$A78+$A$11,IF($C$7,8,0),1,1) -> 243.35 | H78: 241.89 | I78: 242.9349406 | J78: -2.351141509 | K78: -0.88 | L78: 0.4564906891 | M78: 0.5064885227 | N78: 0.9012853574 | O78: -2.595997551 | X78: =IF($R$4,I78,NA()) -> 242.9349406 | AO78: 50203800
A79: 47 | B79: =OFFSET(InputPriceData!B$15,CalculationsAndCharts!$A79+$A$11,0,1,1) -> 2017-08-22 | C79: =OFFSET(InputPriceData!G$15,CalculationsAndCharts!$A79+$A$11,IF($C$7,8,0),1,1) -> 63140100 | D79: =OFFSET(InputPriceData!C$15,CalculationsAndCharts!$A79+$A$11,IF($C$7,8,0),1,1) -> 242.37 | E79: =OFFSET(InputPriceData!D$15,CalculationsAndCharts!$A79+$A$11,IF($C$7,8,0),1,1) -> 244.41 | F79: =OFFSET(InputPriceData!E$15,CalculationsAndCharts!$A79+$A$11,IF($C$7,8,0),1,1) -> 242.35 | G79: =OFFSET(InputPriceData!F$15,CalculationsAndCharts!$A79+$A$11,IF($C$7,8,0),1,1) -> 244.23 | H79: 241.89 | I79: 243.4538641 | J79: -2.292575939 | K79: 2.53 | L79: 0.4916053575 | M79: 0.4777568706 | N79: 1.028986474 | O79: 0.7143091911 | X79: =IF($R$4,I79,NA()) -> 243.4538641 | AO79: 63140100
A80: 48 | B80: =OFFSET(InputPriceData!B$15,CalculationsAndCharts!$A80+$A$11,0,1,1) -> 2017-08-21 | C80: =OFFSET(InputPriceData!G$15,CalculationsAndCharts!$A80+$A$11,IF($C$7,8,0),1,1) -> 65469700 | D80: =OFFSET(InputPriceData!C$15,CalculationsAndCharts!$A80+$A$11,IF($C$7,8,0),1,1) -> 241.44 | E80: =OFFSET(InputPriceData!D$15,CalculationsAndCharts!$A80+$A$11,IF($C$7,8,0),1,1) -> 242 | F80: =OFFSET(InputPriceData!E$15,CalculationsAndCharts!$A80+$A$11,IF($C$7,8,0),1,1) -> 240.64 | G80: =OFFSET(InputPriceData!F$15,CalculationsAndCharts!$A80+$A$11,IF($C$7,8,0),1,1) -> 241.7 | H80: 241.89 | I80: 244.230488 | J80: -1.898716846 | K80: 0.19 | L80: 0.3348057697 | M80: 0.5145073991 | N80: 0.6507307189 | O80: -10.57923249 | X80: =IF($R$4,I80,NA()) -> 244.230488 | AO80: 65469700
A81: 49 | B81: =OFFSET(InputPriceData!B$15,CalculationsAndCharts!$A81+$A$11,0,1,1) -> 2017-08-18 | C81: =OFFSET(InputPriceData!G$15,CalculationsAndCharts!$A81+$A$11,IF($C$7,8,0),1,1) -> 136748000 | D81: =OFFSET(InputPriceData!C$15,CalculationsAndCharts!$A81+$A$11,IF($C$7,8,0),1,1) -> 241.7 | E81: =OFFSET(InputPriceData!D$15,CalculationsAndCharts!$A81+$A$11,IF($C$7,8,0),1,1) -> 242.98 | F81: =OFFSET(InputPriceData!E$15,CalculationsAndCharts!$A81+$A$11,IF($C$7,8,0),1,1) -> 241 | G81: =OFFSET(InputPriceData!F$15,CalculationsAndCharts!$A81+$A$11,IF($C$7,8,0),1,1) -> 241.51 | H81: 245.29 | I81: 245.3927878 | J81: -0.9479560227 | K81: -0.38 | L81: 0.345944675 | M81: 0.5540848913 | N81: 0.6243532001 | O81: -11.56296549 | X81: =IF($R$4,I81,NA()) -> 245.3927878 | AP81: 136748000
A82: 50 | B82: =OFFSET(InputPriceData!B$15,CalculationsAndCharts!$A82+$A$11,0,1,1) -> 2017-08-17 | C82: =OFFSET(InputPriceData!G$15,CalculationsAndCharts!$A82+$A$11,IF($C$7,8,0),1,1) -> 128490400 | D82: =OFFSET(InputPriceData!C$15,CalculationsAndCharts!$A82+$A$11,IF($C$7,8,0),1,1) -> 245.02 | E82: =OFFSET(InputPriceData!D$15,CalculationsAndCharts!$A82+$A$11,IF($C$7,8,0),1,1) -> 245.38 | F82: =OFFSET(InputPriceData!E$15,CalculationsAndCharts!$A82+$A$11,IF($C$7,8,0),1,1) -> 241.89 | G82: =OFFSET(InputPriceData!F$15,CalculationsAndCharts!$A82+$A$11,IF($C$7,8,0),1,1) -> 241.89 | H82: 245.29 | I82: 245.4438329 | J82: -0.9929659677 | K82: -3.83 | L82: 0.3725558039 | M82: 0.5674760368 | N82: 0.6565137199 | O82: -10.36774631 | X82: =IF($R$4,I82,NA()) -> 245.4438329 | AP82: 128490400
A83: 51 | B83: =OFFSET(InputPriceData!B$15,CalculationsAndCharts!$A83+$A$11,0,1,1) -> 2017-08-16 | C83: =OFFSET(InputPriceData!G$15,CalculationsAndCharts!$A83+$A$11,IF($C$7,8,0),1,1) -> 56715500 | D83: =OFFSET(InputPriceData!C$15,CalculationsAndCharts!$A83+$A$11,IF($C$7,8,0),1,1) -> 245.89 | E83: =OFFSET(InputPriceData!D$15,CalculationsAndCharts!$A83+$A$11,IF($C$7,8,0),1,1) -> 246.35 | F83: =OFFSET(InputPriceData!E$15,CalculationsAndCharts!$A83+$A$11,IF($C$7,8,0),1,1) -> 245.23 | G83: =OFFSET(InputPriceData!F$15,CalculationsAndCharts!$A83+$A$11,IF($C$7,8,0),1,1) -> 245.72 | H83: 245.29 | I83: 245.5202272 | J83: -1.007016266 | K83: 0.43 | L83: 0.4012139426 | M83: 0.316512655 | N83: 1.267607902 | O83: 5.900665233 | X83: =IF($R$4,I83,NA()) -> 245.5202272 | AP83: 56715500
A84: 52 | B84: =OFFSET(InputPriceData!B$15,CalculationsAndCharts!$A84+$A$11,0,1,1) -> 2017-08-15 | C84: =OFFSET(InputPriceData!G$15,CalculationsAndCharts!$A84+$A$11,IF($C$7,8,0),1,1) -> 55242700 | D84: =OFFSET(InputPriceData!C$15,CalculationsAndCharts!$A84+$A$11,IF($C$7,8,0),1,1) -> 245.76 | E84: =OFFSET(InputPriceData!D$15,CalculationsAndCharts!$A84+$A$11,IF($C$7,8,0),1,1) -> 245.78 | F84: =OFFSET(InputPriceData!E$15,CalculationsAndCharts!$A84+$A$11,IF($C$7,8,0),1,1) -> 244.94 | G84: =OFFSET(InputPriceData!F$15,CalculationsAndCharts!$A84+$A$11,IF($C$7,8,0),1,1) -> 245.29 | H84: 245.29 | I84: 245.6345593 | J84: -0.9680805355 | K84: -0.03 | L84: 0.3989996305 | M84: 0.3408597823 | N84: 1.170568226 | O84: 3.929114586 | X84: =IF($R$4,I84,NA()) -> 245.6345593 | AP84: 55242700
A85: 53 | B85: =OFFSET(InputPriceData!B$15,CalculationsAndCharts!$A85+$A$11,0,1,1) -> 2017-08-14 | C85: =OFFSET(InputPriceData!G$15,CalculationsAndCharts!$A85+$A$11,IF($C$7,8,0),1,1) -> 72139000 | D85: =OFFSET(InputPriceData!C$15,CalculationsAndCharts!$A85+$A$11,IF($C$7,8,0),1,1) -> 244.38 | E85: =OFFSET(InputPriceData!D$15,CalculationsAndCharts!$A85+$A$11,IF($C$7,8,0),1,1) -> 245.57 | F85: =OFFSET(InputPriceData!E$15,CalculationsAndCharts!$A85+$A$11,IF($C$7,8,0),1,1) -> 244.34 | G85: =OFFSET(InputPriceData!F$15,CalculationsAndCharts!$A85+$A$11,IF($C$7,8,0),1,1) -> 245.32 | H85: 245.32 | I85: 245.8056695 | J85: -0.842366702 | K85: 2.41 | L85: 0.4296919098 | M85: 0.3647720732 | N85: 1.177973703 | O85: 4.085763353 | X85: =IF($R$4,I85,NA()) -> 245.8056695 | AO85: 72139000
A86: 54 | B86: =OFFSET(InputPriceData!B$15,CalculationsAndCharts!$A86+$A$11,0,1,1) -> 2017-08-11 | C86: =OFFSET(InputPriceData!G$15,CalculationsAndCharts!$A86+$A$11,IF($C$7,8,0),1,1) -> 74869900 | D86: =OFFSET(InputPriceData!C$15,CalculationsAndCharts!$A86+$A$11,IF($C$7,8,0),1,1) -> 242.81 | E86: =OFFSET(InputPriceData!D$15,CalculationsAndCharts!$A86+$A$11,IF($C$7,8,0),1,1) -> 243.59 | F86: =OFFSET(InputPriceData!E$15,CalculationsAndCharts!$A86+$A$11,IF($C$7,8,0),1,1) -> 242.55 | G86: =OFFSET(InputPriceData!F$15,CalculationsAndCharts!$A86+$A$11,IF($C$7,8,0),1,1) -> 242.91 | H86: 246.03 | I86: 246.0468557 | J86: -0.5950749841 | K86: 0.35 | L86: 0.2773605182 | M86: 0.3928314635 | N86: 0.7060547436 | O86: -8.614766247 | X86: =IF($R$4,I86,NA()) -> 246.0468557 | AO86: 74869900
A87: 55 | B87: =OFFSET(InputPriceData!B$15,CalculationsAndCharts!$A87+$A$11,0,1,1) -> 2017-08-10 | C87: =OFFSET(InputPriceData!G$15,CalculationsAndCharts!$A87+$A$11,IF($C$7,8,0),1,1) -> 120479500 | D87: =OFFSET(InputPriceData!C$15,CalculationsAndCharts!$A87+$A$11,IF($C$7,8,0),1,1) -> 245.07 | E87: =OFFSET(InputPriceData!D$15,CalculationsAndCharts!$A87+$A$11,IF($C$7,8,0),1,1) -> 245.22 | F87: =OFFSET(InputPriceData!E$15,CalculationsAndCharts!$A87+$A$11,IF($C$7,8,0),1,1) -> 242.5 | G87: =OFFSET(InputPriceData!F$15,CalculationsAndCharts!$A87+$A$11,IF($C$7,8,0),1,1) -> 242.56 | H87: 246.04 | I87: 246.0552264 | J87: -0.5389199341 | K87: -3.47 | L87: 0.2717728658 | M87: 0.4230492684 | N87: 0.64241422 | O87: -10.88598039 | X87: =IF($R$4,I87,NA()) -> 246.0552264 | AP87: 120479500
A88: 56 | B88: =OFFSET(InputPriceData!B$15,CalculationsAndCharts!$A88+$A$11,0,1,1) -> 2017-08-09 | C88: =OFFSET(InputPriceData!G$15,CalculationsAndCharts!$A88+$A$11,IF($C$7,8,0),1,1) -> 62632600 | D88: =OFFSET(InputPriceData!C$15,CalculationsAndCharts!$A88+$A$11,IF($C$7,8,0),1,1) -> 245.25 | E88: =OFFSET(InputPriceData!D$15,CalculationsAndCharts!$A88+$A$11,IF($C$7,8,0),1,1) -> 246.09 | F88: =OFFSET(InputPriceData!E$15,CalculationsAndCharts!$A88+$A$11,IF($C$7,8,0),1,1) -> 244.84 | G88: =OFFSET(InputPriceData!F$15,CalculationsAndCharts!$A88+$A$11,IF($C$7,8,0),1,1) -> 246.03 | H88: 246.04 | I88: 246.0627879 | J88: -0.4622062481 | K88: -0.01 | L88: 0.2926784708 | M88: 0.1886684429 | N88: 1.551284711 | O88: 10.80406096 | X88: =IF($R$4,I88,NA()) -> 246.0627879 | AO88: 62632600
A89: 57 | B89: =OFFSET(InputPriceData!B$15,CalculationsAndCharts!$A89+$A$11,0,1,1) -> 2017-08-08 | C89: =OFFSET(InputPriceData!G$15,CalculationsAndCharts!$A89+$A$11,IF($C$7,8,0),1,1) -> 61719400 | D89: =OFFSET(InputPriceData!C$15,CalculationsAndCharts!$A89+$A$11,IF($C$7,8,0),1,1) -> 246.29 | E89: =OFFSET(InputPriceData!D$15,CalculationsAndCharts!$A89+$A$11,IF($C$7,8,0),1,1) -> 247.68 | F89: =OFFSET(InputPriceData!E$15,CalculationsAndCharts!$A89+$A$11,IF($C$7,8,0),1,1) -> 245.61 | G89: =OFFSET(InputPriceData!F$15,CalculationsAndCharts!$A89+$A$11,IF($C$7,8,0),1,1) -> 246.04 | H89: 246.19 | I89: 246.0741045 | J89: -0.3557546925 | K89: -0.61 | L89: 0.3151921994 | M89: 0.2024121692 | N89: 1.557180087 | O89: 10.8944241 | X89: =IF($R$4,I89,NA()) -> 246.0741045 | AP89: 61719400
A90: 58 | B90: =OFFSET(InputPriceData!B$15,CalculationsAndCharts!$A90+$A$11,0,1,1) -> 2017-08-07 | C90: =OFFSET(InputPriceData!G$15,CalculationsAndCharts!$A90+$A$11,IF($C$7,8,0),1,1) -> 31995000 | D90: =OFFSET(InputPriceData!C$15,CalculationsAndCharts!$A90+$A$11,IF($C$7,8,0),1,1) -> 246.27 | E90: =OFFSET(InputPriceData!D$15,CalculationsAndCharts!$A90+$A$11,IF($C$7,8,0),1,1) -> 246.65 | F90: =OFFSET(InputPriceData!E$15,CalculationsAndCharts!$A90+$A$11,IF($C$7,8,0),1,1) -> 246.15 | G90: =OFFSET(InputPriceData!F$15,CalculationsAndCharts!$A90+$A$11,IF($C$7,8,0),1,1) -> 246.65 | H90: 246.19 | I90: 246.0165501 | J90: -0.2950538381 | K90: 0.46 | L90: 0.3394377532 | M90: 0.1710592592 | N90: 1.984328441 | O90: 16.49162384 | X90: =IF($R$4,I90,NA()) -> 246.0165501 | AO90: 31995000
A91: 59 | B91: =OFFSET(InputPriceData!B$15,CalculationsAndCharts!$A91+$A$11,0,1,1) -> 2017-08-04 | C91: =OFFSET(InputPriceData!G$15,CalculationsAndCharts!$A91+$A$11,IF($C$7,8,0),1,1) -> 60191800 | D91: =OFFSET(InputPriceData!C$15,CalculationsAndCharts!$A91+$A$11,IF($C$7,8,0),1,1) -> 246.3 | E91: =OFFSET(InputPriceData!D$15,CalculationsAndCharts!$A91+$A$11,IF($C$7,8,0),1,1) -> 246.57 | F91: =OFFSET(InputPriceData!E$15,CalculationsAndCharts!$A91+$A$11,IF($C$7,8,0),1,1) -> 245.75 | G91: =OFFSET(InputPriceData!F$15,CalculationsAndCharts!$A91+$A$11,IF($C$7,8,0),1,1) -> 246.19 | H91: 246.1 | I91: 245.9304139 | J91: -0.2471783292 | K91: 0.45 | L91: 0.3301637342 | M91: 0.1842176637 | N91: 1.792247972 | O91: 14.18656186 | X91: =IF($R$4,I91,NA()) -> 245.9304139 | AP91: 60191800
A92: 60 | B92: =OFFSET(InputPriceData!B$15,CalculationsAndCharts!$A92+$A$11,0,1,1) -> 2017-08-03 | C92: =OFFSET(InputPriceData!G$15,CalculationsAndCharts!$A92+$A$11,IF($C$7,8,0),1,1) -> 40856000 | D92: =OFFSET(InputPriceData!C$15,CalculationsAndCharts!$A92+$A$11,IF($C$7,8,0),1,1) -> 246.09 | E92: =OFFSET(InputPriceData!D$15,CalculationsAndCharts!$A92+$A$11,IF($C$7,8,0),1,1) -> 246.12 | F92: =OFFSET(InputPriceData!E$15,CalculationsAndCharts!$A92+$A$11,IF($C$7,8,0),1,1) -> 245.42 | G92: =OFFSET(InputPriceData!F$15,CalculationsAndCharts!$A92+$A$11,IF($C$7,8,0),1,1) -> 245.74 | H92: 245.74 | I92: 245.8461965 | J92: -0.1817920846 | K92: -0.48 | L92: 0.3209455599 | M92: 0.1983882533 | N92: 1.617764936 | O92: 11.79947305 | X92: =IF($R$4,I92,NA()) -> 245.8461965 | AP92: 40856000
A93: 61 | B93: =OFFSET(InputPriceData!B$15,CalculationsAndCharts!$A93+$A$11,0,1,1) -> 2017-08-02 | C93: =OFFSET(InputPriceData!G$15,CalculationsAndCharts!$A93+$A$11,IF($C$7,8,0),1,1) -> 47211200 | D93: =OFFSET(InputPriceData!C$15,CalculationsAndCharts!$A93+$A$11,IF($C$7,8,0),1,1) -> 246.25 | E93: =OFFSET(InputPriceData!D$15,CalculationsAndCharts!$A93+$A$11,IF($C$7,8,0),1,1) -> 246.38 | F93: =OFFSET(InputPriceData!E$15,CalculationsAndCharts!$A93+$A$11,IF($C$7,8,0),1,1) -> 245.15 | G93: =OFFSET(InputPriceData!F$15,CalculationsAndCharts!$A93+$A$11,IF($C$7,8,0),1,1) -> 246.22 | H93: 245.98 | I93: 245.8989343 | J93: 0.05596368823 | K93: 0.12 | L93: 0.3456336799 | M93: 0.1767258112 | N93: 1.955762305 | O93: 16.16778019 | X93: =IF($R$4,I93,NA()) -> 245.8989343 | AP93: 47211200
A94: 62 | B94: =OFFSET(InputPriceData!B$15,CalculationsAndCharts!$A94+$A$11,0,1,1) -> 2017-08-01 | C94: =OFFSET(InputPriceData!G$15,CalculationsAndCharts!$A94+$A$11,IF($C$7,8,0),1,1) -> 55050400 | D94: =OFFSET(InputPriceData!C$15,CalculationsAndCharts!$A94+$A$11,IF($C$7,8,0),1,1) -> 246.24 | E94: =OFFSET(InputPriceData!D$15,CalculationsAndCharts!$A94+$A$11,IF($C$7,8,0),1,1) -> 246.28 | F94: =OFFSET(InputPriceData!E$15,CalculationsAndCharts!$A94+$A$11,IF($C$7,8,0),1,1) -> 245.5 | G94: =OFFSET(InputPriceData!F$15,CalculationsAndCharts!$A94+$A$11,IF($C$7,8,0),1,1) -> 246.1 | H94: 245.98 | I94: 245.8586765 | J94: 0.2479477426 | K94: 0.55 | L94: 0.3629901168 | M94: 0.1903201044 | N94: 1.907261022 | O94: 15.6033637 | X94: =IF($R$4,I94,NA()) -> 245.8586765 | AP94: 55050400
A95: 63 | B95: =OFFSET(InputPriceData!B$15,CalculationsAndCharts!$A95+$A$11,0,1,1) -> 2017-07-31 | C95: =OFFSET(InputPriceData!G$15,CalculationsAndCharts!$A95+$A$11,IF($C$7,8,0),1,1) -> 65838700 | D95: =OFFSET(InputPriceData!C$15,CalculationsAndCharts!$A95+$A$11,IF($C$7,8,0),1,1) -> 246.15 | E95: =OFFSET(InputPriceData!D$15,CalculationsAndCharts!$A95+$A$11,IF($C$7,8,0),1,1) -> 246.26 | F95: =OFFSET(InputPriceData!E$15,CalculationsAndCharts!$A95+$A$11,IF($C$7,8,0),1,1) -> 245.31 | G95: =OFFSET(InputPriceData!F$15,CalculationsAndCharts!$A95+$A$11,IF($C$7,8,0),1,1) -> 245.55 | H95: 245.98 | I95: 245.7984266 | J95: 0.4619394344 | K95: -0.14 | L95: 0.3486047412 | M95: 0.2049601124 | N95: 1.700841872 | O95: 12.97450767 | X95: =IF($R$4,I95,NA()) -> 245.7984266 | AP95: 65838700
A96: 64 | B96: =OFFSET(InputPriceData!B$15,CalculationsAndCharts!$A96+$A$11,0,1,1) -> 2017-07-28 | C96: =OFFSET(InputPriceData!G$15,CalculationsAndCharts!$A96+$A$11,IF($C$7,8,0),1,1) -> 50088400 | D96: =OFFSET(InputPriceData!C$15,CalculationsAndCharts!$A96+$A$11,IF($C$7,8,0),1,1) -> 245.43 | E96: =OFFSET(InputPriceData!D$15,CalculationsAndCharts!$A96+$A$11,IF($C$7,8,0),1,1) -> 245.84 | F96: =OFFSET(InputPriceData!E$15,CalculationsAndCharts!$A96+$A$11,IF($C$7,8,0),1,1) -> 244.91 | G96: =OFFSET(InputPriceData!F$15,CalculationsAndCharts!$A96+$A$11,IF($C$7,8,0),1,1) -> 245.69 | H96: 245.98 | I96: 245.7082562 | J96: 0.6893284147 | K96: -0.29 | L96: 0.3754204905 | M96: 0.2099570441 | N96: 1.788082377 | O96: 14.13305402 | X96: =IF($R$4,I96,NA()) -> 245.7082562 | AO96: 50088400
A97: 65 | B97: =OFFSET(InputPriceData!B$15,CalculationsAndCharts!$A97+$A$11,0,1,1) -> 2017-07-27 | C97: =OFFSET(InputPriceData!G$15,CalculationsAndCharts!$A97+$A$11,IF($C$7,8,0),1,1) -> 70766600 | D97: =OFFSET(InputPriceData!C$15,CalculationsAndCharts!$A97+$A$11,IF($C$7,8,0),1,1) -> 246.74 | E97: =OFFSET(InputPriceData!D$15,CalculationsAndCharts!$A97+$A$11,IF($C$7,8,0),1,1) -> 246.78 | F97: =OFFSET(InputPriceData!E$15,CalculationsAndCharts!$A97+$A$11,IF($C$7,8,0),1,1) -> 244.47 | G97: =OFFSET(InputPriceData!F$15,CalculationsAndCharts!$A97+$A$11,IF($C$7,8,0),1,1) -> 245.98 | H97: 245.98 | I97: 245.5733067 | J97: 0.91364442 | K97: -0.23 | L97: 0.4042989898 | M97: 0.2037998937 | N97: =IF($A97<=($A$8-$C$21),L97/M97,0) -> 1.983803732 | O97: 16.48573131 | X97: =IF($R$4,I97,NA()) -> 245.5733067 | AO97: =IF(G97>=D97,C97,NA()) ->  | AP97: =IF(G97<D97,C97,NA()) -> 70766600
A98: 66 | B98: =OFFSET(InputPriceData!B$15,CalculationsAndCharts!$A98+$A$11,0,1,1) -> 2017-07-26 | C98: =OFFSET(InputPriceData!G$15,CalculationsAndCharts!$A98+$A$11,IF($C$7,8,0),1,1) -> 47575400 | D98: =OFFSET(InputPriceData!C$15,CalculationsAndCharts!$A98+$A$11,IF($C$7,8,0),1,1) -> 246.53 | E98: =OFFSET(InputPriceData!D$15,CalculationsAndCharts!$A98+$A$11,IF($C$7,8,0),1,1) -> 246.57 | F98: =OFFSET(InputPriceData!E$15,CalculationsAndCharts!$A98+$A$11,IF($C$7,8,0),1,1) -> 245.91 | G98: =OFFSET(InputPriceData!F$15,CalculationsAndCharts!$A98+$A$11,IF($C$7,8,0),1,1) -> 246.21 | H98: =MEDIAN(OFFSET(G98,0,0,$C$17,1)) -> 245.88 | I98: =$E$18*H98+$F$18*I99 -> 245.3713404 | J98: =(1 -$E$19/2)^2*(I98-2*I99+I100)+2*$F$19*J99-$F$19^2*J100 -> 1.10608098 | K98: =IF(A98<$A$8,G98-G99,0) -> 0.01 | L98: =IF($A98<($A$8-$C$21),((MIN($C$21,$A$8-$A98+1)-1)*L99+IF($K98>0,$K98,0))/MIN($C$21,$A$8-$A98+1),IF($A98=($A$8-$C$21),SUMIF(OFFSET($K98,0,0,$C$21,1),">0")/$C$21,0)) -> 0.435398912 | M98: =IF($A98<($A$8-$C$21),((MIN($C$21,$A$8-$A98+1)-1)*M99+IF($K98<0,-$K98,0))/MIN($C$21,$A$8-$A98+1),IF($A98=($A$8-$C$21),-SUMIF(OFFSET($K98,0,0,$C$21,1),"<0")/$C$21,0)) -> 0.2017845009 | N98: 2.157742097 | O98: =IF($A98<=($A$8-$C$21),(100-100/(1+N98)-50),0) -> 18.33180262 | X98: =IF($R$4,I98,NA()) -> 245.3713404 | AP98: 47575400
A99: 67 | B99: =OFFSET(InputPriceData!B$15,CalculationsAndCharts!$A99+$A$11,0,1,1) -> 2017-07-25 | C99: =OFFSET(InputPriceData!G$15,CalculationsAndCharts!$A99+$A$11,IF($C$7,8,0),1,1) -> 54915600 | D99: =OFFSET(InputPriceData!C$15,CalculationsAndCharts!$A99+$A$11,IF($C$7,8,0),1,1) -> 246.46 | E99: =OFFSET(InputPriceData!D$15,CalculationsAndCharts!$A99+$A$11,IF($C$7,8,0),1,1) -> 246.58 | F99: =OFFSET(InputPriceData!E$15,CalculationsAndCharts!$A99+$A$11,IF($C$7,8,0),1,1) -> 245.94 | G99: =OFFSET(InputPriceData!F$15,CalculationsAndCharts!$A99+$A$11,IF($C$7,8,0),1,1) -> 246.2 | H99: 245.77 | I99: 245.1187372 | J99: 1.274389215 | K99: 0.6 | L99: 0.4681219053 | M99: 0.2173063856 | N99: 2.154202253 | O99: 18.29626257 | X99: =IF($R$4,I99,NA()) -> 245.1187372 | AP99: 54915600
A100: 68 | B100: =OFFSET(InputPriceData!B$15,CalculationsAndCharts!$A100+$A$11,0,1,1) -> 2017-07-24 | C100: =OFFSET(InputPriceData!G$15,CalculationsAndCharts!$A100+$A$11,IF($C$7,8,0),1,1) -> 46622300 | D100: =OFFSET(InputPriceData!C$15,CalculationsAndCharts!$A100+$A$11,IF($C$7,8,0),1,1) -> 245.57 | E100: =OFFSET(InputPriceData!D$15,CalculationsAndCharts!$A100+$A$11,IF($C$7,8,0),1,1) -> 245.76 | F100: =OFFSET(InputPriceData!E$15,CalculationsAndCharts!$A100+$A$11,IF($C$7,8,0),1,1) -> 245.06 | G100: =OFFSET(InputPriceData!F$15,CalculationsAndCharts!$A100+$A$11,IF($C$7,8,0),1,1) -> 245.6 | H100: 245.66 | I100: 244.7953163 | J100: 1.387596262 | K100: -0.06 | L100: 0.4579774365 | M100: 0.2340222614 | N100: 1.956982356 | O100: 16.18173937 | X100: =IF($R$4,I100,NA()) -> 244.7953163 | AO100: 46622300
A101: 69 | B101: =OFFSET(InputPriceData!B$15,CalculationsAndCharts!$A101+$A$11,0,1,1) -> 2017-07-21 | C101: =OFFSET(InputPriceData!G$15,CalculationsAndCharts!$A101+$A$11,IF($C$7,8,0),1,1) -> 82340800 | D101: =OFFSET(InputPriceData!C$15,CalculationsAndCharts!$A101+$A$11,IF($C$7,8,0),1,1) -> 245.22 | E101: =OFFSET(InputPriceData!D$15,CalculationsAndCharts!$A101+$A$11,IF($C$7,8,0),1,1) -> 245.69 | F101: =OFFSET(InputPriceData!E$15,CalculationsAndCharts!$A101+$A$11,IF($C$7,8,0),1,1) -> 244.96 | G101: =OFFSET(InputPriceData!F$15,CalculationsAndCharts!$A101+$A$11,IF($C$7,8,0),1,1) -> 245.66 | H101: 245.66 | I101: 244.3659094 | J101: 1.390967762 | K101: -0.22 | L101: 0.49320647 | M101: 0.2474085892 | N101: 1.993489683 | O101: 16.59417249 | X101: =IF($R$4,I101,NA()) -> 244.3659094 | AO101: 82340800
A102: 70 | B102: =OFFSET(InputPriceData!B$15,CalculationsAndCharts!$A102+$A$11,0,1,1) -> 2017-07-20 | C102: =OFFSET(InputPriceData!G$15,CalculationsAndCharts!$A102+$A$11,IF($C$7,8,0),1,1) -> 47135200 | D102: =OFFSET(InputPriceData!C$15,CalculationsAndCharts!$A102+$A$11,IF($C$7,8,0),1,1) -> 246.06 | E102: =OFFSET(InputPriceData!D$15,CalculationsAndCharts!$A102+$A$11,IF($C$7,8,0),1,1) -> 246.2 | F102: =OFFSET(InputPriceData!E$15,CalculationsAndCharts!$A102+$A$11,IF($C$7,8,0),1,1) -> 245.25 | G102: =OFFSET(InputPriceData!F$15,CalculationsAndCharts!$A102+$A$11,IF($C$7,8,0),1,1) -> 245.88 | H102: 244.45 | I102: 243.7232565 | J102: 1.136819721 | K102: 0.11 | L102: 0.5311454293 | M102: 0.2495169422 | N102: 2.128694848 | O102: 18.03779056 | X102: =IF($R$4,I102,NA()) -> 243.7232565 | AP102: 47135200
A103: 71 | B103: =OFFSET(InputPriceData!B$15,CalculationsAndCharts!$A103+$A$11,0,1,1) -> 2017-07-19 | C103: =OFFSET(InputPriceData!G$15,CalculationsAndCharts!$A103+$A$11,IF($C$7,8,0),1,1) -> 51034300 | D103: =OFFSET(InputPriceData!C$15,CalculationsAndCharts!$A103+$A$11,IF($C$7,8,0),1,1) -> 244.81 | E103: =OFFSET(InputPriceData!D$15,CalculationsAndCharts!$A103+$A$11,IF($C$7,8,0),1,1) -> 245.78 | F103: =OFFSET(InputPriceData!E$15,CalculationsAndCharts!$A103+$A$11,IF($C$7,8,0),1,1) -> 244.8 | G103: =OFFSET(InputPriceData!F$15,CalculationsAndCharts!$A103+$A$11,IF($C$7,8,0),1,1) -> 245.77 | H103: 244.35 | I103: 243.3623515 | J103: 1.119454339 | K103: 1.32 | L103: 0.5635412315 | M103: 0.2687105531 | N103: 2.097205431 | O103: 17.71282945 | X103: =IF($R$4,I103,NA()) -> 243.3623515 | AO103: 51034300
A104: 72 | B104: =OFFSET(InputPriceData!B$15,CalculationsAndCharts!$A104+$A$11,0,1,1) -> 2017-07-18 | C104: =OFFSET(InputPriceData!G$15,CalculationsAndCharts!$A104+$A$11,IF($C$7,8,0),1,1) -> 42742500 | D104: =OFFSET(InputPriceData!C$15,CalculationsAndCharts!$A104+$A$11,IF($C$7,8,0),1,1) -> 243.85 | E104: =OFFSET(InputPriceData!D$15,CalculationsAndCharts!$A104+$A$11,IF($C$7,8,0),1,1) -> 244.51 | F104: =OFFSET(InputPriceData!E$15,CalculationsAndCharts!$A104+$A$11,IF($C$7,8,0),1,1) -> 243.46 | G104: =OFFSET(InputPriceData!F$15,CalculationsAndCharts!$A104+$A$11,IF($C$7,8,0),1,1) -> 244.45 | H104: 244.32 | I104: 242.8718796 | J104: 0.9369812194 | K104: 0.13 | L104: 0.5053520955 | M104: 0.2893805957 | N104: 1.746323365 | O104: 13.58768188 | X104: =IF($R$4,I104,NA()) -> 242.8718796 | AO104: 42742500
A105: 73 | B105: =OFFSET(InputPriceData!B$15,CalculationsAndCharts!$A105+$A$11,0,1,1) -> 2017-07-17 | C105: =OFFSET(InputPriceData!G$15,CalculationsAndCharts!$A105+$A$11,IF($C$7,8,0),1,1) -> 33531900 | D105: =OFFSET(InputPriceData!C$15,CalculationsAndCharts!$A105+$A$11,IF($C$7,8,0),1,1) -> 244.26 | E105: =OFFSET(InputPriceData!D$15,CalculationsAndCharts!$A105+$A$11,IF($C$7,8,0),1,1) -> 244.7 | F105: =OFFSET(InputPriceData!E$15,CalculationsAndCharts!$A105+$A$11,IF($C$7,8,0),1,1) -> 244.12 | G105: =OFFSET(InputPriceData!F$15,CalculationsAndCharts!$A105+$A$11,IF($C$7,8,0),1,1) -> 244.32 | H105: 243.21 | I105: 242.1527346 | J105: 0.4396550235 | K105: -0.03 | L105: 0.5342253336 | M105: 0.3116406415 | N105: 1.714235124 | O105: 13.15720804 | X105: =IF($R$4,I105,NA()) -> 242.1527346 | AO105: 33531900
A106: 74 | B106: =OFFSET(InputPriceData!B$15,CalculationsAndCharts!$A106+$A$11,0,1,1) -> 2017-07-14 | C106: =OFFSET(InputPriceData!G$15,CalculationsAndCharts!$A106+$A$11,IF($C$7,8,0),1,1) -> 60262700 | D106: =OFFSET(InputPriceData!C$15,CalculationsAndCharts!$A106+$A$11,IF($C$7,8,0),1,1) -> 243.21 | E106: =OFFSET(InputPriceData!D$15,CalculationsAndCharts!$A106+$A$11,IF($C$7,8,0),1,1) -> 244.76 | F106: =OFFSET(InputPriceData!E$15,CalculationsAndCharts!$A106+$A$11,IF($C$7,8,0),1,1) -> 243.1 | G106: =OFFSET(InputPriceData!F$15,CalculationsAndCharts!$A106+$A$11,IF($C$7,8,0),1,1) -> 244.35 | H106: 242.81 | I106: 241.6276905 | J106: 0.02988401023 | K106: 1.14 | L106: 0.57531959 | M106: 0.3333053062 | N106: 1.726103903 | O106: 13.3176124 | X106: =IF($R$4,I106,NA()) -> 241.6276905 | AO106: 60262700
A107: 75 | B107: =OFFSET(InputPriceData!B$15,CalculationsAndCharts!$A107+$A$11,0,1,1) -> 2017-07-13 | C107: =OFFSET(InputPriceData!G$15,CalculationsAndCharts!$A107+$A$11,IF($C$7,8,0),1,1) -> 39471600 | D107: =OFFSET(InputPriceData!C$15,CalculationsAndCharts!$A107+$A$11,IF($C$7,8,0),1,1) -> 242.81 | E107: =OFFSET(InputPriceData!D$15,CalculationsAndCharts!$A107+$A$11,IF($C$7,8,0),1,1) -> 243.34 | F107: =OFFSET(InputPriceData!E$15,CalculationsAndCharts!$A107+$A$11,IF($C$7,8,0),1,1) -> 242.56 | G107: =OFFSET(InputPriceData!F$15,CalculationsAndCharts!$A107+$A$11,IF($C$7,8,0),1,1) -> 243.21 | H107: 241.17 | I107: 241.0405488 | J107: -0.5520718028 | K107: 0.4 | L107: 0.5318826354 | M107: 0.3589441759 | N107: 1.481797647 | O107: 9.70662632 | X107: =IF($R$4,I107,NA()) -> 241.0405488 | AO107: 39471600
A108: 76 | B108: =OFFSET(InputPriceData!B$15,CalculationsAndCharts!$A108+$A$11,0,1,1) -> 2017-07-12 | C108: =OFFSET(InputPriceData!G$15,CalculationsAndCharts!$A108+$A$11,IF($C$7,8,0),1,1) -> 59610400 | D108: =OFFSET(InputPriceData!C$15,CalculationsAndCharts!$A108+$A$11,IF($C$7,8,0),1,1) -> 242.1 | E108: =OFFSET(InputPriceData!D$15,CalculationsAndCharts!$A108+$A$11,IF($C$7,8,0),1,1) -> 242.99 | F108: =OFFSET(InputPriceData!E$15,CalculationsAndCharts!$A108+$A$11,IF($C$7,8,0),1,1) -> 242.1 | G108: =OFFSET(InputPriceData!F$15,CalculationsAndCharts!$A108+$A$11,IF($C$7,8,0),1,1) -> 242.81 | H108: 240.99 | I108: 240.9762627 | J108: -0.6852353791 | K108: 1.82 | L108: 0.5420274535 | M108: 0.3865552664 | N108: 1.402199118 | O108: 8.37147751 | X108: =IF($R$4,I108,NA()) -> 240.9762627 | AO108: 59610400
A109: 77 | B109: =OFFSET(InputPriceData!B$15,CalculationsAndCharts!$A109+$A$11,0,1,1) -> 2017-07-11 | C109: =OFFSET(InputPriceData!G$15,CalculationsAndCharts!$A109+$A$11,IF($C$7,8,0),1,1) -> 50354600 | D109: =OFFSET(InputPriceData!C$15,CalculationsAndCharts!$A109+$A$11,IF($C$7,8,0),1,1) -> 241.17 | E109: =OFFSET(InputPriceData!D$15,CalculationsAndCharts!$A109+$A$11,IF($C$7,8,0),1,1) -> 241.35 | F109: =OFFSET(InputPriceData!E$15,CalculationsAndCharts!$A109+$A$11,IF($C$7,8,0),1,1) -> 239.66 | G109: =OFFSET(InputPriceData!F$15,CalculationsAndCharts!$A109+$A$11,IF($C$7,8,0),1,1) -> 240.99 | H109: 240.99 | I109: 240.9694406 | J109: -0.7776719113 | K109: -0.18 | L109: 0.443721873 | M109: 0.4162902869 | N109: 1.065895331 | O109: 1.594837108 | X109: =IF($R$4,I109,NA()) -> 240.9694406 | AP109: 50354600
A110: 78 | B110: =OFFSET(InputPriceData!B$15,CalculationsAndCharts!$A110+$A$11,0,1,1) -> 2017-07-10 | C110: =OFFSET(InputPriceData!G$15,CalculationsAndCharts!$A110+$A$11,IF($C$7,8,0),1,1) -> 36663300 | D110: =OFFSET(InputPriceData!C$15,CalculationsAndCharts!$A110+$A$11,IF($C$7,8,0),1,1) -> 240.91 | E110: =OFFSET(InputPriceData!D$15,CalculationsAndCharts!$A110+$A$11,IF($C$7,8,0),1,1) -> 241.6 | F110: =OFFSET(InputPriceData!E$15,CalculationsAndCharts!$A110+$A$11,IF($C$7,8,0),1,1) -> 240.57 | G110: =OFFSET(InputPriceData!F$15,CalculationsAndCharts!$A110+$A$11,IF($C$7,8,0),1,1) -> 241.17 | H110: 241.01 | I110: 240.9592307 | J110: -0.8861739334 | K110: 0.26 | L110: 0.4778543248 | M110: 0.4344664628 | N110: 1.099864698 | O110: 2.377884104 | X110: =IF($R$4,I110,NA()) -> 240.9592307 | AO110: 36663300
A111: 79 | B111: =OFFSET(InputPriceData!B$15,CalculationsAndCharts!$A111+$A$11,0,1,1) -> 2017-07-07 | C111: =OFFSET(InputPriceData!G$15,CalculationsAndCharts!$A111+$A$11,IF($C$7,8,0),1,1) -> 57972300 | D111: =OFFSET(InputPriceData!C$15,CalculationsAndCharts!$A111+$A$11,IF($C$7,8,0),1,1) -> 240.02 | E111: =OFFSET(InputPriceData!D$15,CalculationsAndCharts!$A111+$A$11,IF($C$7,8,0),1,1) -> 241.08 | F111: =OFFSET(InputPriceData!E$15,CalculationsAndCharts!$A111+$A$11,IF($C$7,8,0),1,1) -> 239.37 | G111: =OFFSET(InputPriceData!F$15,CalculationsAndCharts!$A111+$A$11,IF($C$7,8,0),1,1) -> 240.91 | H111: 240.91 | I111: 240.9340184 | J111: -1.026264804 | K111: 1.55 | L111: 0.4946123498 | M111: 0.4678869599 | N111: 1.05711933 | O111: 1.388332934 | X111: =IF($R$4,I111,NA()) -> 240.9340184 | AO111: 57972300
A112: 80 | B112: =OFFSET(InputPriceData!B$15,CalculationsAndCharts!$A112+$A$11,0,1,1) -> 2017-07-06 | C112: =OFFSET(InputPriceData!G$15,CalculationsAndCharts!$A112+$A$11,IF($C$7,8,0),1,1) -> 65400800 | D112: =OFFSET(InputPriceData!C$15,CalculationsAndCharts!$A112+$A$11,IF($C$7,8,0),1,1) -> 240.7 | E112: =OFFSET(InputPriceData!D$15,CalculationsAndCharts!$A112+$A$11,IF($C$7,8,0),1,1) -> 240.83 | F112: =OFFSET(InputPriceData!E$15,CalculationsAndCharts!$A112+$A$11,IF($C$7,8,0),1,1) -> 239.15 | G112: =OFFSET(InputPriceData!F$15,CalculationsAndCharts!$A112+$A$11,IF($C$7,8,0),1,1) -> 239.36 | H112: 240.61 | I112: 240.945946 | J112: -1.145417055 | K112: -2.21 | L112: 0.4134286844 | M112: 0.5038782645 | N112: 0.8204931894 | O112: -4.930169792 | X112: =IF($R$4,I112,NA()) -> 240.945946 | AP112: 65400800
A113: 81 | B113: =OFFSET(InputPriceData!B$15,CalculationsAndCharts!$A113+$A$11,0,1,1) -> 2017-07-05 | C113: =OFFSET(InputPriceData!G$15,CalculationsAndCharts!$A113+$A$11,IF($C$7,8,0),1,1) -> 54427600 | D113: =OFFSET(InputPriceData!C$15,CalculationsAndCharts!$A113+$A$11,IF($C$7,8,0),1,1) -> 241.43 | E113: =OFFSET(InputPriceData!D$15,CalculationsAndCharts!$A113+$A$11,IF($C$7,8,0),1,1) -> 241.81 | F113: =OFFSET(InputPriceData!E$15,CalculationsAndCharts!$A113+$A$11,IF($C$7,8,0),1,1) -> 240.51 | G113: =OFFSET(InputPriceData!F$15,CalculationsAndCharts!$A113+$A$11,IF($C$7,8,0),1,1) -> 241.57 | H113: 241.01 | I113: 241.1127788 | J113: -1.104724606 | K113: 0.56 | L113: 0.4452308908 | M113: 0.3726381311 | N113: 1.194807653 | O113: 4.437920856 | X113: =IF($R$4,I113,NA()) -> 241.1127788 | AO113: 54427600
A114: 82 | B114: =OFFSET(InputPriceData!B$15,CalculationsAndCharts!$A114+$A$11,0,1,1) -> 2017-07-03 | C114: =OFFSET(InputPriceData!G$15,CalculationsAndCharts!$A114+$A$11,IF($C$7,8,0),1,1) -> 39153800 | D114: =OFFSET(InputPriceData!C$15,CalculationsAndCharts!$A114+$A$11,IF($C$7,8,0),1,1) -> 241.68 | E114: =OFFSET(InputPriceData!D$15,CalculationsAndCharts!$A114+$A$11,IF($C$7,8,0),1,1) -> 242.18 | F114: =OFFSET(InputPriceData!E$15,CalculationsAndCharts!$A114+$A$11,IF($C$7,8,0),1,1) -> 241.01 | G114: =OFFSET(InputPriceData!F$15,CalculationsAndCharts!$A114+$A$11,IF($C$7,8,0),1,1) -> 241.01 | H114: 240.61 | I114: 241.1638193 | J114: -1.168404455 | K114: 0.4 | L114: 0.4364024978 | M114: 0.4013026027 | N114: 1.087464908 | O114: 2.095003071 | X114: =IF($R$4,I114,NA()) -> 241.1638193 | AP114: 39153800
A115: 83 | B115: =OFFSET(InputPriceData!B$15,CalculationsAndCharts!$A115+$A$11,0,1,1) -> 2017-06-30 | C115: =OFFSET(InputPriceData!G$15,CalculationsAndCharts!$A115+$A$11,IF($C$7,8,0),1,1) -> 86820700 | D115: =OFFSET(InputPriceData!C$15,CalculationsAndCharts!$A115+$A$11,IF($C$7,8,0),1,1) -> 241.08 | E115: =OFFSET(InputPriceData!D$15,CalculationsAndCharts!$A115+$A$11,IF($C$7,8,0),1,1) -> 241.51 | F115: =OFFSET(InputPriceData!E$15,CalculationsAndCharts!$A115+$A$11,IF($C$7,8,0),1,1) -> 240.39 | G115: =OFFSET(InputPriceData!F$15,CalculationsAndCharts!$A115+$A$11,IF($C$7,8,0),1,1) -> 240.61 | H115: 240.61 | I115: 241.4388491 | J115: -0.9806371904 | K115: 0.45 | L115: 0.43920269 | M115: 0.4321720336 | N115: 1.016268189 | O115: 0.4034232422 | X115: =IF($R$4,I115,NA()) -> 241.4388491 | AP115: 86820700
A116: 84 | B116: =OFFSET(InputPriceData!B$15,CalculationsAndCharts!$A116+$A$11,0,1,1) -> 2017-06-29 | C116: =OFFSET(InputPriceData!G$15,CalculationsAndCharts!$A116+$A$11,IF($C$7,8,0),1,1) -> 106949700 | D116: =OFFSET(InputPriceData!C$15,CalculationsAndCharts!$A116+$A$11,IF($C$7,8,0),1,1) -> 242.46 | E116: =OFFSET(InputPriceData!D$15,CalculationsAndCharts!$A116+$A$11,IF($C$7,8,0),1,1) -> 242.52 | F116: =OFFSET(InputPriceData!E$15,CalculationsAndCharts!$A116+$A$11,IF($C$7,8,0),1,1) -> 238.78 | G116: =OFFSET(InputPriceData!F$15,CalculationsAndCharts!$A116+$A$11,IF($C$7,8,0),1,1) -> 240.16 | H116: 241.93 | I116: 241.8504604 | J116: -0.5793431726 | K116: -2.13 | L116: 0.4383721277 | M116: 0.4654160362 | N116: 0.9418930452 | O116: -1.496141997 | X116: =IF($R$4,I116,NA()) -> 241.8504604 | AP116: 106949700
A117: 85 | B117: =OFFSET(InputPriceData!B$15,CalculationsAndCharts!$A117+$A$11,0,1,1) -> 2017-06-28 | C117: =OFFSET(InputPriceData!G$15,CalculationsAndCharts!$A117+$A$11,IF($C$7,8,0),1,1) -> 70042600 | D117: =OFFSET(InputPriceData!C$15,CalculationsAndCharts!$A117+$A$11,IF($C$7,8,0),1,1) -> 241.3 | E117: =OFFSET(InputPriceData!D$15,CalculationsAndCharts!$A117+$A$11,IF($C$7,8,0),1,1) -> 242.52 | F117: =OFFSET(InputPriceData!E$15,CalculationsAndCharts!$A117+$A$11,IF($C$7,8,0),1,1) -> 241.03 | G117: =OFFSET(InputPriceData!F$15,CalculationsAndCharts!$A117+$A$11,IF($C$7,8,0),1,1) -> 242.29 | H117: 241.93 | I117: 241.8109606 | J117: -0.5757616849 | K117: 2.15 | L117: 0.4720930606 | M117: 0.3373711159 | N117: 1.399328627 | O117: 8.321674295 | X117: =IF($R$4,I117,NA()) -> 241.8109606 | AO117: 70042600
A118: 86 | B118: =OFFSET(InputPriceData!B$15,CalculationsAndCharts!$A118+$A$11,0,1,1) -> 2017-06-27 | C118: =OFFSET(InputPriceData!G$15,CalculationsAndCharts!$A118+$A$11,IF($C$7,8,0),1,1) -> 82247700 | D118: =OFFSET(InputPriceData!C$15,CalculationsAndCharts!$A118+$A$11,IF($C$7,8,0),1,1) -> 241.84 | E118: =OFFSET(InputPriceData!D$15,CalculationsAndCharts!$A118+$A$11,IF($C$7,8,0),1,1) -> 242.18 | F118: =OFFSET(InputPriceData!E$15,CalculationsAndCharts!$A118+$A$11,IF($C$7,8,0),1,1) -> 240.12 | G118: =OFFSET(InputPriceData!F$15,CalculationsAndCharts!$A118+$A$11,IF($C$7,8,0),1,1) -> 240.14 | H118: 241.75 | I118: 241.7518449 | J118: -0.5853023206 | K118: -1.95 | L118: 0.343023296 | M118: 0.3633227402 | N118: 0.944128341 | O118: -1.436933402 | X118: =IF($R$4,I118,NA()) -> 241.7518449 | AP118: 82247700
A119: 87 | B119: =OFFSET(InputPriceData!B$15,CalculationsAndCharts!$A119+$A$11,0,1,1) -> 2017-06-26 | C119: =OFFSET(InputPriceData!G$15,CalculationsAndCharts!$A119+$A$11,IF($C$7,8,0),1,1) -> 56700500 | D119: =OFFSET(InputPriceData!C$15,CalculationsAndCharts!$A119+$A$11,IF($C$7,8,0),1,1) -> 242.7 | E119: =OFFSET(InputPriceData!D$15,CalculationsAndCharts!$A119+$A$11,IF($C$7,8,0),1,1) -> 243.17 | F119: =OFFSET(InputPriceData!E$15,CalculationsAndCharts!$A119+$A$11,IF($C$7,8,0),1,1) -> 241.85 | G119: =OFFSET(InputPriceData!F$15,CalculationsAndCharts!$A119+$A$11,IF($C$7,8,0),1,1) -> 242.09 | H119: 241.81 | I119: 241.7527611 | J119: -0.5218048444 | K119: 0.16 | L119: 0.3694097034 | M119: 0.2412706433 | N119: 1.531100917 | O119: 10.49150024 | X119: =IF($R$4,I119,NA()) -> 241.7527611 | AP119: 56700500
A120: 88 | B120: =OFFSET(InputPriceData!B$15,CalculationsAndCharts!$A120+$A$11,0,1,1) -> 2017-06-23 | C120: =OFFSET(InputPriceData!G$15,CalculationsAndCharts!$A120+$A$11,IF($C$7,8,0),1,1) -> 66986800 | D120: =OFFSET(InputPriceData!C$15,CalculationsAndCharts!$A120+$A$11,IF($C$7,8,0),1,1) -> 241.71 | E120: =OFFSET(InputPriceData!D$15,CalculationsAndCharts!$A120+$A$11,IF($C$7,8,0),1,1) -> 242.31 | F120: =OFFSET(InputPriceData!E$15,CalculationsAndCharts!$A120+$A$11,IF($C$7,8,0),1,1) -> 241.27 | G120: =OFFSET(InputPriceData!F$15,CalculationsAndCharts!$A120+$A$11,IF($C$7,8,0),1,1) -> 241.93 | H120: 241.81 | I120: 241.7243359 | J120: -0.4681452128 | K120: 0.29 | L120: 0.3855181421 | M120: 0.2598299236 | N120: 1.483732654 | O120: 9.738017759 | X120: =IF($R$4,I120,NA()) -> 241.7243359 | AO120: 66986800
A121: 89 | B121: =OFFSET(InputPriceData!B$15,CalculationsAndCharts!$A121+$A$11,0,1,1) -> 2017-06-22 | C121: =OFFSET(InputPriceData!G$15,CalculationsAndCharts!$A121+$A$11,IF($C$7,8,0),1,1) -> 44148100 | D121: =OFFSET(InputPriceData!C$15,CalculationsAndCharts!$A121+$A$11,IF($C$7,8,0),1,1) -> 241.76 | E121: =OFFSET(InputPriceData!D$15,CalculationsAndCharts!$A121+$A$11,IF($C$7,8,0),1,1) -> 242.33 | F121: =OFFSET(InputPriceData!E$15,CalculationsAndCharts!$A121+$A$11,IF($C$7,8,0),1,1) -> 241.44 | G121: =OFFSET(InputPriceData!F$15,CalculationsAndCharts!$A121+$A$11,IF($C$7,8,0),1,1) -> 241.64 | H121: 241.75 | I121: 241.6817946 | J121: -0.4104491385 | K121: -0.11 | L121: 0.3928656915 | M121: 0.2798168408 | N121: 1.404010174 | O121: 8.402838282 | X121: =IF($R$4,I121,NA()) -> 241.6817946 | AP121: 44148100
A122: 90 | B122: =OFFSET(InputPriceData!B$15,CalculationsAndCharts!$A122+$A$11,0,1,1) -> 2017-06-21 | C122: =OFFSET(InputPriceData!G$15,CalculationsAndCharts!$A122+$A$11,IF($C$7,8,0),1,1) -> 55977600 | D122: =OFFSET(InputPriceData!C$15,CalculationsAndCharts!$A122+$A$11,IF($C$7,8,0),1,1) -> 242.26 | E122: =OFFSET(InputPriceData!D$15,CalculationsAndCharts!$A122+$A$11,IF($C$7,8,0),1,1) -> 242.39 | F122: =OFFSET(InputPriceData!E$15,CalculationsAndCharts!$A122+$A$11,IF($C$7,8,0),1,1) -> 241.21 | G122: =OFFSET(InputPriceData!F$15,CalculationsAndCharts!$A122+$A$11,IF($C$7,8,0),1,1) -> 241.75 | H122: 241.75 | I122: 241.6479234 | J122: -0.3229625013 | K122: -0.06 | L122: 0.4230861293 | M122: 0.2928796747 | N122: 1.444573201 | O122: 9.093063792 | X122: =IF($R$4,I122,NA()) -> 241.6479234 | AP122: 55977600
A123: 91 | B123: =OFFSET(InputPriceData!B$15,CalculationsAndCharts!$A123+$A$11,0,1,1) -> 2017-06-20 | C123: =OFFSET(InputPriceData!G$15,CalculationsAndCharts!$A123+$A$11,IF($C$7,8,0),1,1) -> 56906400 | D123: =OFFSET(InputPriceData!C$15,CalculationsAndCharts!$A123+$A$11,IF($C$7,8,0),1,1) -> 243.04 | E123: =OFFSET(InputPriceData!D$15,CalculationsAndCharts!$A123+$A$11,IF($C$7,8,0),1,1) -> 243.05 | F123: =OFFSET(InputPriceData!E$15,CalculationsAndCharts!$A123+$A$11,IF($C$7,8,0),1,1) -> 241.79 | G123: =OFFSET(InputPriceData!F$15,CalculationsAndCharts!$A123+$A$11,IF($C$7,8,0),1,1) -> 241.81 | H123: 241.81 | I123: 241.5972316 | J123: -0.2280509099 | K123: -1.64 | L123: 0.4556312162 | M123: 0.3107934958 | N123: 1.466025584 | O123: 9.448920295 | X123: =IF($R$4,I123,NA()) -> 241.5972316 | AP123: 56906400
A124: 92 | B124: =OFFSET(InputPriceData!B$15,CalculationsAndCharts!$A124+$A$11,0,1,1) -> 2017-06-19 | C124: =OFFSET(InputPriceData!G$15,CalculationsAndCharts!$A124+$A$11,IF($C$7,8,0),1,1) -> 65123800 | D124: =OFFSET(InputPriceData!C$15,CalculationsAndCharts!$A124+$A$11,IF($C$7,8,0),1,1) -> 242.39 | E124: =OFFSET(InputPriceData!D$15,CalculationsAndCharts!$A124+$A$11,IF($C$7,8,0),1,1) -> 243.52 | F124: =OFFSET(InputPriceData!E$15,CalculationsAndCharts!$A124+$A$11,IF($C$7,8,0),1,1) -> 242.28 | G124: =OFFSET(InputPriceData!F$15,CalculationsAndCharts!$A124+$A$11,IF($C$7,8,0),1,1) -> 243.45 | H124: 241.85 | I124: 241.4915696 | J124: -0.1679509852 | K124: 2.01 | L124: 0.4906797712 | M124: 0.2085468417 | N124: 2.352851605 | O124: 20.17464184 | X124: =IF($R$4,I124,NA()) -> 241.4915696 | AO124: 65123800
A125: 93 | B125: =OFFSET(InputPriceData!B$15,CalculationsAndCharts!$A125+$A$11,0,1,1) -> 2017-06-16 | C125: =OFFSET(InputPriceData!G$15,CalculationsAndCharts!$A125+$A$11,IF($C$7,8,0),1,1) -> 84553100 | D125: =OFFSET(InputPriceData!C$15,CalculationsAndCharts!$A125+$A$11,IF($C$7,8,0),1,1) -> 241.57 | E125: =OFFSET(InputPriceData!D$15,CalculationsAndCharts!$A125+$A$11,IF($C$7,8,0),1,1) -> 241.63 | F125: =OFFSET(InputPriceData!E$15,CalculationsAndCharts!$A125+$A$11,IF($C$7,8,0),1,1) -> 240.44 | G125: =OFFSET(InputPriceData!F$15,CalculationsAndCharts!$A125+$A$11,IF($C$7,8,0),1,1) -> 241.44 | H125: 241.44 | I125: 241.313571 | J125: -0.1716441944 | K125: 0.05 | L125: 0.3738089844 | M125: 0.2245889064 | N125: 1.664414286 | O125: 12.46829913 | X125: =IF($R$4,I125,NA()) -> 241.313571 | AP125: 84553100
A126: 94 | B126: =OFFSET(InputPriceData!B$15,CalculationsAndCharts!$A126+$A$11,0,1,1) -> 2017-06-15 | C126: =OFFSET(InputPriceData!G$15,CalculationsAndCharts!$A126+$A$11,IF($C$7,8,0),1,1) -> 66464900 | D126: =OFFSET(InputPriceData!C$15,CalculationsAndCharts!$A126+$A$11,IF($C$7,8,0),1,1) -> 240.31 | E126: =OFFSET(InputPriceData!D$15,CalculationsAndCharts!$A126+$A$11,IF($C$7,8,0),1,1) -> 241.53 | F126: =OFFSET(InputPriceData!E$15,CalculationsAndCharts!$A126+$A$11,IF($C$7,8,0),1,1) -> 239.99 | G126: =OFFSET(InputPriceData!F$15,CalculationsAndCharts!$A126+$A$11,IF($C$7,8,0),1,1) -> 241.39 | H126: 241.39 | I126: 241.2507856 | J126: -0.04470532356 | K126: -0.46 | L126: 0.3987173678 | M126: 0.2418649761 | N126: 1.648512216 | O126: 12.24295309 | X126: =IF($R$4,I126,NA()) -> 241.2507856 | AO126: 66464900
A127: 95 | B127: =OFFSET(InputPriceData!B$15,CalculationsAndCharts!$A127+$A$11,0,1,1) -> 2017-06-14 | C127: =OFFSET(InputPriceData!G$15,CalculationsAndCharts!$A127+$A$11,IF($C$7,8,0),1,1) -> 78602300 | D127: =OFFSET(InputPriceData!C$15,CalculationsAndCharts!$A127+$A$11,IF($C$7,8,0),1,1) -> 242.47 | E127: =OFFSET(InputPriceData!D$15,CalculationsAndCharts!$A127+$A$11,IF($C$7,8,0),1,1) -> 242.48 | F127: =OFFSET(InputPriceData!E$15,CalculationsAndCharts!$A127+$A$11,IF($C$7,8,0),1,1) -> 240.91 | G127: =OFFSET(InputPriceData!F$15,CalculationsAndCharts!$A127+$A$11,IF($C$7,8,0),1,1) -> 241.85 | H127: 241.4 | I127: 241.1816509 | J127: 0.107377823 | K127: -0.31 | L127: 0.4293879346 | M127: 0.2250853589 | N127: 1.907667103 | O127: 15.60816749 | X127: =IF($R$4,I127,NA()) -> 241.1816509 | AP127: 78602300
A128: 96 | B128: =OFFSET(InputPriceData!B$15,CalculationsAndCharts!$A128+$A$11,0,1,1) -> 2017-06-13 | C128: =OFFSET(InputPriceData!G$15,CalculationsAndCharts!$A128+$A$11,IF($C$7,8,0),1,1) -> 60067000 | D128: =OFFSET(InputPriceData!C$15,CalculationsAndCharts!$A128+$A$11,IF($C$7,8,0),1,1) -> 241.6 | E128: =OFFSET(InputPriceData!D$15,CalculationsAndCharts!$A128+$A$11,IF($C$7,8,0),1,1) -> 242.22 | F128: =OFFSET(InputPriceData!E$15,CalculationsAndCharts!$A128+$A$11,IF($C$7,8,0),1,1) -> 241.2 | G128: =OFFSET(InputPriceData!F$15,CalculationsAndCharts!$A128+$A$11,IF($C$7,8,0),1,1) -> 242.16 | H128: 241.28 | I128: 241.0732175 | J128: 0.2518237976 | K128: 1.18 | L128: 0.4624177757 | M128: 0.2185534635 | N128: 2.115810788 | O128: 17.90562495 | X128: =IF($R$4,I128,NA()) -> 241.0732175 | AO128: 60067000
A129: 97 | B129: =OFFSET(InputPriceData!B$15,CalculationsAndCharts!$A129+$A$11,0,1,1) -> 2017-06-12 | C129: =OFFSET(InputPriceData!G$15,CalculationsAndCharts!$A129+$A$11,IF($C$7,8,0),1,1) -> 86108100 | D129: =OFFSET(InputPriceData!C$15,CalculationsAndCharts!$A129+$A$11,IF($C$7,8,0),1,1) -> 240.76 | E129: =OFFSET(InputPriceData!D$15,CalculationsAndCharts!$A129+$A$11,IF($C$7,8,0),1,1) -> 241.04 | F129: =OFFSET(InputPriceData!E$15,CalculationsAndCharts!$A129+$A$11,IF($C$7,8,0),1,1) -> 240.01 | G129: =OFFSET(InputPriceData!F$15,CalculationsAndCharts!$A129+$A$11,IF($C$7,8,0),1,1) -> 240.98 | H129: 241.03 | I129: 240.9705281 | J129: 0.4352282156 | K129: -0.05 | L129: 0.4072191431 | M129: 0.2353652683 | N129: 1.730158175 | O129: 13.37208557 | X129: =IF($R$4,I129,NA()) -> 240.9705281 | AO129: 86108100
A130: 98 | B130: =OFFSET(InputPriceData!B$15,CalculationsAndCharts!$A130+$A$11,0,1,1) -> 2017-06-09 | C130: =OFFSET(InputPriceData!G$15,CalculationsAndCharts!$A130+$A$11,IF($C$7,8,0),1,1) -> 132256400 | D130: =OFFSET(InputPriceData!C$15,CalculationsAndCharts!$A130+$A$11,IF($C$7,8,0),1,1) -> 241.71 | E130: =OFFSET(InputPriceData!D$15,CalculationsAndCharts!$A130+$A$11,IF($C$7,8,0),1,1) -> 242.62 | F130: =OFFSET(InputPriceData!E$15,CalculationsAndCharts!$A130+$A$11,IF($C$7,8,0),1,1) -> 239.59 | G130: =OFFSET(InputPriceData!F$15,CalculationsAndCharts!$A130+$A$11,IF($C$7,8,0),1,1) -> 241.03 | H130: 241.28 | I130: 240.940994 | J130: 0.7403413377 | K130: -0.37 | L130: 0.4385436925 | M130: 0.2496241351 | N130: 1.756816072 | O130: 13.72627067 | X130: =IF($R$4,I130,NA()) -> 240.940994 | AP130: 132256400
A131: 99 | B131: =OFFSET(InputPriceData!B$15,CalculationsAndCharts!$A131+$A$11,0,1,1) -> 2017-06-08 | C131: =OFFSET(InputPriceData!G$15,CalculationsAndCharts!$A131+$A$11,IF($C$7,8,0),1,1) -> 63989800 | D131: =OFFSET(InputPriceData!C$15,CalculationsAndCharts!$A131+$A$11,IF($C$7,8,0),1,1) -> 241.39 | E131: =OFFSET(InputPriceData!D$15,CalculationsAndCharts!$A131+$A$11,IF($C$7,8,0),1,1) -> 241.94 | F131: =OFFSET(InputPriceData!E$15,CalculationsAndCharts!$A131+$A$11,IF($C$7,8,0),1,1) -> 240.79 | G131: =OFFSET(InputPriceData!F$15,CalculationsAndCharts!$A131+$A$11,IF($C$7,8,0),1,1) -> 241.4 | H131: 241.4 | I131: 240.7726417 | J131: 0.9556153756 | K131: 0.12 | L131: 0.4722778227 | M131: 0.2403644532 | N131: 1.964840543 | O131: 16.27137326 | X131: =IF($R$4,I131,NA()) -> 240.7726417 | AO131: 63989800
A132: 100 | B132: =OFFSET(InputPriceData!B$15,CalculationsAndCharts!$A132+$A$11,0,1,1) -> 2017-06-07 | C132: =OFFSET(InputPriceData!G$15,CalculationsAndCharts!$A132+$A$11,IF($C$7,8,0),1,1) -> 54144300 | D132: =OFFSET(InputPriceData!C$15,CalculationsAndCharts!$A132+$A$11,IF($C$7,8,0),1,1) -> 241.22 | E132: =OFFSET(InputPriceData!D$15,CalculationsAndCharts!$A132+$A$11,IF($C$7,8,0),1,1) -> 241.54 | F132: =OFFSET(InputPriceData!E$15,CalculationsAndCharts!$A132+$A$11,IF($C$7,8,0),1,1) -> 240.46 | G132: =OFFSET(InputPriceData!F$15,CalculationsAndCharts!$A132+$A$11,IF($C$7,8,0),1,1) -> 241.28 | H132: 241.28 | I132: 240.4610919 | J132: 1.050762371 | K132: 0.45 | L132: 0.4993761168 | M132: 0.2588540265 | N132: 1.929180409 | O132: 15.86075761 | X132: =IF($R$4,I132,NA()) -> 240.4610919 | AO132: 54144300
A133: 101 | B133: =OFFSET(InputPriceData!B$15,CalculationsAndCharts!$A133+$A$11,0,1,1) -> 2017-06-06 | C133: =OFFSET(InputPriceData!G$15,CalculationsAndCharts!$A133+$A$11,IF($C$7,8,0),1,1) -> 50375400 | D133: =OFFSET(InputPriceData!C$15,CalculationsAndCharts!$A133+$A$11,IF($C$7,8,0),1,1) -> 240.96 | E133: =OFFSET(InputPriceData!D$15,CalculationsAndCharts!$A133+$A$11,IF($C$7,8,0),1,1) -> 241.6 | F133: =OFFSET(InputPriceData!E$15,CalculationsAndCharts!$A133+$A$11,IF($C$7,8,0),1,1) -> 240.75 | G133: =OFFSET(InputPriceData!F$15,CalculationsAndCharts!$A133+$A$11,IF($C$7,8,0),1,1) -> 240.83 | H133: 240.98 | I133: 240.0544174 | J133: 1.048416502 | K133: -0.78 | L133: 0.5031742796 | M133: 0.2787658747 | N133: 1.805006729 | O133: 14.34946163 | X133: =IF($R$4,I133,NA()) -> 240.0544174 | AP133: 50375400
A134: 102 | B134: =OFFSET(InputPriceData!B$15,CalculationsAndCharts!$A134+$A$11,0,1,1) -> 2017-06-05 | C134: =OFFSET(InputPriceData!G$15,CalculationsAndCharts!$A134+$A$11,IF($C$7,8,0),1,1) -> 44698800 | D134: =OFFSET(InputPriceData!C$15,CalculationsAndCharts!$A134+$A$11,IF($C$7,8,0),1,1) -> 241.59 | E134: =OFFSET(InputPriceData!D$15,CalculationsAndCharts!$A134+$A$11,IF($C$7,8,0),1,1) -> 241.91 | F134: =OFFSET(InputPriceData!E$15,CalculationsAndCharts!$A134+$A$11,IF($C$7,8,0),1,1) -> 241.38 | G134: =OFFSET(InputPriceData!F$15,CalculationsAndCharts!$A134+$A$11,IF($C$7,8,0),1,1) -> 241.61 | H134: 240.98 | I134: 239.5947678 | J134: 0.9715642049 | K134: -0.18 | L134: 0.5418799934 | M134: 0.2402094036 | N134: 2.25586503 | O134: 19.28619612 | X134: =IF($R$4,I134,NA()) -> 239.5947678 | AO134: 44698800
A135: 103 | B135: =OFFSET(InputPriceData!B$15,CalculationsAndCharts!$A135+$A$11,0,1,1) -> 2017-06-02 | C135: =OFFSET(InputPriceData!G$15,CalculationsAndCharts!$A135+$A$11,IF($C$7,8,0),1,1) -> 88666100 | D135: =OFFSET(InputPriceData!C$15,CalculationsAndCharts!$A135+$A$11,IF($C$7,8,0),1,1) -> 241.04 | E135: =OFFSET(InputPriceData!D$15,CalculationsAndCharts!$A135+$A$11,IF($C$7,8,0),1,1) -> 241.96 | F135: =OFFSET(InputPriceData!E$15,CalculationsAndCharts!$A135+$A$11,IF($C$7,8,0),1,1) -> 240.71 | G135: =OFFSET(InputPriceData!F$15,CalculationsAndCharts!$A135+$A$11,IF($C$7,8,0),1,1) -> 241.79 | H135: 239.35 | I135: 238.9068535 | J135: 0.6061667933 | K135: 0.81 | L135: 0.5835630699 | M135: 0.2448408961 | N135: 2.383437894 | O135: 20.44426316 | X135: =IF($R$4,I135,NA()) -> 238.9068535 | AO135: 88666100
A136: 104 | B136: =OFFSET(InputPriceData!B$15,CalculationsAndCharts!$A136+$A$11,0,1,1) -> 2017-06-01 | C136: =OFFSET(InputPriceData!G$15,CalculationsAndCharts!$A136+$A$11,IF($C$7,8,0),1,1) -> 68962000 | D136: =OFFSET(InputPriceData!C$15,CalculationsAndCharts!$A136+$A$11,IF($C$7,8,0),1,1) -> 239.61 | E136: =OFFSET(InputPriceData!D$15,CalculationsAndCharts!$A136+$A$11,IF($C$7,8,0),1,1) -> 241 | F136: =OFFSET(InputPriceData!E$15,CalculationsAndCharts!$A136+$A$11,IF($C$7,8,0),1,1) -> 239.28 | G136: =OFFSET(InputPriceData!F$15,CalculationsAndCharts!$A136+$A$11,IF($C$7,8,0),1,1) -> 240.98 | H136: 239.35 | I136: 238.6867844 | J136: 0.6658204795 | K136: 1.9 | L136: 0.5661448445 | M136: 0.2636748112 | N136: 2.147132833 | O136: 18.22504632 | X136: =IF($R$4,I136,NA()) -> 238.6867844 | AO136: 68962000
A137: 105 | B137: =OFFSET(InputPriceData!B$15,CalculationsAndCharts!$A137+$A$11,0,1,1) -> 2017-05-31 | C137: =OFFSET(InputPriceData!G$15,CalculationsAndCharts!$A137+$A$11,IF($C$7,8,0),1,1) -> 91796000 | D137: =OFFSET(InputPriceData!C$15,CalculationsAndCharts!$A137+$A$11,IF($C$7,8,0),1,1) -> 239.48 | E137: =OFFSET(InputPriceData!D$15,CalculationsAndCharts!$A137+$A$11,IF($C$7,8,0),1,1) -> 239.52 | F137: =OFFSET(InputPriceData!E$15,CalculationsAndCharts!$A137+$A$11,IF($C$7,8,0),1,1) -> 238.29 | G137: =OFFSET(InputPriceData!F$15,CalculationsAndCharts!$A137+$A$11,IF($C$7,8,0),1,1) -> 239.08 | H137: 239.14 | I137: 238.3574276 | J137: 0.6085882446 | K137: -0.06 | L137: 0.4635406017 | M137: 0.283957489 | N137: 1.63242957 | O137: 12.01227902 | X137: =IF($R$4,I137,NA()) -> 238.3574276 | AP137: 91796000
A138: 106 | B138: =OFFSET(InputPriceData!B$15,CalculationsAndCharts!$A138+$A$11,0,1,1) -> 2017-05-30 | C138: =OFFSET(InputPriceData!G$15,CalculationsAndCharts!$A138+$A$11,IF($C$7,8,0),1,1) -> 35201900 | D138: =OFFSET(InputPriceData!C$15,CalculationsAndCharts!$A138+$A$11,IF($C$7,8,0),1,1) -> 238.98 | E138: =OFFSET(InputPriceData!D$15,CalculationsAndCharts!$A138+$A$11,IF($C$7,8,0),1,1) -> 239.43 | F138: =OFFSET(InputPriceData!E$15,CalculationsAndCharts!$A138+$A$11,IF($C$7,8,0),1,1) -> 238.8 | G138: =OFFSET(InputPriceData!F$15,CalculationsAndCharts!$A138+$A$11,IF($C$7,8,0),1,1) -> 239.14 | H138: 239.14 | I138: 237.9687977 | J138: 0.4622005536 | K138: -0.21 | L138: 0.4991975711 | M138: 0.3011849882 | N138: 1.657445061 | O138: 12.36987117 | X138: =IF($R$4,I138,NA()) -> 237.9687977 | AO138: 35201900
A139: 107 | B139: =OFFSET(InputPriceData!B$15,CalculationsAndCharts!$A139+$A$11,0,1,1) -> 2017-05-26 | C139: =OFFSET(InputPriceData!G$15,CalculationsAndCharts!$A139+$A$11,IF($C$7,8,0),1,1) -> 46629900 | D139: =OFFSET(InputPriceData!C$15,CalculationsAndCharts!$A139+$A$11,IF($C$7,8,0),1,1) -> 239.18 | E139: =OFFSET(InputPriceData!D$15,CalculationsAndCharts!$A139+$A$11,IF($C$7,8,0),1,1) -> 239.54 | F139: =OFFSET(InputPriceData!E$15,CalculationsAndCharts!$A139+$A$11,IF($C$7,8,0),1,1) -> 239.09 | G139: =OFFSET(InputPriceData!F$15,CalculationsAndCharts!$A139+$A$11,IF($C$7,8,0),1,1) -> 239.35 | H139: 238.26 | I139: 237.3871719 | J139: 0.05653428532 | K139: -0.05 | L139: 0.5375973842 | M139: 0.308199218 | N139: 1.744317807 | O139: 13.56107163 | X139: =IF($R$4,I139,NA()) -> 237.3871719 | AO139: 46629900
A140: 108 | B140: =OFFSET(InputPriceData!B$15,CalculationsAndCharts!$A140+$A$11,0,1,1) -> 2017-05-25 | C140: =OFFSET(InputPriceData!G$15,CalculationsAndCharts!$A140+$A$11,IF($C$7,8,0),1,1) -> 64071700 | D140: =OFFSET(InputPriceData!C$15,CalculationsAndCharts!$A140+$A$11,IF($C$7,8,0),1,1) -> 238.84 | E140: =OFFSET(InputPriceData!D$15,CalculationsAndCharts!$A140+$A$11,IF($C$7,8,0),1,1) -> 239.72 | F140: =OFFSET(InputPriceData!E$15,CalculationsAndCharts!$A140+$A$11,IF($C$7,8,0),1,1) -> 238.61 | G140: =OFFSET(InputPriceData!F$15,CalculationsAndCharts!$A140+$A$11,IF($C$7,8,0),1,1) -> 239.4 | H140: 237.71 | I140: 236.9537204 | J140: -0.2849108083 | K140: 1.14 | L140: 0.5789510292 | M140: 0.3280606963 | N140: 1.764768031 | O140: 13.8306003 | X140: =IF($R$4,I140,NA()) -> 236.9537204 | AO140: 64071700
A141: 109 | B141: =OFFSET(InputPriceData!B$15,CalculationsAndCharts!$A141+$A$11,0,1,1) -> 2017-05-24 | C141: =OFFSET(InputPriceData!G$15,CalculationsAndCharts!$A141+$A$11,IF($C$7,8,0),1,1) -> 46927700 | D141: =OFFSET(InputPriceData!C$15,CalculationsAndCharts!$A141+$A$11,IF($C$7,8,0),1,1) -> 237.97 | E141: =OFFSET(InputPriceData!D$15,CalculationsAndCharts!$A141+$A$11,IF($C$7,8,0),1,1) -> 238.38 | F141: =OFFSET(InputPriceData!E$15,CalculationsAndCharts!$A141+$A$11,IF($C$7,8,0),1,1) -> 237.59 | G141: =OFFSET(InputPriceData!F$15,CalculationsAndCharts!$A141+$A$11,IF($C$7,8,0),1,1) -> 238.26 | H141: 237.18 | I141: 236.5781476 | J141: -0.6426318245 | K141: 0.55 | L141: 0.5357934161 | M141: 0.3532961345 | N141: 1.516556123 | O141: 10.26315524 | X141: =IF($R$4,I141,NA()) -> 236.5781476 | AO141: 46927700
A142: 110 | B142: =OFFSET(InputPriceData!B$15,CalculationsAndCharts!$A142+$A$11,0,1,1) -> 2017-05-23 | C142: =OFFSET(InputPriceData!G$15,CalculationsAndCharts!$A142+$A$11,IF($C$7,8,0),1,1) -> 48341700 | D142: =OFFSET(InputPriceData!C$15,CalculationsAndCharts!$A142+$A$11,IF($C$7,8,0),1,1) -> 237.61 | E142: =OFFSET(InputPriceData!D$15,CalculationsAndCharts!$A142+$A$11,IF($C$7,8,0),1,1) -> 237.89 | F142: =OFFSET(InputPriceData!E$15,CalculationsAndCharts!$A142+$A$11,IF($C$7,8,0),1,1) -> 237.17 | G142: =OFFSET(InputPriceData!F$15,CalculationsAndCharts!$A142+$A$11,IF($C$7,8,0),1,1) -> 237.71 | H142: 235.98 | I142: 236.2792643 | J142: -0.9946391803 | K142: 0.53 | L142: 0.5347006019 | M142: 0.3804727603 | N142: 1.405358432 | O142: 8.426154433 | X142: =IF($R$4,I142,NA()) -> 236.2792643 | AO142: 48341700
A143: 111 | B143: =OFFSET(InputPriceData!B$15,CalculationsAndCharts!$A143+$A$11,0,1,1) -> 2017-05-22 | C143: =OFFSET(InputPriceData!G$15,CalculationsAndCharts!$A143+$A$11,IF($C$7,8,0),1,1) -> 61010600 | D143: =OFFSET(InputPriceData!C$15,CalculationsAndCharts!$A143+$A$11,IF($C$7,8,0),1,1) -> 236.57 | E143: =OFFSET(InputPriceData!D$15,CalculationsAndCharts!$A143+$A$11,IF($C$7,8,0),1,1) -> 237.37 | F143: =OFFSET(InputPriceData!E$15,CalculationsAndCharts!$A143+$A$11,IF($C$7,8,0),1,1) -> 236.49 | G143: =OFFSET(InputPriceData!F$15,CalculationsAndCharts!$A143+$A$11,IF($C$7,8,0),1,1) -> 237.18 | H143: 235.98 | I143: 236.4278807 | J143: -0.9188872245 | K143: 1.2 | L143: 0.5350621867 | M143: 0.4097398957 | N143: 1.305858161 | O143: 6.632198073 | X143: =IF($R$4,I143,NA()) -> 236.4278807 | AO143: 61010600
A144: 112 | B144: =OFFSET(InputPriceData!B$15,CalculationsAndCharts!$A144+$A$11,0,1,1) -> 2017-05-19 | C144: =OFFSET(InputPriceData!G$15,CalculationsAndCharts!$A144+$A$11,IF($C$7,8,0),1,1) -> 115011400 | D144: =OFFSET(InputPriceData!C$15,CalculationsAndCharts!$A144+$A$11,IF($C$7,8,0),1,1) -> 235.01 | E144: =OFFSET(InputPriceData!D$15,CalculationsAndCharts!$A144+$A$11,IF($C$7,8,0),1,1) -> 236.74 | F144: =OFFSET(InputPriceData!E$15,CalculationsAndCharts!$A144+$A$11,IF($C$7,8,0),1,1) -> 234.95 | G144: =OFFSET(InputPriceData!F$15,CalculationsAndCharts!$A144+$A$11,IF($C$7,8,0),1,1) -> 235.98 | H144: 235.98 | I144: 236.6503008 | J144: -0.728772332 | K144: 1.52 | L144: 0.4839131241 | M144: 0.4412583492 | N144: 1.096666216 | O144: 2.305236173 | X144: =IF($R$4,I144,NA()) -> 236.6503008 | AO144: 115011400
A145: 113 | B145: =OFFSET(InputPriceData!B$15,CalculationsAndCharts!$A145+$A$11,0,1,1) -> 2017-05-18 | C145: =OFFSET(InputPriceData!G$15,CalculationsAndCharts!$A145+$A$11,IF($C$7,8,0),1,1) -> 107047700 | D145: =OFFSET(InputPriceData!C$15,CalculationsAndCharts!$A145+$A$11,IF($C$7,8,0),1,1) -> 233.43 | E145: =OFFSET(InputPriceData!D$15,CalculationsAndCharts!$A145+$A$11,IF($C$7,8,0),1,1) -> 235.43 | F145: =OFFSET(InputPriceData!E$15,CalculationsAndCharts!$A145+$A$11,IF($C$7,8,0),1,1) -> 233.13 | G145: =OFFSET(InputPriceData!F$15,CalculationsAndCharts!$A145+$A$11,IF($C$7,8,0),1,1) -> 234.46 | H145: 236.65 | I145: 236.983176 | J145: -0.3573275659 | K145: 0.94 | L145: 0.4042141336 | M145: 0.4752012991 | N145: 0.8506166427 | O145: -4.03604274 | X145: =IF($R$4,I145,NA()) -> 236.983176 | AO145: 107047700
A146: 114 | B146: =OFFSET(InputPriceData!B$15,CalculationsAndCharts!$A146+$A$11,0,1,1) -> 2017-05-17 | C146: =OFFSET(InputPriceData!G$15,CalculationsAndCharts!$A146+$A$11,IF($C$7,8,0),1,1) -> 172174100 | D146: =OFFSET(InputPriceData!C$15,CalculationsAndCharts!$A146+$A$11,IF($C$7,8,0),1,1) -> 237.74 | E146: =OFFSET(InputPriceData!D$15,CalculationsAndCharts!$A146+$A$11,IF($C$7,8,0),1,1) -> 237.74 | F146: =OFFSET(InputPriceData!E$15,CalculationsAndCharts!$A146+$A$11,IF($C$7,8,0),1,1) -> 233.45 | G146: =OFFSET(InputPriceData!F$15,CalculationsAndCharts!$A146+$A$11,IF($C$7,8,0),1,1) -> 233.52 | H146: 237.04 | I146: 237.1486331 | J146: -0.07604255123 | K146: -4.22 | L146: 0.3629998362 | M146: 0.5117552452 | N146: 0.7093231377 | O146: -8.502689045 | X146: =IF($R$4,I146,NA()) -> 237.1486331 | AP146: 172174100
A147: 115 | B147: =OFFSET(InputPriceData!B$15,CalculationsAndCharts!$A147+$A$11,0,1,1) -> 2017-05-16 | C147: =OFFSET(InputPriceData!G$15,CalculationsAndCharts!$A147+$A$11,IF($C$7,8,0),1,1) -> 51241800 | D147: =OFFSET(InputPriceData!C$15,CalculationsAndCharts!$A147+$A$11,IF($C$7,8,0),1,1) -> 238.29 | E147: =OFFSET(InputPriceData!D$15,CalculationsAndCharts!$A147+$A$11,IF($C$7,8,0),1,1) -> 238.32 | F147: =OFFSET(InputPriceData!E$15,CalculationsAndCharts!$A147+$A$11,IF($C$7,8,0),1,1) -> 237.29 | G147: =OFFSET(InputPriceData!F$15,CalculationsAndCharts!$A147+$A$11,IF($C$7,8,0),1,1) -> 237.74 | H147: 237.53 | I147: 237.2025809 | J147: 0.1513936591 | K147: -0.21 | L147: 0.3909229006 | M147: 0.2265056487 | N147: 1.725885879 | O147: 13.31467844 | X147: =IF($R$4,I147,NA()) -> 237.2025809 | AP147: 51241800
A148: 116 | B148: =OFFSET(InputPriceData!B$15,CalculationsAndCharts!$A148+$A$11,0,1,1) -> 2017-05-15 | C148: =OFFSET(InputPriceData!G$15,CalculationsAndCharts!$A148+$A$11,IF($C$7,8,0),1,1) -> 61918900 | D148: =OFFSET(InputPriceData!C$15,CalculationsAndCharts!$A148+$A$11,IF($C$7,8,0),1,1) -> 237.13 | E148: =OFFSET(InputPriceData!D$15,CalculationsAndCharts!$A148+$A$11,IF($C$7,8,0),1,1) -> 238.09 | F148: =OFFSET(InputPriceData!E$15,CalculationsAndCharts!$A148+$A$11,IF($C$7,8,0),1,1) -> 237.11 | G148: =OFFSET(InputPriceData!F$15,CalculationsAndCharts!$A148+$A$11,IF($C$7,8,0),1,1) -> 237.95 | H148: 237.1 | I148: 237.0399827 | J148: 0.190641406 | K148: 1.3 | L148: 0.4209938929 | M148: 0.227775314 | N148: 1.848285864 | O148: 14.89116445 | X148: =IF($R$4,I148,NA()) -> 237.0399827 | AO148: 61918900
A149: 117 | B149: =OFFSET(InputPriceData!B$15,CalculationsAndCharts!$A149+$A$11,0,1,1) -> 2017-05-12 | C149: =OFFSET(InputPriceData!G$15,CalculationsAndCharts!$A149+$A$11,IF($C$7,8,0),1,1) -> 53912700 | D149: =OFFSET(InputPriceData!C$15,CalculationsAndCharts!$A149+$A$11,IF($C$7,8,0),1,1) -> 236.75 | E149: =OFFSET(InputPriceData!D$15,CalculationsAndCharts!$A149+$A$11,IF($C$7,8,0),1,1) -> 237.09 | F149: =OFFSET(InputPriceData!E$15,CalculationsAndCharts!$A149+$A$11,IF($C$7,8,0),1,1) -> 236.34 | G149: =OFFSET(InputPriceData!F$15,CalculationsAndCharts!$A149+$A$11,IF($C$7,8,0),1,1) -> 236.65 | H149: 237.1 | I149: 237.0101778 | J149: 0.3859160377 | K149: -0.39 | L149: 0.3533780385 | M149: 0.245296492 | N149: 1.440615949 | O149: 9.026736655 | X149: =IF($R$4,I149,NA()) -> 237.0101778 | AP149: 53912700
A150: 118 | B150: =OFFSET(InputPriceData!B$15,CalculationsAndCharts!$A150+$A$11,0,1,1) -> 2017-05-11 | C150: =OFFSET(InputPriceData!G$15,CalculationsAndCharts!$A150+$A$11,IF($C$7,8,0),1,1) -> 62358300 | D150: =OFFSET(InputPriceData!C$15,CalculationsAndCharts!$A150+$A$11,IF($C$7,8,0),1,1) -> 237.01 | E150: =OFFSET(InputPriceData!D$15,CalculationsAndCharts!$A150+$A$11,IF($C$7,8,0),1,1) -> 237.23 | F150: =OFFSET(InputPriceData!E$15,CalculationsAndCharts!$A150+$A$11,IF($C$7,8,0),1,1) -> 235.8 | G150: =OFFSET(InputPriceData!F$15,CalculationsAndCharts!$A150+$A$11,IF($C$7,8,0),1,1) -> 237.04 | H150: 237.32 | I150: 236.9655716 | J150: 0.6079268004 | K150: -0.49 | L150: 0.3805609646 | M150: 0.2341654529 | N150: 1.625179803 | O150: 11.90737111 | X150: =IF($R$4,I150,NA()) -> 236.9655716 | AO150: 62358300
A151: 119 | B151: =OFFSET(InputPriceData!B$15,CalculationsAndCharts!$A151+$A$11,0,1,1) -> 2017-05-10 | C151: =OFFSET(InputPriceData!G$15,CalculationsAndCharts!$A151+$A$11,IF($C$7,8,0),1,1) -> 54293800 | D151: =OFFSET(InputPriceData!C$15,CalculationsAndCharts!$A151+$A$11,IF($C$7,8,0),1,1) -> 237.05 | E151: =OFFSET(InputPriceData!D$15,CalculationsAndCharts!$A151+$A$11,IF($C$7,8,0),1,1) -> 237.53 | F151: =OFFSET(InputPriceData!E$15,CalculationsAndCharts!$A151+$A$11,IF($C$7,8,0),1,1) -> 236.81 | G151: =OFFSET(InputPriceData!F$15,CalculationsAndCharts!$A151+$A$11,IF($C$7,8,0),1,1) -> 237.53 | H151: 237.32 | I151: 236.7895604 | J151: 0.7295289563 | K151: 0.43 | L151: 0.4098348849 | M151: 0.2144858723 | N151: 1.910777994 | O151: 15.64492373 | X151: =IF($R$4,I151,NA()) -> 236.7895604 | AO151: 54293800
A152: 120 | B152: =OFFSET(InputPriceData!B$15,CalculationsAndCharts!$A152+$A$11,0,1,1) -> 2017-05-09 | C152: =OFFSET(InputPriceData!G$15,CalculationsAndCharts!$A152+$A$11,IF($C$7,8,0),1,1) -> 51363200 | D152: =OFFSET(InputPriceData!C$15,CalculationsAndCharts!$A152+$A$11,IF($C$7,8,0),1,1) -> 237.62 | E152: =OFFSET(InputPriceData!D$15,CalculationsAndCharts!$A152+$A$11,IF($C$7,8,0),1,1) -> 237.84 | F152: =OFFSET(InputPriceData!E$15,CalculationsAndCharts!$A152+$A$11,IF($C$7,8,0),1,1) -> 236.71 | G152: =OFFSET(InputPriceData!F$15,CalculationsAndCharts!$A152+$A$11,IF($C$7,8,0),1,1) -> 237.1 | H152: 237.1 | I152: 236.5261411 | J152: 0.7733357365 | K152: -0.22 | L152: 0.4082837222 | M152: 0.2309847856 | N152: 1.767578419 | O152: 13.86732918 | X152: =IF($R$4,I152,NA()) -> 236.5261411 | AP152: 51363200
A153: 121 | B153: =OFFSET(InputPriceData!B$15,CalculationsAndCharts!$A153+$A$11,0,1,1) -> 2017-05-08 | C153: =OFFSET(InputPriceData!G$15,CalculationsAndCharts!$A153+$A$11,IF($C$7,8,0),1,1) -> 48385700 | D153: =OFFSET(InputPriceData!C$15,CalculationsAndCharts!$A153+$A$11,IF($C$7,8,0),1,1) -> 237.41 | E153: =OFFSET(InputPriceData!D$15,CalculationsAndCharts!$A153+$A$11,IF($C$7,8,0),1,1) -> 237.58 | F153: =OFFSET(InputPriceData!E$15,CalculationsAndCharts!$A153+$A$11,IF($C$7,8,0),1,1) -> 236.83 | G153: =OFFSET(InputPriceData!F$15,CalculationsAndCharts!$A153+$A$11,IF($C$7,8,0),1,1) -> 237.32 | H153: 236.44 | I153: 236.2411594 | J153: 0.7931720478 | K153: -0.04 | L153: 0.4396901624 | M153: 0.2318297691 | N153: 1.896607861 | O153: 15.47685955 | X153: =IF($R$4,I153,NA()) -> 236.2411594 | AP153: 48385700
A154: 122 | B154: =OFFSET(InputPriceData!B$15,CalculationsAndCharts!$A154+$A$11,0,1,1) -> 2017-05-05 | C154: =OFFSET(InputPriceData!G$15,CalculationsAndCharts!$A154+$A$11,IF($C$7,8,0),1,1) -> 62001300 | D154: =OFFSET(InputPriceData!C$15,CalculationsAndCharts!$A154+$A$11,IF($C$7,8,0),1,1) -> 236.85 | E154: =OFFSET(InputPriceData!D$15,CalculationsAndCharts!$A154+$A$11,IF($C$7,8,0),1,1) -> 237.38 | F154: =OFFSET(InputPriceData!E$15,CalculationsAndCharts!$A154+$A$11,IF($C$7,8,0),1,1) -> 236.35 | G154: =OFFSET(InputPriceData!F$15,CalculationsAndCharts!$A154+$A$11,IF($C$7,8,0),1,1) -> 237.36 | H154: 236.43 | I154: 236.142414 | J154: 1.015766553 | K154: 0.93 | L154: 0.4735124826 | M154: 0.2465859052 | N154: 1.920273919 | O154: 15.75663696 | X154: =IF($R$4,I154,NA()) -> 236.142414 | AO154: 62001300
A155: 123 | B155: =OFFSET(InputPriceData!B$15,CalculationsAndCharts!$A155+$A$11,0,1,1) -> 2017-05-04 | C155: =OFFSET(InputPriceData!G$15,CalculationsAndCharts!$A155+$A$11,IF($C$7,8,0),1,1) -> 61462700 | D155: =OFFSET(InputPriceData!C$15,CalculationsAndCharts!$A155+$A$11,IF($C$7,8,0),1,1) -> 236.5 | E155: =OFFSET(InputPriceData!D$15,CalculationsAndCharts!$A155+$A$11,IF($C$7,8,0),1,1) -> 236.59 | F155: =OFFSET(InputPriceData!E$15,CalculationsAndCharts!$A155+$A$11,IF($C$7,8,0),1,1) -> 235.46 | G155: =OFFSET(InputPriceData!F$15,CalculationsAndCharts!$A155+$A$11,IF($C$7,8,0),1,1) -> 236.43 | H155: 236.35 | I155: 235.9995972 | J155: 1.230363121 | K155: 0.28 | L155: 0.4383980581 | M155: 0.2655540517 | N155: 1.650880698 | O155: 12.27668786 | X155: =IF($R$4,I155,NA()) -> 235.9995972 | AP155: 61462700
A156: 124 | B156: =OFFSET(InputPriceData!B$15,CalculationsAndCharts!$A156+$A$11,0,1,1) -> 2017-05-03 | C156: =OFFSET(InputPriceData!G$15,CalculationsAndCharts!$A156+$A$11,IF($C$7,8,0),1,1) -> 73137700 | D156: =OFFSET(InputPriceData!C$15,CalculationsAndCharts!$A156+$A$11,IF($C$7,8,0),1,1) -> 236.44 | E156: =OFFSET(InputPriceData!D$15,CalculationsAndCharts!$A156+$A$11,IF($C$7,8,0),1,1) -> 236.55 | F156: =OFFSET(InputPriceData!E$15,CalculationsAndCharts!$A156+$A$11,IF($C$7,8,0),1,1) -> 235.38 | G156: =OFFSET(InputPriceData!F$15,CalculationsAndCharts!$A156+$A$11,IF($C$7,8,0),1,1) -> 236.15 | H156: 236.27 | I156: 235.8255851 | J156: 1.446431072 | K156: -0.29 | L156: 0.4505825242 | M156: 0.2859812865 | N156: 1.575566464 | O156: 11.1735898 | X156: =IF($R$4,I156,NA()) -> 235.8255851 | AP156: 73137700
A157: 125 | B157: =OFFSET(InputPriceData!B$15,CalculationsAndCharts!$A157+$A$11,0,1,1) -> 2017-05-02 | C157: =OFFSET(InputPriceData!G$15,CalculationsAndCharts!$A157+$A$11,IF($C$7,8,0),1,1) -> 57375700 | D157: =OFFSET(InputPriceData!C$15,CalculationsAndCharts!$A157+$A$11,IF($C$7,8,0),1,1) -> 236.51 | E157: =OFFSET(InputPriceData!D$15,CalculationsAndCharts!$A157+$A$11,IF($C$7,8,0),1,1) -> 236.65 | F157: =OFFSET(InputPriceData!E$15,CalculationsAndCharts!$A157+$A$11,IF($C$7,8,0),1,1) -> 235.97 | G157: =OFFSET(InputPriceData!F$15,CalculationsAndCharts!$A157+$A$11,IF($C$7,8,0),1,1) -> 236.44 | H157: 236.27 | I157: 235.6048862 | J157: 1.643974346 | K157: 0.09 | L157: 0.4852427183 | M157: 0.2856721547 | N157: 1.698599987 | O157: 12.94374844 | X157: =IF($R$4,I157,NA()) -> 235.6048862 | AP157: 57375700
A158: 126 | B158: =OFFSET(InputPriceData!B$15,CalculationsAndCharts!$A158+$A$11,0,1,1) -> 2017-05-01 | C158: =OFFSET(InputPriceData!G$15,CalculationsAndCharts!$A158+$A$11,IF($C$7,8,0),1,1) -> 66882500 | D158: =OFFSET(InputPriceData!C$15,CalculationsAndCharts!$A158+$A$11,IF($C$7,8,0),1,1) -> 236.35 | E158: =OFFSET(InputPriceData!D$15,CalculationsAndCharts!$A158+$A$11,IF($C$7,8,0),1,1) -> 236.83 | F158: =OFFSET(InputPriceData!E$15,CalculationsAndCharts!$A158+$A$11,IF($C$7,8,0),1,1) -> 235.87 | G158: =OFFSET(InputPriceData!F$15,CalculationsAndCharts!$A158+$A$11,IF($C$7,8,0),1,1) -> 236.35 | H158: 236.22 | I158: 235.2745868 | J158: 1.745100772 | K158: 0.6 | L158: 0.5156460043 | M158: 0.3076469358 | N158: 1.676096669 | O158: 12.63214212 | X158: =IF($R$4,I158,NA()) -> 235.2745868 | AO158: 66882500
A159: 127 | B159: =OFFSET(InputPriceData!B$15,CalculationsAndCharts!$A159+$A$11,0,1,1) -> 2017-04-28 | C159: =OFFSET(InputPriceData!G$15,CalculationsAndCharts!$A159+$A$11,IF($C$7,8,0),1,1) -> 53247400 | D159: =OFFSET(InputPriceData!C$15,CalculationsAndCharts!$A159+$A$11,IF($C$7,8,0),1,1) -> 236.57 | E159: =OFFSET(InputPriceData!D$15,CalculationsAndCharts!$A159+$A$11,IF($C$7,8,0),1,1) -> 236.6 | F159: =OFFSET(InputPriceData!E$15,CalculationsAndCharts!$A159+$A$11,IF($C$7,8,0),1,1) -> 235.61 | G159: =OFFSET(InputPriceData!F$15,CalculationsAndCharts!$A159+$A$11,IF($C$7,8,0),1,1) -> 235.75 | H159: 236.07 | I159: 234.8050892 | J159: 1.691189713 | K159: -0.52 | L159: 0.5091572355 | M159: 0.3313120847 | N159: 1.536790413 | O159: 10.58010962 | X159: =IF($R$4,I159,NA()) -> 234.8050892 | AP159: 53247400
A160: 128 | B160: =OFFSET(InputPriceData!B$15,CalculationsAndCharts!$A160+$A$11,0,1,1) -> 2017-04-27 | C160: =OFFSET(InputPriceData!G$15,CalculationsAndCharts!$A160+$A$11,IF($C$7,8,0),1,1) -> 57410300 | D160: =OFFSET(InputPriceData!C$15,CalculationsAndCharts!$A160+$A$11,IF($C$7,8,0),1,1) -> 236.44 | E160: =OFFSET(InputPriceData!D$15,CalculationsAndCharts!$A160+$A$11,IF($C$7,8,0),1,1) -> 236.62 | F160: =OFFSET(InputPriceData!E$15,CalculationsAndCharts!$A160+$A$11,IF($C$7,8,0),1,1) -> 235.66 | G160: =OFFSET(InputPriceData!F$15,CalculationsAndCharts!$A160+$A$11,IF($C$7,8,0),1,1) -> 236.27 | H160: 236.07 | I160: 234.1769272 | J160: 1.422515272 | K160: 0.2 | L160: 0.5483231766 | M160: 0.3167976297 | N160: 1.730831058 | O160: 13.38111078 | X160: =IF($R$4,I160,NA()) -> 234.1769272 | AP160: 57410300
A161: 129 | B161: =OFFSET(InputPriceData!B$15,CalculationsAndCharts!$A161+$A$11,0,1,1) -> 2017-04-26 | C161: =OFFSET(InputPriceData!G$15,CalculationsAndCharts!$A161+$A$11,IF($C$7,8,0),1,1) -> 84702500 | D161: =OFFSET(InputPriceData!C$15,CalculationsAndCharts!$A161+$A$11,IF($C$7,8,0),1,1) -> 236.18 | E161: =OFFSET(InputPriceData!D$15,CalculationsAndCharts!$A161+$A$11,IF($C$7,8,0),1,1) -> 237.19 | F161: =OFFSET(InputPriceData!E$15,CalculationsAndCharts!$A161+$A$11,IF($C$7,8,0),1,1) -> 236.02 | G161: =OFFSET(InputPriceData!F$15,CalculationsAndCharts!$A161+$A$11,IF($C$7,8,0),1,1) -> 236.07 | H161: 234.85 | I161: 233.2368163 | J161: 0.7174047278 | K161: -0.15 | L161: 0.5751172672 | M161: 0.3411666781 | N161: =IF($A161<=($A$8-$C$21),L161/M161,0) -> 1.685736926 | O161: 12.76627132 | X161: =IF($R$4,I161,NA()) -> 233.2368163 | AO161: =IF(G161>=D161,C161,NA()) ->  | AP161: =IF(G161<D161,C161,NA()) -> 84702500
A162: 130 | B162: =OFFSET(InputPriceData!B$15,CalculationsAndCharts!$A162+$A$11,0,1,1) -> 2017-04-25 | C162: =OFFSET(InputPriceData!G$15,CalculationsAndCharts!$A162+$A$11,IF($C$7,8,0),1,1) -> 76698300 | D162: =OFFSET(InputPriceData!C$15,CalculationsAndCharts!$A162+$A$11,IF($C$7,8,0),1,1) -> 235.59 | E162: =OFFSET(InputPriceData!D$15,CalculationsAndCharts!$A162+$A$11,IF($C$7,8,0),1,1) -> 236.62 | F162: =OFFSET(InputPriceData!E$15,CalculationsAndCharts!$A162+$A$11,IF($C$7,8,0),1,1) -> 235.49 | G162: =OFFSET(InputPriceData!F$15,CalculationsAndCharts!$A162+$A$11,IF($C$7,8,0),1,1) -> 236.22 | H162: =MEDIAN(OFFSET(G162,0,0,$C$17,1)) -> 233.04 | I162: =$E$18*H162+$F$18*I163 -> 232.4357 | J162: =(1 -$E$19/2)^2*(I162-2*I163+I164)+2*$F$19*J163-$F$19^2*J164 -> -0.01757991646 | K162: =IF(A162<$A$8,G162-G163,0) -> 1.37 | L162: =IF($A162<($A$8-$C$21),((MIN($C$21,$A$8-$A162+1)-1)*L163+IF($K162>0,$K162,0))/MIN($C$21,$A$8-$A162+1),IF($A162=($A$8-$C$21),SUMIF(OFFSET($K162,0,0,$C$21,1),">0")/$C$21,0)) -> 0.6193570569 | M162: =IF($A162<($A$8-$C$21),((MIN($C$21,$A$8-$A162+1)-1)*M163+IF($K162<0,-$K162,0))/MIN($C$21,$A$8-$A162+1),IF($A162=($A$8-$C$21),-SUMIF(OFFSET($K162,0,0,$C$21,1),"<0")/$C$21,0)) -> 0.3558718072 | N162: 1.740393716 | O162: =IF($A162<=($A$8-$C$21),(100-100/(1+N162)-50),0) -> 13.50889311 | X162: =IF($R$4,I162,NA()) -> 232.4357 | AO162: 76698300
A163: 131 | B163: =OFFSET(InputPriceData!B$15,CalculationsAndCharts!$A163+$A$11,0,1,1) -> 2017-04-24 | C163: =OFFSET(InputPriceData!G$15,CalculationsAndCharts!$A163+$A$11,IF($C$7,8,0),1,1) -> 119209900 | D163: =OFFSET(InputPriceData!C$15,CalculationsAndCharts!$A163+$A$11,IF($C$7,8,0),1,1) -> 234.86 | E163: =OFFSET(InputPriceData!D$15,CalculationsAndCharts!$A163+$A$11,IF($C$7,8,0),1,1) -> 235.09 | F163: =OFFSET(InputPriceData!E$15,CalculationsAndCharts!$A163+$A$11,IF($C$7,8,0),1,1) -> 232.27 | G163: =OFFSET(InputPriceData!F$15,CalculationsAndCharts!$A163+$A$11,IF($C$7,8,0),1,1) -> 234.85 | H163: 232.3 | I163: 232.1356011 | J163: -0.3738099579 | K163: 2.55 | L163: 0.5616152921 | M163: 0.3832465616 | N163: 1.465415084 | O163: 9.438878805 | X163: =IF($R$4,I163,NA()) -> 232.1356011 | AP163: 119209900
A164: 132 | B164: =OFFSET(InputPriceData!B$15,CalculationsAndCharts!$A164+$A$11,0,1,1) -> 2017-04-21 | C164: =OFFSET(InputPriceData!G$15,CalculationsAndCharts!$A164+$A$11,IF($C$7,8,0),1,1) -> 110389800 | D164: =OFFSET(InputPriceData!C$15,CalculationsAndCharts!$A164+$A$11,IF($C$7,8,0),1,1) -> 232.95 | E164: =OFFSET(InputPriceData!D$15,CalculationsAndCharts!$A164+$A$11,IF($C$7,8,0),1,1) -> 233.01 | F164: =OFFSET(InputPriceData!E$15,CalculationsAndCharts!$A164+$A$11,IF($C$7,8,0),1,1) -> 231.84 | G164: =OFFSET(InputPriceData!F$15,CalculationsAndCharts!$A164+$A$11,IF($C$7,8,0),1,1) -> 232.3 | H164: 232.28 | I164: 232.0539596 | J164: -0.5687325716 | K164: -0.74 | L164: 0.4086626222 | M164: 0.4127270663 | N164: 0.9901522231 | O164: -0.2474126557 | X164: =IF($R$4,I164,NA()) -> 232.0539596 | AP164: 110389800
A165: 133 | B165: =OFFSET(InputPriceData!B$15,CalculationsAndCharts!$A165+$A$11,0,1,1) -> 2017-04-20 | C165: =OFFSET(InputPriceData!G$15,CalculationsAndCharts!$A165+$A$11,IF($C$7,8,0),1,1) -> 92572200 | D165: =OFFSET(InputPriceData!C$15,CalculationsAndCharts!$A165+$A$11,IF($C$7,8,0),1,1) -> 231.86 | E165: =OFFSET(InputPriceData!D$15,CalculationsAndCharts!$A165+$A$11,IF($C$7,8,0),1,1) -> 233.55 | F165: =OFFSET(InputPriceData!E$15,CalculationsAndCharts!$A165+$A$11,IF($C$7,8,0),1,1) -> 231.5 | G165: =OFFSET(InputPriceData!F$15,CalculationsAndCharts!$A165+$A$11,IF($C$7,8,0),1,1) -> 233.04 | H165: 231.59 | I165: 231.9417066 | J165: -0.8386861815 | K165: 1.88 | L165: 0.4400982086 | M165: 0.3875522253 | N165: 1.135584264 | O165: 3.174406799 | X165: =IF($R$4,I165,NA()) -> 231.9417066 | AO165: 92572200
A166: 134 | B166: =OFFSET(InputPriceData!B$15,CalculationsAndCharts!$A166+$A$11,0,1,1) -> 2017-04-19 | C166: =OFFSET(InputPriceData!G$15,CalculationsAndCharts!$A166+$A$11,IF($C$7,8,0),1,1) -> 68699900 | D166: =OFFSET(InputPriceData!C$15,CalculationsAndCharts!$A166+$A$11,IF($C$7,8,0),1,1) -> 232.23 | E166: =OFFSET(InputPriceData!D$15,CalculationsAndCharts!$A166+$A$11,IF($C$7,8,0),1,1) -> 232.66 | F166: =OFFSET(InputPriceData!E$15,CalculationsAndCharts!$A166+$A$11,IF($C$7,8,0),1,1) -> 230.9 | G166: =OFFSET(InputPriceData!F$15,CalculationsAndCharts!$A166+$A$11,IF($C$7,8,0),1,1) -> 231.16 | H166: 231.59 | I166: 232.1163662 | J166: -0.8426335621 | K166: -0.43 | L166: 0.3293365323 | M166: 0.4173639349 | N166: 0.7890871845 | O166: -5.894425307 | X166: =IF($R$4,I166,NA()) -> 232.1163662 | AP166: 68699900
A167: 135 | B167: =OFFSET(InputPriceData!B$15,CalculationsAndCharts!$A167+$A$11,0,1,1) -> 2017-04-18 | C167: =OFFSET(InputPriceData!G$15,CalculationsAndCharts!$A167+$A$11,IF($C$7,8,0),1,1) -> 83225800 | D167: =OFFSET(InputPriceData!C$15,CalculationsAndCharts!$A167+$A$11,IF($C$7,8,0),1,1) -> 231.44 | E167: =OFFSET(InputPriceData!D$15,CalculationsAndCharts!$A167+$A$11,IF($C$7,8,0),1,1) -> 232.2 | F167: =OFFSET(InputPriceData!E$15,CalculationsAndCharts!$A167+$A$11,IF($C$7,8,0),1,1) -> 230.8 | G167: =OFFSET(InputPriceData!F$15,CalculationsAndCharts!$A167+$A$11,IF($C$7,8,0),1,1) -> 231.59 | H167: 231.74 | I167: 232.3777627 | J167: -0.738641772 | K167: -0.69 | L167: 0.3546701117 | M167: 0.4163919299 | N167: 0.8517698981 | O167: -4.002389877 | X167: =IF($R$4,I167,NA()) -> 232.3777627 | AO167: 83225800
A168: 136 | B168: =OFFSET(InputPriceData!B$15,CalculationsAndCharts!$A168+$A$11,0,1,1) -> 2017-04-17 | C168: =OFFSET(InputPriceData!G$15,CalculationsAndCharts!$A168+$A$11,IF($C$7,8,0),1,1) -> 68405400 | D168: =OFFSET(InputPriceData!C$15,CalculationsAndCharts!$A168+$A$11,IF($C$7,8,0),1,1) -> 230.83 | E168: =OFFSET(InputPriceData!D$15,CalculationsAndCharts!$A168+$A$11,IF($C$7,8,0),1,1) -> 232.28 | F168: =OFFSET(InputPriceData!E$15,CalculationsAndCharts!$A168+$A$11,IF($C$7,8,0),1,1) -> 230.61 | G168: =OFFSET(InputPriceData!F$15,CalculationsAndCharts!$A168+$A$11,IF($C$7,8,0),1,1) -> 232.28 | H168: 232.28 | I168: 232.6944793 | J168: -0.5364682972 | K168: 2.04 | L168: 0.381952428 | M168: 0.3953451553 | N168: 0.9661239626 | O168: -0.8614929193 | X168: =IF($R$4,I168,NA()) -> 232.6944793 | AO168: 68405400
A169: 137 | B169: =OFFSET(InputPriceData!B$15,CalculationsAndCharts!$A169+$A$11,0,1,1) -> 2017-04-13 | C169: =OFFSET(InputPriceData!G$15,CalculationsAndCharts!$A169+$A$11,IF($C$7,8,0),1,1) -> 92880400 | D169: =OFFSET(InputPriceData!C$15,CalculationsAndCharts!$A169+$A$11,IF($C$7,8,0),1,1) -> 231.36 | E169: =OFFSET(InputPriceData!D$15,CalculationsAndCharts!$A169+$A$11,IF($C$7,8,0),1,1) -> 232.2 | F169: =OFFSET(InputPriceData!E$15,CalculationsAndCharts!$A169+$A$11,IF($C$7,8,0),1,1) -> 230.24 | G169: =OFFSET(InputPriceData!F$15,CalculationsAndCharts!$A169+$A$11,IF($C$7,8,0),1,1) -> 230.24 | H169: 232.76 | I169: 232.9003121 | J169: -0.4007836213 | K169: -1.5 | L169: 0.2544103071 | M169: 0.4257563211 | N169: 0.5975491014 | O169: -12.5958851 | X169: =IF($R$4,I169,NA()) -> 232.9003121 | AP169: 92880400
A170: 138 | B170: =OFFSET(InputPriceData!B$15,CalculationsAndCharts!$A170+$A$11,0,1,1) -> 2017-04-12 | C170: =OFFSET(InputPriceData!G$15,CalculationsAndCharts!$A170+$A$11,IF($C$7,8,0),1,1) -> 81864400 | D170: =OFFSET(InputPriceData!C$15,CalculationsAndCharts!$A170+$A$11,IF($C$7,8,0),1,1) -> 232.45 | E170: =OFFSET(InputPriceData!D$15,CalculationsAndCharts!$A170+$A$11,IF($C$7,8,0),1,1) -> 232.67 | F170: =OFFSET(InputPriceData!E$15,CalculationsAndCharts!$A170+$A$11,IF($C$7,8,0),1,1) -> 231.49 | G170: =OFFSET(InputPriceData!F$15,CalculationsAndCharts!$A170+$A$11,IF($C$7,8,0),1,1) -> 231.74 | H170: 232.9 | I170: 232.9699919 | J170: -0.3783734853 | K170: -1.02 | L170: 0.2739803307 | M170: 0.3431221919 | N170: 0.7984920158 | O170: -5.602137302 | X170: =IF($R$4,I170,NA()) -> 232.9699919 | AP170: 81864400
A171: 139 | B171: =OFFSET(InputPriceData!B$15,CalculationsAndCharts!$A171+$A$11,0,1,1) -> 2017-04-11 | C171: =OFFSET(InputPriceData!G$15,CalculationsAndCharts!$A171+$A$11,IF($C$7,8,0),1,1) -> 88045300 | D171: =OFFSET(InputPriceData!C$15,CalculationsAndCharts!$A171+$A$11,IF($C$7,8,0),1,1) -> 232.61 | E171: =OFFSET(InputPriceData!D$15,CalculationsAndCharts!$A171+$A$11,IF($C$7,8,0),1,1) -> 232.88 | F171: =OFFSET(InputPriceData!E$15,CalculationsAndCharts!$A171+$A$11,IF($C$7,8,0),1,1) -> 231.06 | G171: =OFFSET(InputPriceData!F$15,CalculationsAndCharts!$A171+$A$11,IF($C$7,8,0),1,1) -> 232.76 | H171: 232.9 | I171: 233.0047503 | J171: -0.384287157 | K171: -0.28 | L171: 0.2950557408 | M171: 0.2910546682 | N171: 1.013746808 | O171: 0.3413241312 | X171: =IF($R$4,I171,NA()) -> 233.0047503 | AO171: 88045300
A172: 140 | B172: =OFFSET(InputPriceData!B$15,CalculationsAndCharts!$A172+$A$11,0,1,1) -> 2017-04-10 | C172: =OFFSET(InputPriceData!G$15,CalculationsAndCharts!$A172+$A$11,IF($C$7,8,0),1,1) -> 67615300 | D172: =OFFSET(InputPriceData!C$15,CalculationsAndCharts!$A172+$A$11,IF($C$7,8,0),1,1) -> 233.06 | E172: =OFFSET(InputPriceData!D$15,CalculationsAndCharts!$A172+$A$11,IF($C$7,8,0),1,1) -> 233.95 | F172: =OFFSET(InputPriceData!E$15,CalculationsAndCharts!$A172+$A$11,IF($C$7,8,0),1,1) -> 232.44 | G172: =OFFSET(InputPriceData!F$15,CalculationsAndCharts!$A172+$A$11,IF($C$7,8,0),1,1) -> 233.04 | H172: 233.04 | I172: 233.0567698 | J172: -0.3669973497 | K172: 0.14 | L172: 0.3177523362 | M172: 0.2919050273 | N172: 1.088546981 | O172: 2.119822577 | X172: =IF($R$4,I172,NA()) -> 233.0567698 | AP172: 67615300
A173: 141 | B173: =OFFSET(InputPriceData!B$15,CalculationsAndCharts!$A173+$A$11,0,1,1) -> 2017-04-07 | C173: =OFFSET(InputPriceData!G$15,CalculationsAndCharts!$A173+$A$11,IF($C$7,8,0),1,1) -> 74412300 | D173: =OFFSET(InputPriceData!C$15,CalculationsAndCharts!$A173+$A$11,IF($C$7,8,0),1,1) -> 232.85 | E173: =OFFSET(InputPriceData!D$15,CalculationsAndCharts!$A173+$A$11,IF($C$7,8,0),1,1) -> 233.69 | F173: =OFFSET(InputPriceData!E$15,CalculationsAndCharts!$A173+$A$11,IF($C$7,8,0),1,1) -> 232.35 | G173: =OFFSET(InputPriceData!F$15,CalculationsAndCharts!$A173+$A$11,IF($C$7,8,0),1,1) -> 232.9 | H173: 233.03 | I173: 233.0650979 | J173: -0.3892982849 | K173: -0.24 | L173: 0.3314255928 | M173: 0.3143592602 | N173: 1.054289263 | O173: 1.321363652 | X173: =IF($R$4,I173,NA()) -> 233.0650979 | AO173: 74412300
A174: 142 | B174: =OFFSET(InputPriceData!B$15,CalculationsAndCharts!$A174+$A$11,0,1,1) -> 2017-04-06 | C174: =OFFSET(InputPriceData!G$15,CalculationsAndCharts!$A174+$A$11,IF($C$7,8,0),1,1) -> 69135800 | D174: =OFFSET(InputPriceData!C$15,CalculationsAndCharts!$A174+$A$11,IF($C$7,8,0),1,1) -> 232.65 | E174: =OFFSET(InputPriceData!D$15,CalculationsAndCharts!$A174+$A$11,IF($C$7,8,0),1,1) -> 233.73 | F174: =OFFSET(InputPriceData!E$15,CalculationsAndCharts!$A174+$A$11,IF($C$7,8,0),1,1) -> 232.14 | G174: =OFFSET(InputPriceData!F$15,CalculationsAndCharts!$A174+$A$11,IF($C$7,8,0),1,1) -> 233.14 | H174: 233.14 | I174: 233.0825276 | J174: -0.4015594951 | K174: 0.65 | L174: 0.3569198692 | M174: 0.3200792033 | N174: 1.115098593 | O174: 2.720880087 | X174: =IF($R$4,I174,NA()) -> 233.0825276 | AO174: 69135800
A175: 143 | B175: =OFFSET(InputPriceData!B$15,CalculationsAndCharts!$A175+$A$11,0,1,1) -> 2017-04-05 | C175: =OFFSET(InputPriceData!G$15,CalculationsAndCharts!$A175+$A$11,IF($C$7,8,0),1,1) -> 108800600 | D175: =OFFSET(InputPriceData!C$15,CalculationsAndCharts!$A175+$A$11,IF($C$7,8,0),1,1) -> 233.95 | E175: =OFFSET(InputPriceData!D$15,CalculationsAndCharts!$A175+$A$11,IF($C$7,8,0),1,1) -> 235.07 | F175: =OFFSET(InputPriceData!E$15,CalculationsAndCharts!$A175+$A$11,IF($C$7,8,0),1,1) -> 232.25 | G175: =OFFSET(InputPriceData!F$15,CalculationsAndCharts!$A175+$A$11,IF($C$7,8,0),1,1) -> 232.49 | H175: 233.18 | I175: 233.0539865 | J175: -0.4628545826 | K175: -0.69 | L175: 0.3343752437 | M175: 0.3447006805 | N175: 0.9700452094 | O175: -0.7602564268 | X175: =IF($R$4,I175,NA()) -> 233.0539865 | AP175: 108800600
A176: 144 | B176: =OFFSET(InputPriceData!B$15,CalculationsAndCharts!$A176+$A$11,0,1,1) -> 2017-04-04 | C176: =OFFSET(InputPriceData!G$15,CalculationsAndCharts!$A176+$A$11,IF($C$7,8,0),1,1) -> 56466200 | D176: =OFFSET(InputPriceData!C$15,CalculationsAndCharts!$A176+$A$11,IF($C$7,8,0),1,1) -> 232.7 | E176: =OFFSET(InputPriceData!D$15,CalculationsAndCharts!$A176+$A$11,IF($C$7,8,0),1,1) -> 233.28 | F176: =OFFSET(InputPriceData!E$15,CalculationsAndCharts!$A176+$A$11,IF($C$7,8,0),1,1) -> 232.27 | G176: =OFFSET(InputPriceData!F$15,CalculationsAndCharts!$A176+$A$11,IF($C$7,8,0),1,1) -> 233.18 | H176: 233.24 | I176: 232.9914075 | J176: -0.5711784731 | K176: 0.15 | L176: 0.3600964163 | M176: 0.3181391943 | N176: 1.131883222 | O176: 3.093115529 | X176: =IF($R$4,I176,NA()) -> 232.9914075 | AO176: 56466200
A177: 145 | B177: =OFFSET(InputPriceData!B$15,CalculationsAndCharts!$A177+$A$11,0,1,1) -> 2017-04-03 | C177: =OFFSET(InputPriceData!G$15,CalculationsAndCharts!$A177+$A$11,IF($C$7,8,0),1,1) -> 85546500 | D177: =OFFSET(InputPriceData!C$15,CalculationsAndCharts!$A177+$A$11,IF($C$7,8,0),1,1) -> 233.5 | E177: =OFFSET(InputPriceData!D$15,CalculationsAndCharts!$A177+$A$11,IF($C$7,8,0),1,1) -> 233.72 | F177: =OFFSET(InputPriceData!E$15,CalculationsAndCharts!$A177+$A$11,IF($C$7,8,0),1,1) -> 231.63 | G177: =OFFSET(InputPriceData!F$15,CalculationsAndCharts!$A177+$A$11,IF($C$7,8,0),1,1) -> 233.03 | H177: 233.24 | I177: 232.8679551 | J177: -0.7668409886 | K177: -0.41 | L177: 0.3762576791 | M177: 0.3426114401 | N177: 1.098205241 | O177: 2.340220089 | X177: =IF($R$4,I177,NA()) -> 232.8679551 | AP177: 85546500
A178: 146 | B178: =OFFSET(InputPriceData!B$15,CalculationsAndCharts!$A178+$A$11,0,1,1) -> 2017-03-31 | C178: =OFFSET(InputPriceData!G$15,CalculationsAndCharts!$A178+$A$11,IF($C$7,8,0),1,1) -> 73733100 | D178: =OFFSET(InputPriceData!C$15,CalculationsAndCharts!$A178+$A$11,IF($C$7,8,0),1,1) -> 233.6 | E178: =OFFSET(InputPriceData!D$15,CalculationsAndCharts!$A178+$A$11,IF($C$7,8,0),1,1) -> 234.2 | F178: =OFFSET(InputPriceData!E$15,CalculationsAndCharts!$A178+$A$11,IF($C$7,8,0),1,1) -> 233.38 | G178: =OFFSET(InputPriceData!F$15,CalculationsAndCharts!$A178+$A$11,IF($C$7,8,0),1,1) -> 233.44 | H178: 233.24 | I178: 232.6831955 | J178: -1.069389197 | K178: -0.54 | L178: 0.4052005775 | M178: 0.3374277047 | N178: 1.200851536 | O178: 4.563041462 | X178: =IF($R$4,I178,NA()) -> 232.6831955 | AP178: 73733100
A179: 147 | B179: =OFFSET(InputPriceData!B$15,CalculationsAndCharts!$A179+$A$11,0,1,1) -> 2017-03-30 | C179: =OFFSET(InputPriceData!G$15,CalculationsAndCharts!$A179+$A$11,IF($C$7,8,0),1,1) -> 56737900 | D179: =OFFSET(InputPriceData!C$15,CalculationsAndCharts!$A179+$A$11,IF($C$7,8,0),1,1) -> 233.17 | E179: =OFFSET(InputPriceData!D$15,CalculationsAndCharts!$A179+$A$11,IF($C$7,8,0),1,1) -> 234.21 | F179: =OFFSET(InputPriceData!E$15,CalculationsAndCharts!$A179+$A$11,IF($C$7,8,0),1,1) -> 232.97 | G179: =OFFSET(InputPriceData!F$15,CalculationsAndCharts!$A179+$A$11,IF($C$7,8,0),1,1) -> 233.98 | H179: 233.02 | I179: 232.4066831 | J179: -1.535410329 | K179: 0.74 | L179: 0.4363698527 | M179: 0.3218452204 | N179: 1.355837605 | O179: 7.552252412 | X179: =IF($R$4,I179,NA()) -> 232.4066831 | AO179: 56737900
A180: 148 | B180: =OFFSET(InputPriceData!B$15,CalculationsAndCharts!$A180+$A$11,0,1,1) -> 2017-03-29 | C180: =OFFSET(InputPriceData!G$15,CalculationsAndCharts!$A180+$A$11,IF($C$7,8,0),1,1) -> 61950400 | D180: =OFFSET(InputPriceData!C$15,CalculationsAndCharts!$A180+$A$11,IF($C$7,8,0),1,1) -> 232.69 | E180: =OFFSET(InputPriceData!D$15,CalculationsAndCharts!$A180+$A$11,IF($C$7,8,0),1,1) -> 233.51 | F180: =OFFSET(InputPriceData!E$15,CalculationsAndCharts!$A180+$A$11,IF($C$7,8,0),1,1) -> 232.44 | G180: =OFFSET(InputPriceData!F$15,CalculationsAndCharts!$A180+$A$11,IF($C$7,8,0),1,1) -> 233.24 | H180: 231.74 | I180: 232.1021064 | J180: -2.127791958 | K180: 0.22 | L180: 0.4130136876 | M180: 0.3466025451 | N180: 1.191606044 | O180: 4.37136146 | X180: =IF($R$4,I180,NA()) -> 232.1021064 | AO180: 61950400
A181: 149 | B181: =OFFSET(InputPriceData!B$15,CalculationsAndCharts!$A181+$A$11,0,1,1) -> 2017-03-28 | C181: =OFFSET(InputPriceData!G$15,CalculationsAndCharts!$A181+$A$11,IF($C$7,8,0),1,1) -> 93483900 | D181: =OFFSET(InputPriceData!C$15,CalculationsAndCharts!$A181+$A$11,IF($C$7,8,0),1,1) -> 230.99 | E181: =OFFSET(InputPriceData!D$15,CalculationsAndCharts!$A181+$A$11,IF($C$7,8,0),1,1) -> 233.51 | F181: =OFFSET(InputPriceData!E$15,CalculationsAndCharts!$A181+$A$11,IF($C$7,8,0),1,1) -> 230.86 | G181: =OFFSET(InputPriceData!F$15,CalculationsAndCharts!$A181+$A$11,IF($C$7,8,0),1,1) -> 233.02 | H181: 231.74 | I181: 232.2819305 | J181: -2.295261208 | K181: 1.68 | L181: 0.4278608943 | M181: 0.3732642793 | N181: 1.146267988 | O181: 3.407495906 | X181: =IF($R$4,I181,NA()) -> 232.2819305 | AO181: 93483900
A182: 150 | B182: =OFFSET(InputPriceData!B$15,CalculationsAndCharts!$A182+$A$11,0,1,1) -> 2017-03-27 | C182: =OFFSET(InputPriceData!G$15,CalculationsAndCharts!$A182+$A$11,IF($C$7,8,0),1,1) -> 87454500 | D182: =OFFSET(InputPriceData!C$15,CalculationsAndCharts!$A182+$A$11,IF($C$7,8,0),1,1) -> 229.66 | E182: =OFFSET(InputPriceData!D$15,CalculationsAndCharts!$A182+$A$11,IF($C$7,8,0),1,1) -> 231.64 | F182: =OFFSET(InputPriceData!E$15,CalculationsAndCharts!$A182+$A$11,IF($C$7,8,0),1,1) -> 229.35 | G182: =OFFSET(InputPriceData!F$15,CalculationsAndCharts!$A182+$A$11,IF($C$7,8,0),1,1) -> 231.34 | H182: 231.58 | I182: 232.5510564 | J182: -2.372550725 | K182: -0.24 | L182: 0.3315425015 | M182: 0.4019769162 | N182: 0.8247799518 | O182: -4.801128159 | X182: =IF($R$4,I182,NA()) -> 232.5510564 | AO182: 87454500
A183: 151 | B183: =OFFSET(InputPriceData!B$15,CalculationsAndCharts!$A183+$A$11,0,1,1) -> 2017-03-24 | C183: =OFFSET(InputPriceData!G$15,CalculationsAndCharts!$A183+$A$11,IF($C$7,8,0),1,1) -> 112504900 | D183: =OFFSET(InputPriceData!C$15,CalculationsAndCharts!$A183+$A$11,IF($C$7,8,0),1,1) -> 232.09 | E183: =OFFSET(InputPriceData!D$15,CalculationsAndCharts!$A183+$A$11,IF($C$7,8,0),1,1) -> 232.74 | F183: =OFFSET(InputPriceData!E$15,CalculationsAndCharts!$A183+$A$11,IF($C$7,8,0),1,1) -> 230.68 | G183: =OFFSET(InputPriceData!F$15,CalculationsAndCharts!$A183+$A$11,IF($C$7,8,0),1,1) -> 231.58 | H183: 231.74 | I183: 233.0332886 | J183: -2.197302531 | K183: -0.16 | L183: 0.3570457709 | M183: 0.414436679 | N183: 0.8615206834 | O183: -3.719521298 | X183: =IF($R$4,I183,NA()) -> 233.0332886 | AP183: 112504900
A184: 152 | B184: =OFFSET(InputPriceData!B$15,CalculationsAndCharts!$A184+$A$11,0,1,1) -> 2017-03-23 | C184: =OFFSET(InputPriceData!G$15,CalculationsAndCharts!$A184+$A$11,IF($C$7,8,0),1,1) -> 100410300 | D184: =OFFSET(InputPriceData!C$15,CalculationsAndCharts!$A184+$A$11,IF($C$7,8,0),1,1) -> 231.99 | E184: =OFFSET(InputPriceData!D$15,CalculationsAndCharts!$A184+$A$11,IF($C$7,8,0),1,1) -> 233.04 | F184: =OFFSET(InputPriceData!E$15,CalculationsAndCharts!$A184+$A$11,IF($C$7,8,0),1,1) -> 231.32 | G184: =OFFSET(InputPriceData!F$15,CalculationsAndCharts!$A184+$A$11,IF($C$7,8,0),1,1) -> 231.74 | H184: 231.99 | I184: 233.6755431 | J184: -1.768508476 | K184: -0.25 | L184: 0.3845108302 | M184: 0.4340087312 | N184: 0.8859518313 | O184: -3.023623584 | X184: =IF($R$4,I184,NA()) -> 233.6755431 | AP184: 100410300
A185: 153 | B185: =OFFSET(InputPriceData!B$15,CalculationsAndCharts!$A185+$A$11,0,1,1) -> 2017-03-22 | C185: =OFFSET(InputPriceData!G$15,CalculationsAndCharts!$A185+$A$11,IF($C$7,8,0),1,1) -> 97569200 | D185: =OFFSET(InputPriceData!C$15,CalculationsAndCharts!$A185+$A$11,IF($C$7,8,0),1,1) -> 231.49 | E185: =OFFSET(InputPriceData!D$15,CalculationsAndCharts!$A185+$A$11,IF($C$7,8,0),1,1) -> 232.32 | F185: =OFFSET(InputPriceData!E$15,CalculationsAndCharts!$A185+$A$11,IF($C$7,8,0),1,1) -> 230.77 | G185: =OFFSET(InputPriceData!F$15,CalculationsAndCharts!$A185+$A$11,IF($C$7,8,0),1,1) -> 231.99 | H185: 234.46 | I185: 234.5125935 | J185: -0.9899185078 | K185: 0.54 | L185: 0.4140885864 | M185: 0.448163249 | N185: 0.9239681908 | O185: -1.975911284 | X185: =IF($R$4,I185,NA()) -> 234.5125935 | AO185: 97569200
A186: 154 | B186: =OFFSET(InputPriceData!B$15,CalculationsAndCharts!$A186+$A$11,0,1,1) -> 2017-03-21 | C186: =OFFSET(InputPriceData!G$15,CalculationsAndCharts!$A186+$A$11,IF($C$7,8,0),1,1) -> 131809300 | D186: =OFFSET(InputPriceData!C$15,CalculationsAndCharts!$A186+$A$11,IF($C$7,8,0),1,1) -> 235.15 | E186: =OFFSET(InputPriceData!D$15,CalculationsAndCharts!$A186+$A$11,IF($C$7,8,0),1,1) -> 235.29 | F186: =OFFSET(InputPriceData!E$15,CalculationsAndCharts!$A186+$A$11,IF($C$7,8,0),1,1) -> 231.3 | G186: =OFFSET(InputPriceData!F$15,CalculationsAndCharts!$A186+$A$11,IF($C$7,8,0),1,1) -> 231.45 | H186: 234.71 | I186: 234.5387118 | J186: -0.9127221504 | K186: -3.01 | L186: 0.404403093 | M186: 0.4826373451 | N186: 0.8379026139 | O186: -4.409846986 | X186: =IF($R$4,I186,NA()) -> 234.5387118 | AP186: 131809300
A187: 155 | B187: =OFFSET(InputPriceData!B$15,CalculationsAndCharts!$A187+$A$11,0,1,1) -> 2017-03-20 | C187: =OFFSET(InputPriceData!G$15,CalculationsAndCharts!$A187+$A$11,IF($C$7,8,0),1,1) -> 52537000 | D187: =OFFSET(InputPriceData!C$15,CalculationsAndCharts!$A187+$A$11,IF($C$7,8,0),1,1) -> 234.71 | E187: =OFFSET(InputPriceData!D$15,CalculationsAndCharts!$A187+$A$11,IF($C$7,8,0),1,1) -> 235.04 | F187: =OFFSET(InputPriceData!E$15,CalculationsAndCharts!$A187+$A$11,IF($C$7,8,0),1,1) -> 234.01 | G187: =OFFSET(InputPriceData!F$15,CalculationsAndCharts!$A187+$A$11,IF($C$7,8,0),1,1) -> 234.46 | H187: 234.71 | I187: 234.453649 | J187: -0.9282887681 | K187: -0.25 | L187: 0.4355110232 | M187: 0.2882248331 | N187: 1.511011451 | O187: 10.1754106 | X187: =IF($R$4,I187,NA()) -> 234.453649 | AP187: 52537000
A188: 156 | B188: =OFFSET(InputPriceData!B$15,CalculationsAndCharts!$A188+$A$11,0,1,1) -> 2017-03-17 | C188: =OFFSET(InputPriceData!G$15,CalculationsAndCharts!$A188+$A$11,IF($C$7,8,0),1,1) -> 89002100 | D188: =OFFSET(InputPriceData!C$15,CalculationsAndCharts!$A188+$A$11,IF($C$7,8,0),1,1) -> 235.43 | E188: =OFFSET(InputPriceData!D$15,CalculationsAndCharts!$A188+$A$11,IF($C$7,8,0),1,1) -> 235.65 | F188: =OFFSET(InputPriceData!E$15,CalculationsAndCharts!$A188+$A$11,IF($C$7,8,0),1,1) -> 234.71 | G188: =OFFSET(InputPriceData!F$15,CalculationsAndCharts!$A188+$A$11,IF($C$7,8,0),1,1) -> 234.71 | H188: 234.71 | I188: 234.3263437 | J188: -0.9822347107 | K188: -0.42 | L188: 0.4690118712 | M188: 0.2911652049 | N188: 1.610810163 | O188: 11.69771306 | X188: =IF($R$4,I188,NA()) -> 234.3263437 | AP188: 89002100
A189: 157 | B189: =OFFSET(InputPriceData!B$15,CalculationsAndCharts!$A189+$A$11,0,1,1) -> 2017-03-16 | C189: =OFFSET(InputPriceData!G$15,CalculationsAndCharts!$A189+$A$11,IF($C$7,8,0),1,1) -> 78344000 | D189: =OFFSET(InputPriceData!C$15,CalculationsAndCharts!$A189+$A$11,IF($C$7,8,0),1,1) -> 235.75 | E189: =OFFSET(InputPriceData!D$15,CalculationsAndCharts!$A189+$A$11,IF($C$7,8,0),1,1) -> 235.84 | F189: =OFFSET(InputPriceData!E$15,CalculationsAndCharts!$A189+$A$11,IF($C$7,8,0),1,1) -> 234.75 | G189: =OFFSET(InputPriceData!F$15,CalculationsAndCharts!$A189+$A$11,IF($C$7,8,0),1,1) -> 235.13 | H189: 234.47 | I189: 234.1358177 | J189: -1.106899721 | K189: -0.46 | L189: 0.5050897074 | M189: 0.2812548361 | N189: 1.795843636 | O189: 14.23262063 | X189: =IF($R$4,I189,NA()) -> 234.1358177 | AP189: 78344000
A190: 158 | B190: =OFFSET(InputPriceData!B$15,CalculationsAndCharts!$A190+$A$11,0,1,1) -> 2017-03-15 | C190: =OFFSET(InputPriceData!G$15,CalculationsAndCharts!$A190+$A$11,IF($C$7,8,0),1,1) -> 96081800 | D190: =OFFSET(InputPriceData!C$15,CalculationsAndCharts!$A190+$A$11,IF($C$7,8,0),1,1) -> 234.22 | E190: =OFFSET(InputPriceData!D$15,CalculationsAndCharts!$A190+$A$11,IF($C$7,8,0),1,1) -> 236.07 | F190: =OFFSET(InputPriceData!E$15,CalculationsAndCharts!$A190+$A$11,IF($C$7,8,0),1,1) -> 233.95 | G190: =OFFSET(InputPriceData!F$15,CalculationsAndCharts!$A190+$A$11,IF($C$7,8,0),1,1) -> 235.59 | H190: 234.35 | I190: 233.9698608 | J190: -1.219757621 | K190: 2.02 | L190: 0.5439427618 | M190: 0.2675052081 | N190: 2.033391296 | O190: 17.03359698 | X190: =IF($R$4,I190,NA()) -> 233.9698608 | AO190: 96081800
A191: 159 | B191: =OFFSET(InputPriceData!B$15,CalculationsAndCharts!$A191+$A$11,0,1,1) -> 2017-03-14 | C191: =OFFSET(InputPriceData!G$15,CalculationsAndCharts!$A191+$A$11,IF($C$7,8,0),1,1) -> 59880800 | D191: =OFFSET(InputPriceData!C$15,CalculationsAndCharts!$A191+$A$11,IF($C$7,8,0),1,1) -> 233.85 | E191: =OFFSET(InputPriceData!D$15,CalculationsAndCharts!$A191+$A$11,IF($C$7,8,0),1,1) -> 233.91 | F191: =OFFSET(InputPriceData!E$15,CalculationsAndCharts!$A191+$A$11,IF($C$7,8,0),1,1) -> 232.87 | G191: =OFFSET(InputPriceData!F$15,CalculationsAndCharts!$A191+$A$11,IF($C$7,8,0),1,1) -> 233.57 | H191: 233.57 | I191: 233.7810815 | J191: -1.369435617 | K191: -0.9 | L191: 0.4303998974 | M191: 0.2880825318 | N191: 1.49401595 | O191: 9.904025473 | X191: =IF($R$4,I191,NA()) -> 233.7810815 | AP191: 59880800
A192: 160 | B192: =OFFSET(InputPriceData!B$15,CalculationsAndCharts!$A192+$A$11,0,1,1) -> 2017-03-13 | C192: =OFFSET(InputPriceData!G$15,CalculationsAndCharts!$A192+$A$11,IF($C$7,8,0),1,1) -> 57256800 | D192: =OFFSET(InputPriceData!C$15,CalculationsAndCharts!$A192+$A$11,IF($C$7,8,0),1,1) -> 234.28 | E192: =OFFSET(InputPriceData!D$15,CalculationsAndCharts!$A192+$A$11,IF($C$7,8,0),1,1) -> 234.52 | F192: =OFFSET(InputPriceData!E$15,CalculationsAndCharts!$A192+$A$11,IF($C$7,8,0),1,1) -> 233.91 | G192: =OFFSET(InputPriceData!F$15,CalculationsAndCharts!$A192+$A$11,IF($C$7,8,0),1,1) -> 234.47 | H192: 233.67 | I192: 233.8859059 | J192: -1.208268793 | K192: 0.12 | L192: 0.4635075818 | M192: 0.2410119573 | N192: 1.923172555 | O192: 15.79059289 | X192: =IF($R$4,I192,NA()) -> 233.8859059 | AO192: 57256800
A193: 161 | B193: =OFFSET(InputPriceData!B$15,CalculationsAndCharts!$A193+$A$11,0,1,1) -> 2017-03-10 | C193: =OFFSET(InputPriceData!G$15,CalculationsAndCharts!$A193+$A$11,IF($C$7,8,0),1,1) -> 81991700 | D193: =OFFSET(InputPriceData!C$15,CalculationsAndCharts!$A193+$A$11,IF($C$7,8,0),1,1) -> 234.62 | E193: =OFFSET(InputPriceData!D$15,CalculationsAndCharts!$A193+$A$11,IF($C$7,8,0),1,1) -> 234.67 | F193: =OFFSET(InputPriceData!E$15,CalculationsAndCharts!$A193+$A$11,IF($C$7,8,0),1,1) -> 233.26 | G193: =OFFSET(InputPriceData!F$15,CalculationsAndCharts!$A193+$A$11,IF($C$7,8,0),1,1) -> 234.35 | H193: 233.67 | I193: 233.993126 | J193: -0.9874978841 | K193: 0.82 | L193: 0.4899312419 | M193: 0.2595513386 | N193: 1.887608226 | O193: 15.36926336 | X193: =IF($R$4,I193,NA()) -> 233.993126 | AP193: 81991700
A194: 162 | B194: =OFFSET(InputPriceData!B$15,CalculationsAndCharts!$A194+$A$11,0,1,1) -> 2017-03-09 | C194: =OFFSET(InputPriceData!G$15,CalculationsAndCharts!$A194+$A$11,IF($C$7,8,0),1,1) -> 90683900 | D194: =OFFSET(InputPriceData!C$15,CalculationsAndCharts!$A194+$A$11,IF($C$7,8,0),1,1) -> 233.37 | E194: =OFFSET(InputPriceData!D$15,CalculationsAndCharts!$A194+$A$11,IF($C$7,8,0),1,1) -> 233.91 | F194: =OFFSET(InputPriceData!E$15,CalculationsAndCharts!$A194+$A$11,IF($C$7,8,0),1,1) -> 232.43 | G194: =OFFSET(InputPriceData!F$15,CalculationsAndCharts!$A194+$A$11,IF($C$7,8,0),1,1) -> 233.53 | H194: 233.67 | I194: 234.1535922 | J194: -0.6383115462 | K194: 0.3 | L194: 0.4645413374 | M194: 0.2795168262 | N194: 1.66194409 | O194: 12.43347095 | X194: =IF($R$4,I194,NA()) -> 234.1535922 | AO194: 90683900
A195: 163 | B195: =OFFSET(InputPriceData!B$15,CalculationsAndCharts!$A195+$A$11,0,1,1) -> 2017-03-08 | C195: =OFFSET(InputPriceData!G$15,CalculationsAndCharts!$A195+$A$11,IF($C$7,8,0),1,1) -> 78168800 | D195: =OFFSET(InputPriceData!C$15,CalculationsAndCharts!$A195+$A$11,IF($C$7,8,0),1,1) -> 234 | E195: =OFFSET(InputPriceData!D$15,CalculationsAndCharts!$A195+$A$11,IF($C$7,8,0),1,1) -> 234.3 | F195: =OFFSET(InputPriceData!E$15,CalculationsAndCharts!$A195+$A$11,IF($C$7,8,0),1,1) -> 233.08 | G195: =OFFSET(InputPriceData!F$15,CalculationsAndCharts!$A195+$A$11,IF($C$7,8,0),1,1) -> 233.23 | H195: 234.37 | I195: 234.3937468 | J195: -0.103890085 | K195: -0.44 | L195: 0.4771983634 | M195: 0.3010181205 | N195: 1.585281187 | O195: 11.31948799 | X195: =IF($R$4,I195,NA()) -> 234.3937468 | AP195: 78168800
A196: 164 | B196: =OFFSET(InputPriceData!B$15,CalculationsAndCharts!$A196+$A$11,0,1,1) -> 2017-03-07 | C196: =OFFSET(InputPriceData!G$15,CalculationsAndCharts!$A196+$A$11,IF($C$7,8,0),1,1) -> 65103700 | D196: =OFFSET(InputPriceData!C$15,CalculationsAndCharts!$A196+$A$11,IF($C$7,8,0),1,1) -> 234.02 | E196: =OFFSET(InputPriceData!D$15,CalculationsAndCharts!$A196+$A$11,IF($C$7,8,0),1,1) -> 234.43 | F196: =OFFSET(InputPriceData!E$15,CalculationsAndCharts!$A196+$A$11,IF($C$7,8,0),1,1) -> 233.43 | G196: =OFFSET(InputPriceData!F$15,CalculationsAndCharts!$A196+$A$11,IF($C$7,8,0),1,1) -> 233.67 | H196: 234.92 | I196: 234.4055396 | J196: 0.3091582995 | K196: -0.7 | L196: 0.5139059298 | M196: 0.2903272067 | N196: 1.77009222 | O196: 13.90011882 | X196: =IF($R$4,I196,NA()) -> 234.4055396 | AP196: 65103700
A197: 165 | B197: =OFFSET(InputPriceData!B$15,CalculationsAndCharts!$A197+$A$11,0,1,1) -> 2017-03-06 | C197: =OFFSET(InputPriceData!G$15,CalculationsAndCharts!$A197+$A$11,IF($C$7,8,0),1,1) -> 55391500 | D197: =OFFSET(InputPriceData!C$15,CalculationsAndCharts!$A197+$A$11,IF($C$7,8,0),1,1) -> 234.16 | E197: =OFFSET(InputPriceData!D$15,CalculationsAndCharts!$A197+$A$11,IF($C$7,8,0),1,1) -> 234.77 | F197: =OFFSET(InputPriceData!E$15,CalculationsAndCharts!$A197+$A$11,IF($C$7,8,0),1,1) -> 233.68 | G197: =OFFSET(InputPriceData!F$15,CalculationsAndCharts!$A197+$A$11,IF($C$7,8,0),1,1) -> 234.37 | H197: 234.92 | I197: 234.1500556 | J197: 0.5212237118 | K197: -0.7 | L197: 0.5534371552 | M197: 0.2588139149 | N197: 2.138359351 | O197: 18.13621743 | X197: =IF($R$4,I197,NA()) -> 234.1500556 | AO197: 55391500
A198: 166 | B198: =OFFSET(InputPriceData!B$15,CalculationsAndCharts!$A198+$A$11,0,1,1) -> 2017-03-03 | C198: =OFFSET(InputPriceData!G$15,CalculationsAndCharts!$A198+$A$11,IF($C$7,8,0),1,1) -> 81974300 | D198: =OFFSET(InputPriceData!C$15,CalculationsAndCharts!$A198+$A$11,IF($C$7,8,0),1,1) -> 234.82 | E198: =OFFSET(InputPriceData!D$15,CalculationsAndCharts!$A198+$A$11,IF($C$7,8,0),1,1) -> 235.26 | F198: =OFFSET(InputPriceData!E$15,CalculationsAndCharts!$A198+$A$11,IF($C$7,8,0),1,1) -> 234.39 | G198: =OFFSET(InputPriceData!F$15,CalculationsAndCharts!$A198+$A$11,IF($C$7,8,0),1,1) -> 235.07 | H198: 234.92 | I198: 233.7676968 | J198: 0.6366818031 | K198: 0.15 | L198: 0.596009244 | M198: 0.2248765238 | N198: 2.65038446 | O198: 22.60562522 | X198: =IF($R$4,I198,NA()) -> 233.7676968 | AO198: 81974300
A199: 167 | B199: =OFFSET(InputPriceData!B$15,CalculationsAndCharts!$A199+$A$11,0,1,1) -> 2017-03-02 | C199: =OFFSET(InputPriceData!G$15,CalculationsAndCharts!$A199+$A$11,IF($C$7,8,0),1,1) -> 70246000 | D199: =OFFSET(InputPriceData!C$15,CalculationsAndCharts!$A199+$A$11,IF($C$7,8,0),1,1) -> 236.19 | E199: =OFFSET(InputPriceData!D$15,CalculationsAndCharts!$A199+$A$11,IF($C$7,8,0),1,1) -> 236.2 | F199: =OFFSET(InputPriceData!E$15,CalculationsAndCharts!$A199+$A$11,IF($C$7,8,0),1,1) -> 234.86 | G199: =OFFSET(InputPriceData!F$15,CalculationsAndCharts!$A199+$A$11,IF($C$7,8,0),1,1) -> 234.92 | H199: 233.78 | I199: 233.1954564 | J199: 0.5592086217 | K199: -1.49 | L199: 0.6303176474 | M199: 0.2421747179 | N199: 2.602739266 | O199: 22.24334246 | X199: =IF($R$4,I199,NA()) -> 233.1954564 | AP199: 70246000
A200: 168 | B200: =OFFSET(InputPriceData!B$15,CalculationsAndCharts!$A200+$A$11,0,1,1) -> 2017-03-01 | C200: =OFFSET(InputPriceData!G$15,CalculationsAndCharts!$A200+$A$11,IF($C$7,8,0),1,1) -> 149158200 | D200: =OFFSET(InputPriceData!C$15,CalculationsAndCharts!$A200+$A$11,IF($C$7,8,0),1,1) -> 235.04 | E200: =OFFSET(InputPriceData!D$15,CalculationsAndCharts!$A200+$A$11,IF($C$7,8,0),1,1) -> 236.94 | F200: =OFFSET(InputPriceData!E$15,CalculationsAndCharts!$A200+$A$11,IF($C$7,8,0),1,1) -> 235.02 | G200: =OFFSET(InputPriceData!F$15,CalculationsAndCharts!$A200+$A$11,IF($C$7,8,0),1,1) -> 236.41 | H200: 233.41 | I200: 232.9051687 | J200: 0.77079305 | K200: 3.26 | L200: 0.6788036203 | M200: 0.1461881577 | N200: 4.643355733 | O200: 32.28004671 | X200: =IF($R$4,I200,NA()) -> 232.9051687 | AO200: 149158200
A201: 169 | B201: =OFFSET(InputPriceData!B$15,CalculationsAndCharts!$A201+$A$11,0,1,1) -> 2017-02-28 | C201: =OFFSET(InputPriceData!G$15,CalculationsAndCharts!$A201+$A$11,IF($C$7,8,0),1,1) -> 96961900 | D201: =OFFSET(InputPriceData!C$15,CalculationsAndCharts!$A201+$A$11,IF($C$7,8,0),1,1) -> 233.34 | E201: =OFFSET(InputPriceData!D$15,CalculationsAndCharts!$A201+$A$11,IF($C$7,8,0),1,1) -> 233.62 | F201: =OFFSET(InputPriceData!E$15,CalculationsAndCharts!$A201+$A$11,IF($C$7,8,0),1,1) -> 232.7 | G201: =OFFSET(InputPriceData!F$15,CalculationsAndCharts!$A201+$A$11,IF($C$7,8,0),1,1) -> 233.15 | H201: 233.15 | I201: 232.6544666 | J201: 1.068823681 | K201: -0.63 | L201: 0.4802500526 | M201: 0.1574334006 | N201: 3.050496595 | O201: 25.31166916 | X201: =IF($R$4,I201,NA()) -> 232.6544666 | AP201: 96961900
A202: 170 | B202: =OFFSET(InputPriceData!B$15,CalculationsAndCharts!$A202+$A$11,0,1,1) -> 2017-02-27 | C202: =OFFSET(InputPriceData!G$15,CalculationsAndCharts!$A202+$A$11,IF($C$7,8,0),1,1) -> 56515400 | D202: =OFFSET(InputPriceData!C$15,CalculationsAndCharts!$A202+$A$11,IF($C$7,8,0),1,1) -> 233.31 | E202: =OFFSET(InputPriceData!D$15,CalculationsAndCharts!$A202+$A$11,IF($C$7,8,0),1,1) -> 233.97 | F202: =OFFSET(InputPriceData!E$15,CalculationsAndCharts!$A202+$A$11,IF($C$7,8,0),1,1) -> 233.03 | G202: =OFFSET(InputPriceData!F$15,CalculationsAndCharts!$A202+$A$11,IF($C$7,8,0),1,1) -> 233.78 | H202: 233.17 | I202: 232.4083818 | J202: 1.431514827 | K202: 0.37 | L202: 0.5171923644 | M202: 0.1210821238 | N202: 4.271418012 | O202: 31.0297723 | X202: =IF($R$4,I202,NA()) -> 232.4083818 | AO202: 56515400
A203: 171 | B203: =OFFSET(InputPriceData!B$15,CalculationsAndCharts!$A203+$A$11,0,1,1) -> 2017-02-24 | C203: =OFFSET(InputPriceData!G$15,CalculationsAndCharts!$A203+$A$11,IF($C$7,8,0),1,1) -> 82381600 | D203: =OFFSET(InputPriceData!C$15,CalculationsAndCharts!$A203+$A$11,IF($C$7,8,0),1,1) -> 232.15 | E203: =OFFSET(InputPriceData!D$15,CalculationsAndCharts!$A203+$A$11,IF($C$7,8,0),1,1) -> 233.46 | F203: =OFFSET(InputPriceData!E$15,CalculationsAndCharts!$A203+$A$11,IF($C$7,8,0),1,1) -> 232.1 | G203: =OFFSET(InputPriceData!F$15,CalculationsAndCharts!$A203+$A$11,IF($C$7,8,0),1,1) -> 233.41 | H203: 233.12 | I203: 232.0301578 | J203: 1.716631306 | K203: 0.29 | L203: 0.528514854 | M203: 0.1303961333 | N203: 4.053148208 | O203: 30.21035681 | X203: =IF($R$4,I203,NA()) -> 232.0301578 | AO203: 82381600
... 2047 more rows

Sheet Follow
A1: Stocks and Indexes I wish to follow
A3: To ease following a stock, enter a Yahoo Finance acceptable symbol in column "A" anywhere below cell "A9".
A4: Thereafter you may doubleclick the cell containing a symbol of interest to initiate data retrieval and charting for that symbol.
A7: Symbol
A8: To | B8: Description | C8: Last Trade as of most recent check
A9: Follow | C9: Date | D9: Time | E9: Open | F9: High | G9: Low | H9: Close | I9: Volume | J9: Change
A10: A | B10: Agilent Technolog (A) -NYSE (Daily) | C10: 2015-02-02 | D10: 16:03:00 | E10: 37.9 | F10: 38.76 | G10: 37.71 | H10: 38.69 | I10: 2508493 | J10: 0.92
A11: AAL | B11: American Airlines Group Inc. (AAL) -NasdaqGS (Daily) | C11: 2017-12-07 | D11: 16:00:00 | E11: 49.529999 | F11: 50.920502 | G11: 49.299999 | H11: 50.880001 | I11: 3046954 | J11: 1.27
A12: ADM | B12: Archer-Daniels-Midland Company (ADM) -NYQ (Daily) | C12: 2016-03-07 | D12: 13:18:00 | E12: 37.17 | F12: 37.29 | G12: 36.85 | H12: 37.09 | I12: 2069198 | J12: -0.56
A13: AMC | B13: AMC Entertainment Holdings, Inc. (AMC) -NYSE (Daily) | C13: 2017-12-07 | D13: 16:02:00 | E13: 14.15 | F13: 14.5 | G13: 14.05 | H13: 14.35 | I13: 1931228 | J13: 0.1
A14: BSX | B14: Boston Scientific Corporation C (BSX) -NYQ (Daily) | C14: 2015-03-13 | D14: 16:01:00 | E14: 16.84 | F14: 16.91 | G14: 16.44 | H14: 16.61 | I14: 7262460 | J14: -0.28
A15: CASY | B15: Casey's General Stores, Inc. (CASY) -NasdaqGS (Daily) | C15: 2017-12-07 | D15: 16:00:00 | E15: 124.379997 | F15: 125.349998 | G15: 123.099998 | H15: 123.669998 | I15: 437041 | J15: -0.900002
A16: CSCO | B16: Cisco Systems, In (CSCO) -NasdaqNM (Daily) | C16: 2015-02-19 | D16: 16:00:00 | E16: 29.32 | F16: 29.39 | G16: 29.13 | H16: 29.31 | I16: 21469012 | J16: -0.18
A17: CVS | B17: CVS Health Corpor (CVS) -NYSE (Daily) | C17: 2015-02-02 | D17: 16:01:00 | E17: 98.34 | F17: 99.22 | G17: 97.06 | H17: 99.11 | I17: 4416094 | J17: 0.95
A18: DIS | B18: Walt Disney Compa (DIS) -NYSE (Daily) | C18: 2015-02-26 | D18: 16:00:00 | E18: 105.5 | F18: 105.71 | G18: 104.14 | H18: 104.56 | I18: 5044969 | J18: -1.01
A19: EMC | B19: EMC Corporation C (EMC) -NYSE (Daily) | C19: 2015-02-19 | D19: 16:00:00 | E19: 28.26 | F19: 28.83 | G19: 28.19 | H19: 28.72 | I19: 11049079 | J19: 0.52
A20: F | B20: Ford Motor Company (F) -NYSE (Daily) | C20: 2017-10-13 | D20: 16:01:00 | E20: 12.06 | F20: 12.17 | G20: 11.87 | H20: 12.05 | I20: 44563400 | J20: -0.07
A21: FAS | B21: Direxion Daily Financial Bull 3X ETF (FAS) -NYSEArca (Daily) | C21: 2017-10-13 | D21: 16:00:00 | E21: 58.099998 | F21: 58.939999 | G21: 57.43 | H21: 58.450001 | I21: 1709300 | J21: 0.07
A22: GSK | B22: GlaxoSmithKline P (GSK) -NYSE (Daily) | C22: 2015-02-02 | D22: 16:01:00 | E22: 44.11 | F22: 44.12 | G22: 43.71 | H22: 43.96 | I22: 3654466 | J22: -0.04
A23: GDX | B23: VanEck Vectors Gold Miners ETF (GDX) -PCX (Daily) | C23: 2017-02-10 | D23: 20:00:00 | E23: 24.67 | F23: 25.36 | G23: 24.6 | H23: 25.29 | I23: 65396107 | J23: 0.38
A24: HSY | B24: The Hershey Compa (HSY) -NYSE (Daily) | C24: 2015-02-19 | D24: 16:02:00 | E24: 106.97 | F24: 107.31 | G24: 105.42 | H24: 105.95 | I24: 1448321 | J24: -1
A25: HTLD | B25: Heartland Express (HTLD) -NasdaqNM (Daily) | C25: 2015-02-02 | D25: 16:00:00 | E25: 25.68 | F25: 25.81 | G25: 25.36 | H25: 25.62 | I25: 542510 | J25: -0.07
A26: IBM | B26: International Bus (IBM) -NYSE (Daily) | C26: 2015-02-02 | D26: 16:01:00 | E26: 154 | F26: 154.66 | G26: 151.51 | H26: 154.66 | I26: 4712247 | J26: 1.35
A27: INTC | B27: Intel Corporation (INTC) -NasdaqNM (Daily) | C27: 2015-02-19 | D27: 16:00:00 | E27: 34.25 | F27: 34.42 | G27: 34.05 | H27: 34.21 | I27: 11017541 | J27: -0.055
A28: JAH | B28: Jarden Corporation Common Stock (JAH) -NYQ (Daily) | C28: 2016-01-08 | D28: 16:02:00 | E28: 53.82 | F28: 53.88 | G28: 52.65 | H28: 52.73 | I28: 4519480 | J28: -0.81
A29: JNJ | B29: Johnson & Johnson Common Stock (JNJ) -NYQ (Daily) | C29: 2016-01-08 | D29: 11:37:00 | E29: 99.88 | F29: 99.94 | G29: 98.87 | H29: 98.88 | I29: 2448879 | J29: -0.34
A30: KO | B30: Coca-Cola Company (The) Common (KO) -NYQ (Daily) | C30: 2015-08-10 | D30: 16:00:00 | E30: 41.89 | F30: 41.99 | G30: 41.58 | H30: 41.68 | I30: 9501875 | J30: -0.09
A31: LHO | B31: LaSalle Hotel Pro (LHO) -NYSE (Daily) | C31: 2015-02-02 | D31: 16:06:00 | E31: 40.51 | F31: 40.74 | G31: 39.46 | H31: 40.26 | I31: 1034675 | J31: -0.2
A32: LINE | B32: Linn Energy, LLC (LINE) -NasdaqNM (Daily) | C32: 2015-02-02 | D32: 16:00:00 | E32: 10.4 | F32: 10.78 | G32: 10.25 | H32: 10.77 | I32: 3766537 | J32: 0.51
A33: LO | B33: Lorillard, Inc Co (LO) -NYSE (Daily) | C33: 2015-02-02 | D33: 16:03:00 | E33: 65.71 | F33: 66.29 | G33: 65.43 | H33: 66.29 | I33: 1563618 | J33: 0.68
A34: MCD | B34: McDonald's Corporation Common S (MCD) -NYQ (Daily) | C34: 2016-04-07 | D34: 16:10:00 | E34: 127.37 | F34: 128.52 | G34: 127.02 | H34: 128.14 | I34: 4720711 | J34: 0.62
A35: MDT | B35: Medtronic plc. Or (MDT) -NYSE (Daily) | C35: 2015-02-19 | D35: 16:01:00 | E35: 78.59 | F35: 78.59 | G35: 77.85 | H35: 78.13 | I35: 6900528 | J35: -0.37
A36: MGM | B36: MGM Resorts Inter (MGM) -NYSE (Daily) | C36: 2015-02-02 | D36: 16:00:00 | E36: 19.44 | F36: 19.75 | G36: 19.12 | H36: 19.74 | I36: 7570281 | J36: 0.26
A37: MO | B37: Altria Group, Inc (MO) -NYSE (Daily) | C37: 2015-02-02 | D37: 16:01:00 | E37: 53.25 | F37: 53.84 | G37: 52.98 | H37: 53.8 | I37: 9183582 | J37: 0.7
A38: MSFT | B38: Microsoft Corpora (MSFT) -NasdaqNM (Daily) | C38: 2015-02-20 | D38: 16:00:00 | E38: 43.51 | F38: 43.88 | G38: 43.29 | H38: 43.855 | I38: 29721132 | J38: 0.355
A39: NUGT | B39: Direxion Daily Gold Miners Inde (NUGT) -PCX (Daily) | C39: 2016-04-13 | D39: 14:18:00 | E39: 81.48 | F39: 84.97 | G39: 79.59 | H39: 80.5352 | I39: 4380827 | J39: -5.6148
A40: NVS | B40: Novartis AG Common Stock (NVS) -NYQ (Daily) | C40: 2016-01-08 | D40: 11:38:00 | E40: 83.38 | F40: 83.5 | G40: 82.37 | H40: 82.42 | I40: 979446 | J40: -1.52
A41: NVDA | B41: NVIDIA Corporation (NVDA) -NasdaqGS (Daily) | C41: 2017-12-05 | D41: 16:00:00 | E41: 182.399994 | F41: 192.699997 | G41: 180.580002 | H41: 187.740005 | I41: 24484326 | J41: 1.080001
A42: PRU | B42: Prudential Financ (PRU) -NYSE (Daily) | C42: 2015-02-23 | D42: 12:22:00 | E42: 80.25 | F42: 80.4499 | G42: 79.8 | H42: 80.12 | I42: 1604052 | J42: -0.69
A43: PSEC | B43: Prospect Capital Corporation (PSEC) -NMS (Daily) | C43: 2016-04-07 | D43: 16:00:00 | E43: 7.18 | F43: 7.25 | G43: 7.15 | H43: 7.21 | I43: 1116195 | J43: 0.02
A44: RAI | B44: Reynolds American (RAI) -NYSE (Daily) | C44: 2015-02-02 | D44: 16:03:00 | E44: 68.12 | F44: 69.06 | G44: 67.4346 | H44: 69.05 | I44: 1822013 | J44: 1.1
A45: RPM | B45: RPM International Inc. Common S (RPM) -NYQ (Daily) | C45: 2016-04-13 | D45: 12:43:00 | E45: 49.9 | F45: 50.21 | G45: 49.71 | H45: 49.97 | I45: 408337 | J45: 0.19 | K45: Owns the Rust-Oleum brand
A46: RSP | B46: Guggenheim S&P 500 Equal Weight (RSP) -PCX (Daily) | C46: 2016-01-08 | D46: 11:33:00 | E46: 73.24 | F46: 73.47 | G46: 72.41 | H46: 72.41 | I46: 754279 | J46: -0.48
A47: SONC | B47: Sonic Corp. (SONC) -NMS (Daily) | C47: 2017-02-08 | D47: 16:00:00 | E47: 25.15 | F47: 25.44 | G47: 24.91 | H47: 25.35 | I47: 397007 | J47: 0.18
A48: SPR | B48: Spirit Aerosystems Holdings, In (SPR) -NYQ (Daily) | C48: 2017-02-08 | D48: 16:02:00 | E48: 56.31 | F48: 56.53 | G48: 55.13 | H48: 56.41 | I48: 849196 | J48: 0.06
A49: SWKS | B49: Skyworks Solution (SWKS) -NasdaqNM (Daily) | C49: 2015-02-02 | D49: 16:00:00 | E49: 83.07 | F49: 83.73 | G49: 80.15 | H49: 82.02 | I49: 4119001 | J49: -1.03
A50: TOL | B50: Toll Brothers Inc (TOL) -NYSE (Daily) | C50: 2015-02-23 | D50: 12:23:00 | E50: 37.56 | F50: 37.77 | G50: 37.1 | H50: 37.36 | I50: 1521944 | J50: -0.29
A51: UNP | B51: Union Pacific Cor (UNP) -NYSE (Daily) | C51: 2015-02-02 | D51: 16:10:00 | E51: 118.13 | F51: 119.06 | G51: 116.7 | H51: 119.01 | I51: 3259594 | J51: 1.8
A52: VZ | B52: Verizon Communica (VZ) -NYSE (Daily) | C52: 2015-02-23 | D52: 12:22:00 | E52: 48.94 | F52: 49 | G52: 48.54 | H52: 48.825 | I52: 4204644 | J52: -0.145
A53: WBA | B53: (WBA) -NasdaqNM (Daily) | C53: 2015-02-02 | D53: 16:00:00 | E53: 73.06 | F53: 74.98 | G53: 73 | H53: 74.89 | I53: 4247395 | J53: 1.14
A54: WMT | B54: Wal-Mart Stores, Inc. (WMT) -NYSE (Daily) | C54: 2017-12-07 | D54: 16:00:00 | E54: 97.059998 | F54: 97.580002 | G54: 96.650002 | H54: 96.779999 | I54: 7502463 | J54: -0.5
A56: ^NDX | B56: NASDAQ-100 (^NDX) -NIM (Daily) | C56: 2015-08-10 | D56: 17:15:00 | E56: 4558.68 | F56: 4583.63 | G56: 4554.63 | H56: 4573.11 | I56: 0 | J56: 53.03
A57: ^DJI | B57: Dow Jones Industrial Average (^DJI) -DJI (Daily) | C57: 2017-10-13 | D57: 16:55:00 | E57: 22876.42969 | F57: 22905.33008 | G57: 22855.92969 | H57: 22871.7207 | I57: 259560000 | J57: 30.710937
A58: SPY | B58: SPDR S&P 500 ETF (SPY) -NYSEArca (Daily) | C58: 2018-01-05 | D58: 16:00:00 | E58: 272.51001 | F58: 273.559998 | G58: 271.950012 | H58: 273.420013 | I58: 72820100 | J58: 1.810028
A59: ^GSPC | B59: S&P 500 (^GSPC) -SNP (Daily) | C59: 2017-12-07 | D59: 14:51:00 | E59: 2628.379883 | F59: 2640.98999 | G59: 2626.530029 | H59: 2635.469971 | I59: 1206602355 | J59: 6.199951
A60: ^RUT | B60: Russell 2000 (^RUT) -Chicago Options (Daily) | C60: 2017-12-07 | D60: 16:30:00 | E60: 1508.930054 | F60: 1523.959961 | G60: 1508.150024 | H60: 1520.469971 | I60: 32924000 | J60: 11.589966
A61: ^VIX | B61: VOLATILITY S&P 500 (^VIX) -WCB (Daily) | C61: 2015-12-04 | D61: 16:14:00 | E61: 17.43 | F61: 17.65 | G61: 14.69 | H61: 14.81 | I61: 0 | J61: -3.3
A62: ^NYA | B62: NYSE COMPOSITE (DJ) (^NYA) -NYSE (Daily) | C62: 2017-10-13 | D62: 17:38:00 | E62: 12360.87012 | F62: 12377.88965 | G62: 12350.03027 | H62: 12352.01953 | I62: 3149440000 | J62: 13.279297
A64: ACAD | B64: ACADIA Pharmaceut (ACAD) -NasdaqNM (Daily) | C64: 2014-07-21 | D64: 16:00:00 | E64: 20.13 | F64: 20.55 | G64: 19.8101 | H64: 20.31 | I64: 691016
A65: CLDX | B65: Celldex Therapeut (CLDX) -NasdaqNM (Daily) | C65: 2015-02-02 | D65: 16:00:00 | E65: 21.47 | F65: 21.69 | G65: 20.11 | H65: 21.02 | I65: 1570418 | J65: -0.4
A66: ICPT | B66: Intercept Pharmac (ICPT) -NasdaqNM (Daily) | C66: 2014-07-21 | D66: 16:00:00 | E66: 215.97 | F66: 218.43 | G66: 213.05 | H66: 218.14 | I66: 191276
A67: INO | B67: Inovio Pharmaceut (INO) -AMEX (Daily) | C67: 2014-07-21 | D67: 16:00:00 | E67: 10.3 | F67: 11.08 | G67: 10.1 | H67: 11.01 | I67: 1800796
A68: JCP | B68: J. C. Penney Company, Inc. (JCP) -NYSE (Daily) | C68: 2017-12-07 | D68: 16:01:00 | E68: 3.34 | F68: 3.4 | G68: 3.25 | H68: 3.27 | I68: 14485464 | J68: -0.07
A69: LCI | B69: Lannett Co Inc Co (LCI) -NYSE (Daily) | C69: 2014-07-21 | D69: 16:02:00 | E69: 38.09 | F69: 38.803 | G69: 36.5101 | H69: 37.76 | I69: 611367
A70: NPSP | B70: NPS Pharmaceutica (NPSP) -NasdaqNM (Daily) | C70: 2014-07-21 | D70: 15:59:00 | E70: 28.75 | F70: 29.43 | G70: 28.31 | H70: 29.29 | I70: 1126758
A71: PBYI | B71: Puma Biotechnolog (PBYI) -NYSE (Daily) | C71: 2014-07-21 | D71: 16:02:00 | E71: 58.27 | F71: 59.46 | G71: 57.39 | H71: 58.98 | I71: 348030
